Workbook

Sheet TOC
B2: Table of Contents
B3: Page Name | C3: Description
B4: Blank | C4: This Blank Scorecard is to be used as a template for evaluating requirements management tools.
B5: Summary Dashboard | C5: The Summary Dashboard contains the Phase 2 Results of ArgonDigital's Tool Evaluation Study. Tools are listed according to ranking, including the total score and average weighted score for each tool. Rankings are also displayed graphically.
B6: Aha! | C6: ArgonDigital 2016 Tool Evaluation Study Scorecard for Aha! by Aha! Labs.
B7: Blueprint | C7: ArgonDigital 2016 Tool Evaluation Study Scorecard for Blueprint by Blueprint Software Systems.
B8: Caliber | C8: ArgonDigital 2016 Tool Evaluation Study Scorecard for Caliber by Micro Focus.
B9: Cockpit | C9: ArgonDigital 2016 Tool Evaluation Study Scorecard for Cockpit by Cognition.
B10: Cradle | C10: ArgonDigital 2016 Tool Evaluation Study Scorecard for Cradle by 3SL.
B11: DimensionsRM | C11: ArgonDigital 2016 Tool Evaluation Study Scorecard for Serena Dimensions RM by Serena Software.
B12: Enterprise Architect | C12: ArgonDigital 2016 Tool Evaluation Study Scorecard for Enterprise Architect by Sparx Systems.
B13: inSTEP RED | C13: ArgonDigital 2016 Tool Evaluation Study Scorecard for in-STEP RED by microTool.
B14: Innoslate | C14: ArgonDigital 2016 Tool Evaluation Study Scorecard for Innoslate by SPEC Innovations.
B15: Innovator | C15: ArgonDigital 2016 Tool Evaluation Study Scorecard for Innovator for Business Analysts by MID Gmbh.
B16: iRise with JIRA | C16: ArgonDigital 2016 Tool Evaluation Study Scorecard for iRise by iRise, integrated with JIRA by Atlassian.
B17: Jama | C17: ArgonDigital 2016 Tool Evaluation Study Scorecard for Jama by Jama Software.
B18: JIRA | C18: ArgonDigital 2016 Tool Evaluation Study Scorecard for JIRA by Atlassian.
B19: Kovair | C19: ArgonDigital 2016 Tool Evaluation Study Scorecard for Kovair Global Lifecycle/ALM Solution by Kovair Software.
B20: Modern Requirements Tool Suite | C20: ArgonDigital 2016 Tool Evaluation Study Scorecard for Modern Requirements Tool Suite by eDev Technologies, backed by TFS/Visual Studio Team Services.
B21: Polarion | C21: ArgonDigital 2016 Tool Evaluation Study Scorecard for Polarion Requirements by Polarion Software.
B22: Rommana | C22: ArgonDigital 2016 Tool Evaluation Study Scorecard for Rommana by Rommana Software.
B23: TestTrack | C23: ArgonDigital 2016 Tool Evaluation Study Scorecard for TestTrack by Seapine Software.
B24: TFS | C24: ArgonDigital 2016 Tool Evaluation Study Scorecard for Team Foundation Server/Visual Studio Team Services by Microsoft.
B25: TopTeam | C25: ArgonDigital 2016 Tool Evaluation Study Scorecard for TopTeam Analyst by Techno Solutions.
B26: Visure | C26: ArgonDigital 2016 Tool Evaluation Study Scorecard for Visure Requirements by Visure Solutions.
B27: Workspace.com | C27: ArgonDigital 2016 Tool Evaluation Study Scorecard for Workspace.com by workspace.com.
C30: If you wish to modify the scoring and ranking of tools based on differing priorities of criteria sets, simply make the changes in prioritization of criteria in column X of the 'Blank' tab, and all scoring sets will be automatically updated.

Sheet Blank
A1: L1 Feature | B1: L2 Feature | C1: L3 Feature | D1: User Story ID | E1: Title | F1: As a(n) | G1: I want | H1: So that | I1: ACID | J1: Acceptance Criteria | K1: Priority (1-8) - 8 is high 1 - Delighter feature that is wonderful to have but not critical for an RM tool 2 - Performance feature that is important to have and increases performance managing requirements 3,5,8 - Basic feature - MVP to be considered an RM | L1: Score (0-3) - 3 is the best 0 - CANNOT do in tool 1 - Can do it, but there's a manual workaround 2 - Can do it without any workarounds, but it's still not that easy to use 3 - Can do it in the tool and it's user friendly | M1: Total Score | N1: Notes
A2: 1. Plan Requirements | H2: So that | K2: Heading Fill
A3: 1. Plan Requirements | B3: Administer Project | C3: Estimate requirements work | D3: US001 | E3: Estimate requirements work | F3: Business analyst, Product Manager | G3: to be able to estimate how much time I need for my requirements activities (given a few preliminary details about my project) | H3: So that | I3: =D3&"-"&"AC"&TEXT(ROW()-2,"000") -> US001-AC001 | J3: Can input project knowns (like number of stakeholders, number of interfacing systems) as estimate inputs | K3: 1 | M3: =K3*L3 -> 0
A4: 1. Plan Requirements | B4: Administer Project | C4: Estimate requirements work | D4: US001 | E4: Estimate requirements work | F4: Business analyst, Product Manager | G4: to be able to estimate how much time I need for my requirements activities (given a few preliminary details about my project) | H4: So that | I4: US001-AC002 | J4: Can calculate total estimate of work left on tasks | K4: 1 | M4: 0
A5: 1. Plan Requirements | B5: Administer Project | C5: Estimate requirements work | D5: US001 | E5: Estimate requirements work | F5: Business analyst, Product Manager | G5: to be able to estimate how much time I need for my requirements activities (given a few preliminary details about my project) | H5: So that | I5: US001-AC003 | J5: Can link tasks to individual requirements or some other similar object in the tool | K5: 1 | M5: 0
A6: 1. Plan Requirements | B6: Administer Project | C6: Define task management process | D6: US002 | E6: Manage requirements tasks | F6: Business Analyst | G6: to be able to track all of the requirements activities and tasks I have left for my project | H6: So that | I6: US002-AC004 | J6: Can input tasks with estimates and track how much time is remaining on each task | K6: 2 | M6: 0
A7: 1. Plan Requirements | B7: Administer Project | C7: Define task management process | D7: US002 | E7: Manage requirements tasks | F7: Business Analyst | G7: to be able to track all of the requirements activities and tasks I have left for my project | H7: So that | I7: US002-AC005 | J7: Can graph work remaining (task burndown chart) to project end dates | K7: 2 | M7: 0
A8: 1. Plan Requirements | B8: Administer Project | C8: Create requirements plan | D8: US003 | E8: Create requirements plan | F8: Business Analyst | G8: to create a requirements plan to track my requirements activities and target dates | H8: So that | I8: US003-AC006 | J8: Can enter tasks with target completion dates and owners | K8: 1 | M8: 0
A9: 1. Plan Requirements | B9: Administer Project | C9: Manage project portfolio | D9: US004 | E9: Align projects across a product portfolio | F9: Product Manager | G9: to be able to oversee requirements activity for multiple products within my portfolio in a centralized location | H9: So that | I9: US004-AC007 | J9: Can create/track dependencies across projects within a portfolio | K9: 1 | M9: 0
A10: 1. Plan Requirements | B10: Adapt methodology | C10: Customize methodology checklist | D10: US005 | E10: Track to a defined methodology | F10: Business Analyst | G10: to be able to customize a checklist of items I need to complete to follow my organization's requirements methodology | H10: So that | I10: US005-AC008 | J10: Can store and edit a methodology/process checklist as tasks to do | K10: 1 | M10: 0
A11: 1. Plan Requirements | B11: Perform stakeholder analysis | C11: Create Org Chart Create SME Map | D11: US006 | E11: Track stakeholders | F11: Business Analyst | G11: I want to be able to track all of the stakeholders on my project along with their participation in requirements activities | H11: So that | I11: US006-AC009 | J11: Can import an existing org chart (from Visio or ppt) | K11: 2 | M11: 0
A12: 1. Plan Requirements | B12: Perform stakeholder analysis | C12: Create Org Chart Create SME Map | D12: US006 | E12: Track stakeholders | F12: Business Analyst | G12: I want to be able to track all of the stakeholders on my project along with their participation in requirements activities | H12: So that | I12: US006-AC010 | J12: Can track stakeholder participation in requirements activities | K12: 1 | M12: 0
A13: 1. Plan Requirements | B13: Perform stakeholder analysis | C13: Create Personas | D13: US007 | E13: Create stakeholder personas | F13: Business Analyst | G13: to be able to group my stakeholders into classes with like attributes and summarize each group's characteristics | H13: So that | I13: US007-AC011 | J13: Can create user personas and capture persona attributes | K13: 2 | M13: 0
A14: 1. Plan Requirements | B14: Perform stakeholder analysis | C14: Create Personas | D14: US007 | E14: Create stakeholder personas | F14: Business Analyst | G14: to be able to group my stakeholders into classes with like attributes and summarize each group's characteristics | H14: So that | I14: US007-AC012 | J14: Can link the persona to user requirements | K14: 2 | M14: 0
A15: 1. Plan Requirements | B15: Adapt Methodology | C15: Define object hierarchy | D15: US008 | E15: Use multiple types of requirements objects | F15: Requirements architect | G15: to be able to use multiple types of requirements objects for my projects | H15: So that | I15: US008-AC013 | J15: Multiple out of the box objects exist with the tool that users can select from (basic object types would include feature, requirement) | K15: 8 | M15: 0
A16: 1. Plan Requirements | B16: Adapt Methodology | C16: Define object hierarchy | D16: US008 | E16: Use multiple types of requirements objects | F16: Requirements architect | G16: to be able to use multiple types of requirements objects for my projects | H16: So that | I16: US008-AC014 | J16: User can add custom object types. Example object types desired include: -Vision statement -Business objectives -Business problems -Success Metric -Feature -Business Requirement -User Requirement -User Story -Epic -Functional Requirement -Non-Functional Requirement -Epic -Requirements model objects (e.g. process flow, business data diagram) -Requirements model sub-objects (e.g. Process flow steps, business data objects) -Personas -Stakeholders -UI mockups/prototypes -Risk -Issue -Bug -Objects for each type of visual model | K16: 8 | M16: 0
A17: 1. Plan Requirements | B17: Adapt Methodology | C17: Define object hierarchy | D17: US008 | E17: Use multiple types of requirements objects | F17: Requirements architect | G17: to be able to use multiple types of requirements objects for my projects | H17: So that | I17: US008-AC015 | J17: Requirements objects types can vary by project | K17: 1 | M17: 0
A18: 1. Plan Requirements | B18: Adapt Methodology | C18: Define object hierarchy | D18: US009 | E18: Define hierarchical relationships between requirements objects | F18: Requirements architect | G18: to be able to define the possible relationships between requirements objects for my project | H18: So that | I18: US009-AC016 | J18: Requirements architecture (which objects and the relationships between requirements object types) can vary by project (e.g. each project can define the requirements architecture they need) | K18: 2 | M18: 0
A19: 1. Plan Requirements | B19: Adapt Methodology | C19: Define object hierarchy | D19: US009 | E19: Define hierarchical relationships between requirements objects | F19: Requirements architect | G19: to be able to define the possible relationships between requirements objects for my project | H19: So that | I19: US009-AC017 | J19: Can specify which relationships types are available between any 2 object types | K19: 2 | M19: 0
A20: 1. Plan Requirements | B20: Adapt Methodology | C20: Define object hierarchy | D20: US009 | E20: Define hierarchical relationships between requirements objects | F20: Requirements architect | G20: to be able to define the possible relationships between requirements objects for my project | H20: So that | I20: US009-AC018 | J20: Tool supports at least 2 relationships types where 1 of them is parent-child and the other is one that can be a generic type of relationship. | K20: 5 | M20: 0
A21: 1. Plan Requirements | B21: Adapt Methodology | C21: Define object hierarchy | D21: US009 | E21: Define hierarchical relationships between requirements objects | F21: Requirements architect | G21: to be able to define the possible relationships between requirements objects for my project | H21: So that | I21: US009-AC019 | J21: Tool supports N:N bidirectional relationship on at least one of the relationship types (one instance of object type X can be associated with 0, 1, or more than 1 instance of object type Y, and one instance of object type Y can be associated with 0, 1, or more than 1 instance of object type X) | K21: 5 | M21: 0
A22: 1. Plan Requirements | B22: Adapt Methodology | C22: Define object hierarchy | D22: US009 | E22: Define hierarchical relationships between requirements objects | F22: Requirements architect | G22: to be able to define the possible relationships between requirements objects for my project | H22: So that | I22: US009-AC020 | J22: Can see a visual layout the relationship hierarchy of the object types (not the actual data in the objects) that has been established (i.e. see my requirements architecture) | K22: 2 | M22: 0
A23: 1. Plan Requirements | B23: Adapt Methodology | C23: Define object hierarchy | D23: US010 | E23: Provide a template for new projects to minimize setup | F23: Requirements architect | G23: to be able to choose a requirements architecture template for my project, | H23: So that | I23: US010-AC021 | J23: Can leverage industry best practice requirements architecture templates that come with the tool (e.g. tool provides a standard agile requirements architecture template, standard hybrid model, etc.) | K23: 1 | M23: 0
A24: 1. Plan Requirements | B24: Adapt Methodology | C24: Define object hierarchy | D24: US010 | E24: Provide a template for new projects to minimize setup | F24: Requirements architect | G24: to be able to choose a requirements architecture template for my project, | H24: So that | I24: US010-AC022 | J24: Can create reusable customized requirements architecture templates for projects (with a set of defined object types with specified relationships) | K24: 2 | M24: 0
A25: 1. Plan Requirements | B25: Adapt Methodology | C25: Define object hierarchy | D25: US010 | E25: Provide a template for new projects to minimize setup | F25: Requirements architect | G25: to be able to choose a requirements architecture template for my project, | H25: So that | I25: US010-AC023 | J25: Can store multiple object relationship templates (requirements architectures) that projects can select from | K25: 2 | M25: 0
A26: 1. Plan Requirements | B26: Adapt Methodology | C26: Define object attributes | D26: US011 | E26: Define attributes for each requirement object | F26: Requirements architect | G26: to be able to define the attributes (data fields) for each requirement object on my project | H26: So that | I26: US011-AC024 | J26: Can customize list of fields associated with each requirements object (as many as needed) | K26: 2 | M26: 0
A27: 1. Plan Requirements | B27: Adapt Methodology | C27: Define object attributes | D27: US011 | E27: Define attributes for each requirement object | F27: Requirements architect | G27: to be able to define the attributes (data fields) for each requirement object on my project | H27: So that | I27: US011-AC025 | J27: Can set up attributes with predefined value choices (e.g. I want to add an attribute called Requirement Type and specify a picklist of values of functional, business, or user. Another example would be defining custom list of status options for an object) | K27: 2 | M27: 0
A28: 1. Plan Requirements | B28: Adapt Methodology | C28: Define object attributes | D28: US011 | E28: Define attributes for each requirement object | F28: Requirements architect | G28: to be able to define the attributes (data fields) for each requirement object on my project | H28: So that | I28: US011-AC026 | J28: Can specify whether each field is required or optional | K28: 2 | M28: 0
A29: 1. Plan Requirements | B29: Adapt Methodology | C29: Define object attributes | D29: US011 | E29: Define attributes for each requirement object | F29: Requirements architect | G29: to be able to define the attributes (data fields) for each requirement object on my project | H29: So that | I29: US011-AC027 | J29: Can define field format (e.g. requirements IDs formats, UCXX for use cases, BRXX for business rules, etc. or define whether it's a text or numerical) | K29: 1 | M29: 0
A30: 1. Plan Requirements | B30: Adapt Methodology | C30: Define object attributes | D30: US011 | E30: Define attributes for each requirement object | F30: Requirements architect | G30: to be able to define the attributes (data fields) for each requirement object on my project | H30: So that | I30: US011-AC028 | J30: Can define calculated fields | K30: 1 | M30: 0
A31: 1. Plan Requirements | B31: Adapt Methodology | C31: Customize tools | D31: US013 | E31: Create custom workflows | F31: Requirements Architect | G31: to be able to create custom workflows for my requirements objects | H31: So that | I31: US013-AC029 | J31: Can define custom workflow for by object type (e.g. require object to reach drafted status, then review status, then approval status before allowing it to be flagged as ready for development) | K31: 1 | M31: 0
A32: 1. Plan Requirements | B32: Administer Project | C32: Glossary | D32: US014 | E32: Define glossary | F32: Business Analyst | G32: to be able to create a glossary | H32: So that | I32: US014-AC030 | J32: Can create and update a glossary | K32: 1 | M32: 0
A33: 1. Plan Requirements | B33: Administer Project | C33: Glossary | D33: US014 | E33: Define glossary | F33: Business Analyst | G33: to be able to create a glossary | H33: So that | I33: US014-AC031 | J33: Can upload an existing glossary to the requirement management tool | K33: 1 | M33: 0
A34: 1. Plan Requirements | B34: Administer Project | C34: Define task management process | D34: US015 | E34: Assign owners to requirements | F34: Product manager | G34: I want to be able to assign an owner to a requirement/set of requirements | H34: So that | I34: US015-AC032 | J34: Can assign/re-assign a user to a single requirement or a set of requirements as the "owner" | K34: 3 | M34: 0
A35: 1. Plan Requirements | B35: Administer Project | C35: Define task management process | D35: US015 | E35: Assign owners to requirements | F35: Product manager | G35: I want to be able to assign an owner to a requirement/set of requirements | H35: So that | I35: US015-AC033 | J35: Owner receive notifications around requirements that are assigned to them (e.g. when it first gets assigned to them, when it's reassigned, when it's edited, when it's approved) | K35: 1 | M35: 0
A36: 1. Plan Requirements | B36: Administer Project | C36: Create requirements plan | D36: US016 | E36: Set up sprints/iterations for agile and hybrid projects | F36: Product Owner | G36: I want to be able to establish iterations for my project | H36: So that | I36: US016-AC034 | J36: Can create/edit delivery iterations and assign requirements to them | K36: 2 | M36: 0
A37: 1. Plan Requirements | B37: Administer Project | C37: Create requirements plan | D37: US017 | E37: Release roadmap | F37: Product Owner | G37: I want to be able to assign iterations to releases | H37: So that | I37: US017-AC035 | J37: Can visually see features (or similar object type) as assigned to iterations (e.g. generate a roadmap for a release listing features assigned by iteration with ability to see progress) | K37: 2 | M37: 0
A38: 2. Elicit Requirements | H38: So that | K38: Heading Fill
A39: 2. Elicit Requirements | B39: Identify requirements | C39: Reuse | D39: US018 | E39: Reuse requirements | F39: Business Analyst | G39: to be able to reuse requirements, | H39: So that | I39: =D39&"-"&"AC"&TEXT(ROW()-3,"000") -> US018-AC036 | J39: Can copy requirements for reuse (from other projects or within the same project) | K39: 2 | M39: 0
A40: 2. Elicit Requirements | B40: Identify requirements | C40: Reuse | D40: US018 | E40: Reuse requirements | F40: Business Analyst | G40: to be able to reuse requirements, | H40: So that | I40: =D40&"-"&"AC"&TEXT(ROW()-3,"000") -> US018-AC037 | J40: Can store selected requirements in a reuse repository (e.g. common non-functional requirements that apply to the organization) | K40: 1 | M40: 0
A41: 2. Elicit Requirements | B41: Administer Elicitation | C41: Capture requirements | D41: US020 | E41: Capture requirements during elicitation | F41: Business Analyst | G41: to be able to capture requirements directly in the tool during elicitation | H41: So that | I41: =D41&"-"&"AC"&TEXT(ROW()-3,"000") -> US020-AC038 | J41: Can track the source of the requirement | K41: 2 | M41: 0
A42: 3. Analyze Requirements | H42: So that | K42: Heading Fill
A43: 3. Analyze Requirements | B43: Categorize Requirements | C43: Group requirements | D43: US023 | E43: Group requirements by project | F43: Business Analyst | G43: to be able to group my requirements | H43: So that | I43: =D43&"-"&"AC"&TEXT(ROW()-4,"000") -> US023-AC039 | J43: Can filter the view of a group of requirements by certain criteria | K43: 2 | M43: 0
A44: 3. Analyze Requirements | B44: Identify factors | C44: Dependencies | D44: US024 | E44: Add dependencies | F44: Product manager | G44: to be able to document dependencies with the tool | H44: So that | I44: US024-AC040 | J44: Can link items/object as dependency to another item - this could be done as one of the allowed relationship types | K44: 2 | M44: 0
A45: 3. Analyze Requirements | B45: Identify factors | C45: Value of a feature | D45: US025 | E45: Assign value to features | F45: Product manager | G45: to be able to assign and compare values of features | H45: So that | I45: US025-AC041 | J45: Can specify quantified dollar values for features | K45: 2 | M45: 0
A46: 3. Analyze Requirements | B46: Identify factors | C46: Value of a feature | D46: US025 | E46: Assign value to features | F46: Product manager | G46: to be able to assign and compare values of features | H46: So that | I46: US025-AC042 | J46: Can rank features according to quantified value (or any custom attribute) | K46: 2 | M46: 0
A47: 3. Analyze Requirements | B47: Identify factors | C47: Assumptions | D47: US026 | E47: Document assumptions | F47: Product manager | G47: to be able to document assumptions within the tool | H47: So that | I47: US026-AC043 | J47: Can create/update assumptions | K47: 2 | M47: 0
A48: 3. Analyze Requirements | B48: Identify factors | C48: Constraints | D48: US027 | E48: Document constraints | F48: Product manager | G48: to be able to document constraints in the tool | H48: So that | I48: US027-AC044 | J48: Can create/update constraints | K48: 2 | M48: 0
A49: 3. Analyze Requirements | B49: Identify factors | C49: Risks | D49: US028 | E49: Document risks | F49: Product manager | G49: to be able to document risks in the tool | H49: So that | I49: US028-AC045 | J49: Can create/update risks | K49: 2 | M49: =K49*L49 -> 0
A50: 3. Analyze Requirements | B50: Draft Requirements Models | C50: Objectives, People, Systems, Data | D50: US029 | E50: Create models in the tool | F50: Business Analyst | G50: to be able to create visual models directly in the tool | H50: So that | I50: US029-AC046 | J50: Can create/edit models with various shapes (boxes, circles, etc.) connected by lines and arrows (e.g. process flow, ecosystem map, system flows, decision trees, business data diagram, org chart, business objectives model) | K50: 8 | M50: 0
A51: 3. Analyze Requirements | B51: Draft Requirements Models | C51: Objectives, People, Systems, Data | D51: US029 | E51: Create models in the tool | F51: Business Analyst | G51: to be able to create visual models directly in the tool | H51: So that | I51: US029-AC047 | J51: Can create models as tables (e.g. system interface table, decision tables, roles and permissions matrix, state table) | K51: 8 | M51: 0
A52: 3. Analyze Requirements | B52: Draft Requirements Models | C52: Objectives, People, Systems, Data | D52: US029 | E52: Create models in the tool | F52: Business Analyst | G52: to be able to create visual models directly in the tool | H52: So that | I52: US029-AC048 | J52: Can create diagrams with branching lines (e.g. feature tree, fishbone diagram) | K52: 8 | M52: 0
A53: 3. Analyze Requirements | B53: Draft Requirements Models | C53: Objectives, People, Systems, Data | D53: US029 | E53: Create models in the tool | F53: Business Analyst | G53: to be able to create visual models directly in the tool | H53: So that | I53: US029-AC049 | J53: Can create each of the elements of a model as its own item that can be linked to (like a step in a process flow is its own item) | K53: 5 | M53: 0
A54: 3. Analyze Requirements | B54: Draft Requirements Models | C54: Objectives, People, Systems, Data | D54: US030 | E54: Create UI/UX mockups | F54: Business Analyst | G54: to be able to create UI/UX mockups directly within the tool | H54: So that | I54: US030-AC050 | J54: Can mockup low-fidelity screens in the tool directly (e.g. sketch wireframe) | K54: 1 | M54: 0
A55: 3. Analyze Requirements | B55: Draft Requirements Models | C55: Objectives, People, Systems, Data | D55: US030 | E55: Create UI/UX mockups | F55: Business Analyst | G55: to be able to create UI/UX mockups directly within the tool | H55: So that | I55: US030-AC051 | J55: Can mockup high-fidelity screens in the tool directly (e.g. real looking or interactive prototype designed as the page should look) | K55: 1 | M55: 0
A56: 3. Analyze Requirements | B56: Draft Requirements Models | C56: Objectives, People, Systems, Data | D56: US031 | E56: Import Models | F56: Business Analyst | G56: to be able to add models from other tools to supplement my requirements | H56: So that | I56: US031-AC052 | J56: Person viewing requirement can either view or easily access a model to gain context | K56: 8 | M56: 0
A57: 3. Analyze Requirements | B57: Draft Requirements Models | C57: Objectives, People, Systems, Data | D57: US031 | E57: Import Models | F57: Business Analyst | G57: to be able to add models from other tools to supplement my requirements | H57: So that | I57: US031-AC053 | J57: Can import existing models and maintain the individual elements of the model in the tool (import from Visio, excel, etc.) | K57: 2 | M57: 0
A58: 3. Analyze Requirements | B58: Draft Requirements Models | C58: Objectives, People, Systems, Data | D58: US032 | E58: Automatically create models from text | F58: Business Analyst | G58: to be able to automatically generate diagrams or models from written requirements | H58: So that | I58: US032-AC054 | J58: Can generate a visual representation of selected objects and their relationships (e.g. can generate a feature tree based on feature hierarchy defined in the tool) | K58: 2 | M58: 0
A59: 3. Analyze Requirements | B59: Trace Requirements Artifacts | C59: Map Relationships | D59: US034 | E59: Create object relationships | F59: Business Analyst | G59: to be able to create relationships between objects | H59: So that | I59: US034-AC055 | J59: Can create/edit/break a relationship from one object to multiple other objects | K59: 8 | M59: 0
A60: 3. Analyze Requirements | B60: Trace Requirements Artifacts | C60: Map Relationships | D60: US034 | E60: Create object relationships | F60: Business Analyst | G60: to be able to create relationships between objects | H60: So that | I60: US034-AC056 | J60: Can drag and drop to form relationships | K60: 2 | M60: 0
A61: 3. Analyze Requirements | B61: Trace Requirements Artifacts | C61: Map Relationships | D61: US034 | E61: Create object relationships | F61: Business Analyst | G61: to be able to create relationships between objects | H61: So that | I61: US034-AC057 | J61: While creating a relationship between objects, can specify the type of relationship to be created | K61: 5 | M61: 0
A62: 3. Analyze Requirements | B62: Trace Requirements Artifacts | C62: Map Relationships | D62: US034 | E62: Create object relationships | F62: Business Analyst | G62: to be able to create relationships between objects | H62: So that | I62: US034-AC058 | J62: Can create relationships in bulk (e.g. can relate one object to many other objects at once) | K62: 2 | M62: 0
A63: 3. Analyze Requirements | B63: Trace Requirements Artifacts | C63: Map Relationships | D63: US034 | E63: Create object relationships | F63: Business Analyst | G63: to be able to create relationships between objects | H63: So that | I63: US034-AC059 | J63: Can create a relationship between a requirement object and a visual model | K63: 8 | M63: 0
A64: 3. Analyze Requirements | B64: Trace Requirements Artifacts | C64: Map Relationships | D64: US034 | E64: Create object relationships | F64: Business Analyst | G64: to be able to create relationships between objects | H64: So that | I64: US034-AC060 | J64: Can relate a requirement to an element of a visual model (e.g. user story to process step, or user story to individual step in a use case, or a mock-up to a process step) | K64: 8 | M64: 0
A65: 3. Analyze Requirements | B65: Trace Requirements Artifacts | C65: Map Relationships | D65: US034 | E65: Create object relationships | F65: Business Analyst | G65: to be able to create relationships between objects | H65: So that | I65: US034-AC061 | J65: Can relate requirements to individual elements on a UI screen mockup | K65: 1 | M65: 0
A66: 3. Analyze Requirements | B66: Trace Requirements Artifacts | C66: Map Relationships | D66: US034 | E66: Create object relationships | F66: Business Analyst | G66: to be able to create relationships between objects | H66: So that | I66: US034-AC062 | J66: Can relate objects to test scripts (in the tool or in an integrated tool) | K66: 2 | M66: 0
A67: 3. Analyze Requirements | B67: Trace Requirements Artifacts | C67: Map Relationships | D67: US035 | E67: Associate requirements with stakeholders | F67: Business Analyst | G67: to be able to associate a stakeholder for each requirement | H67: So that | I67: US035-AC063 | J67: Can define stakeholders | K67: 2 | M67: =K67*L67 -> 0
A68: 3. Analyze Requirements | B68: Trace Requirements Artifacts | C68: Map Relationships | D68: US036 | E68: View traceability | F68: Business Analyst | G68: to be able to view the relationships between requirements objects | H68: So that | I68: US036-AC064 | J68: Can navigate through models, images, and requirements mapped to one another without losing context (can flip back and forth between objects I'm viewing) | K68: 2 | M68: 0
A69: 3. Analyze Requirements | B69: Trace Requirements Artifacts | C69: Map Relationships | D69: US036 | E69: View traceability | F69: Business Analyst | G69: to be able to view the relationships between requirements objects | H69: So that | I69: US036-AC065 | J69: From within a visual model, can easily navigate to items related to objects within the model (e.g. can view related prototypes by hovering over process steps) | K69: 1 | M69: 0
A70: 3. Analyze Requirements | B70: Trace Requirements Artifacts | C70: Map Relationships | D70: US036 | E70: View traceability | F70: Business Analyst | G70: to be able to view the relationships between requirements objects | H70: So that | I70: US036-AC066 | J70: Can view a list of all directly related objects from an object | K70: 5 | M70: 0
A71: 3. Analyze Requirements | B71: Trace Requirements Artifacts | C71: Map Relationships | D71: US036 | E71: View traceability | F71: Business Analyst | G71: to be able to view the relationships between requirements objects | H71: So that | I71: US036-AC067 | J71: Can view the hierarchy above and below a requirements object | K71: 2 | M71: 0
A72: 3. Analyze Requirements | B72: Trace Requirements Artifacts | C72: Map Relationships | D72: US036 | E72: View traceability | F72: Business Analyst | G72: to be able to view the relationships between requirements objects | H72: So that | I72: US036-AC068 | J72: Can view all indirect (inherited) relationships for an object | K72: 2 | M72: 0
A73: 3. Analyze Requirements | B73: Trace Requirements Artifacts | C73: Map Relationships | D73: US036 | E73: View traceability | F73: Business Analyst | G73: to be able to view the relationships between requirements objects | H73: So that | I73: US036-AC069 | J73: Can export relationship hierarchy trees to an Excel table (like a traceability matrix) | K73: 2 | M73: 0
A74: 3. Analyze Requirements | B74: Trace Requirements Artifacts | C74: Map Relationships | D74: US036 | E74: View traceability | F74: Business Analyst | G74: to be able to view the relationships between requirements objects | H74: So that | I74: US036-AC070 | J74: Can view object hierarchies as diagrams (such as a tree) | K74: 2 | M74: 0
A75: 3. Analyze Requirements | B75: Trace Requirements Artifacts | C75: Map Relationships | D75: US036 | E75: View traceability | F75: Business Analyst | G75: to be able to view the relationships between requirements objects | H75: So that | I75: US036-AC071 | J75: Detects inconsistencies in links (e.g., circular linking or linking in the "wrong" direction in the hierarchy) | K75: 1 | M75: 0
A76: 3. Analyze Requirements | B76: Trace Requirements Artifacts | C76: Perform Gap Analysis | D76: US037 | E76: Identify missing model relationships | F76: Business Analyst | G76: to be able to identify objects that do not have relationships needed for coverage | H76: So that | I76: US037-AC072 | J76: Can identify orphans from any object relationship type (e.g. can identify features that don't have business objectives, or user stories not associated to features, or process steps that don't have requirements, identify any object that doesn't have a parent) | K76: 5 | M76: 0
A77: 3. Analyze Requirements | B77: Trace Requirements Artifacts | C77: Perform Gap Analysis | D77: US037 | E77: Identify missing model relationships | F77: Business Analyst | G77: to be able to identify objects that do not have relationships needed for coverage | H77: So that | I77: US037-AC073 | J77: Can generate traceability reports that shows orphans (e.g. features that don't have objectives, etc.) | K77: 2 | M77: 0
A78: 3. Analyze Requirements | B78: Trace Requirements Artifacts | C78: Perform Gap Analysis | D78: US037 | E78: Identify missing model relationships | F78: Business Analyst | G78: to be able to identify objects that do not have relationships needed for coverage | H78: So that | I78: US037-AC074 | J78: Can track progress towards achieving full traceability with custom dashboard charts and graphs (e.g. can show bar chart with number of process steps still needing requirements, or show pie chart showing percentage of features that are mapped to business objectives) | K78: 1 | M78: 0
A79: 4. Specify Requirements | H79: So that | K79: Heading Fill
A80: 4. Specify Requirements | B80: Document Requirements | C80: All object types | D80: US038 | E80: Import requirements | F80: Business Analyst | G80: to be able to import requirements/objects to the tool from an external source | H80: So that | I80: =D80&"-"&"AC"&TEXT(ROW()-5,"000") -> US038-AC075 | J80: Can import objects from Microsoft Word (could be through direct integration with the tool through something like a Word add-in or automatically identify requirements from key words, structure, etc.) | K80: 3 | M80: 0
A81: 4. Specify Requirements | B81: Document Requirements | C81: All object types | D81: US038 | E81: Import requirements | F81: Business Analyst | G81: to be able to import requirements/objects to the tool from an external source | H81: So that | I81: US038-AC076 | J81: Can import objects from Microsoft Excel (e.g. use import template or format from tool, or enable user to select which column headings to map to which object field, or through direct integration with the tool (Excel add-in)) | K81: 5 | M81: 0
A82: 4. Specify Requirements | B82: Document Requirements | C82: All object types | D82: US038 | E82: Import requirements | F82: Business Analyst | G82: to be able to import requirements/objects to the tool from an external source | H82: So that | I82: US038-AC077 | J82: Can import objects from Microsoft Visio (e.g. recognize all objects on a Visio page upon upload and select which to add, or through direct integration with the tool (Visio add-in)) | K82: 2 | M82: 0
A83: 4. Specify Requirements | B83: Document Requirements | C83: All object types | D83: US038 | E83: Import requirements | F83: Business Analyst | G83: to attach AV files to my requirements objects | H83: So that | I83: US038-AC078 | J83: Can import external AV files and store them within the tool attached to objects (audio files, video files) | K83: 1 | M83: 0
A84: 4. Specify Requirements | B84: Document Requirements | C84: All object types | D84: US040 | E84: Create requirement | F84: Business Analyst | G84: to be able to add new requirements for my product | H84: So that | I84: US040-AC079 | J84: Enter individual requirements into the tool easily and with low user interaction with tool UI (low click count, etc.) | K84: 5 | M84: 0
A85: 4. Specify Requirements | B85: Document Requirements | C85: All object types | D85: US040 | E85: Create requirement | F85: Business Analyst | G85: to be able to add new requirements for my product | H85: So that | I85: US040-AC080 | J85: unique IDs are automatically generated for each created object | K85: 5 | M85: 0
A86: 4. Specify Requirements | B86: Document Requirements | C86: All object types | D86: US041 | E86: Create related objects | F86: Business Analyst | G86: to be able to add new related objects from an object | H86: So that | I86: US041-AC081 | J86: Can create a relationship link and specify the type for an object you are looking at | K86: 5 | M86: 0
A87: 4. Specify Requirements | B87: Document Requirements | C87: All object types | D87: US041 | E87: Create related objects | F87: Business Analyst | G87: to be able to add new related objects from an object | H87: So that | I87: US041-AC082 | J87: Can automatically create parent-child relationships by adding sub-objects | K87: 2 | M87: 0
A88: 4. Specify Requirements | B88: Document Requirements | C88: All object types | D88: US042 | E88: Spell/Grammar Check | F88: Business Analyst | G88: the requirement management tool to automatically check for spelling and grammar errors | H88: So that | I88: US042-AC083 | J88: Can run spelling and grammar check and highlight errors | K88: 2 | M88: 0
A89: 4. Specify Requirements | B89: Assess requirements quality | C89: Unambiguous, atomic, verifiable, Correct, complete | D89: US044 | E89: Check requirements for use of problematic words | F89: Business Analyst | G89: to be able to check a set of my requirements to identify use of certain problematic words | H89: So that | I89: US044-AC084 | J89: Can create a set of keywords that will be flagged if used in a requirement and user is notified (e.g. identify keywords that should be avoided because they are known for being ambiguous, or identify acronyms used that should be avoided) | K89: 1 | M89: 0
A90: 4. Specify Requirements | B90: Assess requirements quality | C90: Necessary | D90: US045 | E90: Merge duplicate requirements | F90: Business Analyst | G90: to be able to mark requirements as duplicates and merge them together | H90: So that | I90: US045-AC085 | J90: Can mark a requirement as duplicate and merge with another requirement | K90: 1 | M90: 0
A91: 4. Specify Requirements | B91: Assess requirements quality | C91: unambiguous | D91: US046 | E91: Map requirements' text to glossary terms | F91: Business Analyst | G91: to be able to see the definition of a word in a requirement object as it is defined in the project glossary | H91: So that | I91: US046-AC086 | J91: Can identify words within an object's text that exist in the glossary and enable user to view the definition | K91: 1 | M91: 0
A92: 4. Specify Requirements | B92: Produce requirements documents | C92: Populate documents | D92: US047 | E92: Populate requirements into a document for review | F92: Business Analyst | G92: to populate requirements documents with the requirements from the tool | H92: So that | I92: US047-AC087 | J92: Can create requirements document export templates (define custom format for word or excel) | K92: 2 | M92: 0
A93: 4. Specify Requirements | B93: Produce requirements documents | C93: Populate documents | D93: US047 | E93: Populate requirements into a document for review | F93: Business Analyst | G93: to be able to populate requirements into a document | H93: So that | I93: US047-AC088 | J93: Can export a select group of requirements to a document template | K93: 5 | M93: 0
A94: 4. Specify Requirements | B94: Produce requirements documents | C94: Populate documents | D94: US047 | E94: Populate requirements into a document for review | F94: Business Analyst | G94: to be able to populate requirements into a document | H94: So that | I94: US047-AC089 | J94: Highlight changes on exported document against a previous baseline | K94: 1 | M94: 0
A95: 4. Specify Requirements | B95: Produce requirements documents | C95: Export requirements | D95: US048 | E95: Export requirements | F95: Business Analyst | G95: to be able to export a select set of requirements objects | H95: So that | I95: US048-AC090 | J95: Can select attributes of objects to include in export | K95: 5 | M95: 0
A96: 4. Specify Requirements | B96: Produce requirements documents | C96: Export requirements | D96: US048 | E96: Export requirements | F96: Business Analyst | G96: to be able to export a select set of requirements objects | H96: So that | I96: US048-AC091 | J96: Can select objects to export | K96: 5 | M96: 0
A97: 4. Specify Requirements | B97: Produce requirements documents | C97: Export requirements | D97: US048 | E97: Export requirements | F97: Business Analyst | G97: to be able to export a select set of requirements objects | H97: So that | I97: US048-AC092 | J97: Can export to Excel | K97: 8 | M97: 0
A98: 4. Specify Requirements | B98: Produce requirements documents | C98: Export requirements | D98: US048 | E98: Export requirements | F98: Business Analyst | G98: to be able to export a select set of requirements objects | H98: So that | I98: US048-AC093 | J98: Can export to Word | K98: 8 | M98: 0
A99: 4. Specify Requirements | B99: Produce requirements documents | C99: Export requirements | D99: US048 | E99: Export requirements | F99: Business Analyst | G99: to be able to export a select set of requirements objects | H99: So that | I99: US048-AC094 | J99: Can export objects that represent visual models or images and have them display as images in the exported document | K99: 2 | M99: 0
A100: 4. Specify Requirements | B100: Document Requirements | C100: Elaborate Requirements | D100: US049 | E100: Link requirements to external documents | F100: Business Analyst | G100: to be able to associate an external document with a requirement | H100: So that | I100: US049-AC095 | J100: Can link an external document (i.e. document on SharePoint or internal database) to a requirement and access the link | K100: 2 | M100: 0
A101: 5. Validate Requirements | H101: So that | K101: Heading Fill
A102: 5. Validate requirements | B102: Review with stakeholders | C102: Confirm feature alignment with Business Objectives | D102: US052 | E102: Request review/approval | F102: Business Analyst | G102: I want to be able to select a set of requirements objects for users to review and approve within the tool | H102: So that | I102: =D102&"-"&"AC"&TEXT(ROW()-6,"000") -> US052-AC096 | J102: Can request for a set of requirements objects to be reviewed | K102: 2 | M102: 0
A103: 5. Validate requirements | B103: Review with stakeholders | C103: Confirm feature alignment with Business Objectives | D103: US052 | E103: Request review/approval | F103: Business Analyst | G103: I want to be able to select a set of requirements objects for users to review and approve within the tool | H103: So that | I103: US052-AC097 | J103: Can specify user as various standard roles, like reviewer, approver, etc. | K103: 2 | M103: 0
A104: 5. Validate requirements | B104: Review with stakeholders | C104: Confirm feature alignment with Business Objectives | D104: US052 | E104: Request review/approval | F104: Business Analyst | G104: I want to be able to select a set of requirements objects for users to review and approve within the tool | H104: So that | I104: US052-AC098 | J104: Users are notified when they have been selected to review a set of requirements | K104: 2 | M104: 0
A105: 5. Validate requirements | B105: Review with stakeholders | C105: Confirm feature alignment with Business Objectives | D105: US052 | E105: Request review/approval | F105: Business Analyst | G105: I want to be able to select a set of requirements objects for users to review and approve within the tool | H105: So that | I105: US052-AC099 | J105: Can track status on reviews | K105: 2 | M105: 0
A106: 5. Validate requirements | B106: Review with stakeholders | C106: Confirm feature alignment with Business Objectives | D106: US052 | E106: Request review/approval | F106: Business Analyst | G106: I want to be able to select a set of requirements objects for users to review and approve within the tool | H106: So that | I106: US052-AC100 | J106: Owner notified when a requirement has been actioned (reviewed, approved, rejected, commented on) | K106: 2 | M106: 0
A107: 5. Validate requirements | B107: Obtain Approval | C107: On individual requirements, on a set of requirements | D107: US053 | E107: Review/approve requirements | F107: Stakeholder | G107: to be able to review and approve or reject requirements in the tool | H107: So that | I107: US053-AC101 | J107: Can review sets of requirements in the tool and indicate they've been reviewed | K107: 2 | M107: 0
A108: 5. Validate requirements | B108: Obtain Approval | C108: On individual requirements, on a set of requirements | D108: US053 | E108: Review/approve requirements | F108: Stakeholder | G108: to be able to review and approve or reject requirements in the tool | H108: So that | I108: US053-AC102 | J108: Can approve one or more requirements | K108: 2 | M108: 0
A109: 5. Validate requirements | B109: Obtain Approval | C109: On individual requirements, on a set of requirements | D109: US053 | E109: Review/approve requirements | F109: Stakeholder | G109: to be able to review and approve or reject requirements in the tool | H109: So that | I109: US053-AC103 | J109: Can reject one or more requirements as needing more work | K109: 2 | M109: 0
A110: 5. Validate requirements | B110: Review with stakeholders | C110: Capture Feedback | D110: US054 | E110: Provide feedback | F110: Stakeholder | G110: to be able to provide feedback about requirements | H110: So that | I110: US054-AC104 | J110: Can add feedback commentary on requirements | K110: 2 | M110: 0
A111: 5. Validate requirements | B111: Review with stakeholders | C111: Capture Feedback | D111: US056 | E111: Edit rejected requirements | F111: Business Analyst | G111: to be able to edit rejected requirements and resubmit them for approval | H111: So that | I111: US056-AC105 | J111: Once a requirement has been rejected, then edited based on feedback, user can submit for iterative reviews until approval is received (and store a history of the iterative reviews) | K111: 2 | M111: 0
A112: 5. Validate Requirements | B112: Review with stakeholders | C112: Capture Feedback | D112: US057 | E112: Import edited exported documents | F112: Business Analyst | G112: to be able to import exported requirements documents back into the system | H112: So that | I112: US057-AC106 | J112: If items have been exported from the tool and edited, then changes can be re-imported back into the tool | K112: 2 | M112: 0
A113: 5. Validate requirements | B113: Prioritize Requirements | C113: Assign Priority Score | D113: US058 | E113: Set priority on requirements | F113: Product manager, Product owner | G113: to be able to prioritize my requirements | H113: So that | I113: US058-AC107 | J113: Can set a priority on requirements | K113: 5 | M113: 0
A114: 5. Validate requirements | B114: Prioritize Requirements | C114: Assign Priority Score | D114: US058 | E114: Set priority on requirements | F114: Product manager, Product owner | G114: to be able to prioritize my requirements | H114: So that | I114: US058-AC108 | J114: Can specify custom prioritization scale/mechanism | K114: 2 | M114: 0
A115: 5. Validate requirements | B115: Prioritize Requirements | C115: Assign Priority Score | D115: US059 | E115: Prioritize backlog | F115: Product Owner | G115: to be able to keep my backlog of user stories constantly prioritized | H115: So that | I115: US059-AC109 | J115: Can assign stack ranking to user stories | K115: 2 | M115: 0
A116: 5. Validate requirements | B116: Prioritize Requirements | C116: Assign Priority Score | D116: US059 | E116: Prioritize backlog | F116: Product Owner | G116: to be able to keep my backlog of user stories constantly prioritized | H116: So that | I116: US059-AC110 | J116: Can easily assign/update stack ranking in the interface (e.g. drag and drop to re-order) | K116: 2 | M116: 0
A117: 6. Manage Requirements | H117: So that | K117: Heading Fill
A118: 6. Manage Requirements | B118: Administer Project | C118: Start and manage issues list | D118: US061 | E118: Manage project issues | F118: Business Analyst | G118: to store all of the issues for my project in an issues list that others can view and update | H118: So that | I118: =D118&"-"&"AC"&TEXT(ROW()-7,"000") -> US061-AC111 | J118: Can add project issues (individually, in bulk through Word or Excel, from e-mail, directly from a requirement) | K118: 2 | M118: 0
A119: 6. Manage Requirements | B119: Administer Project | C119: Start and manage issues list | D119: US061 | E119: Manage project issues | F119: Business Analyst | G119: to store all of the issues for my project in an issues list that others can view and update | H119: So that | I119: US061-AC112 | J119: Can relate (link) an issue to one or more requirements | K119: 2 | M119: 0
A120: 6. Manage Requirements | B120: Administer Project | C120: Start and manage issues list | D120: US062 | E120: Link requirements to external issues list | F120: Business Analyst | G120: to be able to link a requirement to a specific issue in another tool | H120: So that | I120: US062-AC113 | J120: Can integrate with another issue tracking tool (e.g. SharePoint, can link a requirement to one or more issues in a collaboration or issue tracking tool with a URL) | K120: 2 | M120: 0
A121: 6. Manage Requirements | B121: Track health metrics | C121: issues count | D121: US063 | E121: Issue tracking functionality | F121: Business Analyst | G121: to track issues associated with my requirements | H121: So that | I121: US063-AC114 | J121: Tool can generate metrics based on user specified attributes (ex: issue status, date opened, time to close, etc.) | K121: 1 | M121: 0
A122: 6. Manage Requirements | B122: Update Requirements | C122: Maintain Documentation | D122: US064 | E122: Versioning - lock for edit/check out | F122: Business Analyst | G122: to be able to restrict another user from editing a requirement while I'm editing in online mode | H122: So that | I122: US064-AC115 | J122: Tool referees competing changes to a requirement in a logical way" or something | K122: 3 | M122: 0
A123: 6. Manage Requirements | B123: Update Requirements | C123: Maintain Documentation | D123: US066 | E123: Versioning - editing local copies | F123: Business Analyst | G123: to be able to work on requirements offline (i.e. while disconnected from the requirements management tool server) and connect to upload my changes when I am done | H123: So that | I123: US066-AC116 | J123: Can work in an offline/disconnected state of the client and synchronize the updates to the tool when back online (working in offline doc and syncing back is covered in another AC under validate) | K123: 2 | M123: 0
A124: 6. Manage Requirements | B124: Update Requirements | C124: Track Version History | D124: US067 | E124: Establish Baseline | F124: Business Analyst | G124: to be able to establish a baseline set of requirements | H124: So that | I124: =D124&"-"&"AC"&TEXT(ROW()-7,"000") -> US067-AC117 | J124: Can establish a baseline on a set of requirements | K124: 2 | M124: =K124*L124 -> 0
A125: 6. Manage Requirements | B125: Update Requirements | C125: Track Version History | D125: US067 | E125: Establish Baseline | F125: Business Analyst | G125: to be able to establish a baseline set of requirements | H125: So that | I125: US067-AC118 | J125: Can compare current version against baseline | K125: 2 | M125: 0
A126: 6. Manage Requirements | B126: Update Requirements | C126: Track version history | D126: US068 | E126: Identify new requirements | F126: Business Analyst | G126: to be able to identify any new requirements that are added to a set after baseline | H126: So that | I126: US068-AC119 | J126: Flags requirements created after baseline as new | K126: 2 | M126: 0
A127: 6. Manage Requirements | B127: Update Requirements | C127: Track version history | D127: US068 | E127: Identify new requirements | F127: Business Analyst | G127: to be able to identify any new requirements that are added to a set after baseline | H127: So that | I127: US068-AC120 | J127: Can mark requirement as acknowledged (so that it's no longer flagged as new) | K127: 1 | M127: 0
A128: 6. Manage Requirements | B128: Update Requirements | C128: Track version history | D128: US069 | E128: Identifying edited requirements | F128: Business Analyst | G128: to be able to identify any requirements that have been updated after baseline | H128: So that | I128: US069-AC121 | J128: Can notify users that a requirement has been edited | K128: 1 | M128: 0
A129: 6. Manage Requirements | B129: Update Requirements | C129: Track version history | D129: US070 | E129: Audit trail | F129: Business Analyst | G129: the tool to maintain a history of the changes that are made to any requirements objects | H129: So that | I129: US070-AC122 | J129: Tool retains all previous versions of requirements objects | K129: 3 | M129: 0
A130: 6. Manage Requirements | B130: Update Requirements | C130: Track version history | D130: US070 | E130: Audit trail | F130: Business Analyst | G130: the tool to maintain a history of the changes that are made to any requirements objects | H130: So that | I130: US070-AC123 | J130: Tool logs author, date, and time of all actions taken on objects | K130: 3 | M130: 0
A131: 6. Manage Requirements | B131: Update Requirements | C131: Track version history | D131: US070 | E131: Audit trail | F131: Business Analyst | G131: the tool to maintain a history of the changes that are made to any requirements objects | H131: So that | I131: US070-AC124 | J131: Can view previous versions of a selected object | K131: 1 | M131: 0
A132: 6. Manage Requirements | B132: Update Requirements | C132: Track version history | D132: US070 | E132: Audit trail | F132: Business Analyst | G132: the tool to maintain a history of the changes that are made to any requirements objects | H132: So that | I132: US070-AC125 | J132: Can view audit log for a given object (log of author, date and time of all actions taken) | K132: 2 | M132: 0
A133: 6. Manage Requirements | B133: Update Requirements | C133: Maintain Documentation | D133: US071 | E133: Delete requirements | F133: Business Analyst | G133: to be able to delete requirements | H133: So that | I133: US071-AC126 | J133: Can delete objects | K133: 2 | M133: 0
A134: 6. Manage Requirements | B134: Update Requirements | C134: Maintain Documentation | D134: US071 | E134: Delete requirements | F134: Business Analyst | G134: to be able to delete requirements | H134: So that | I134: US071-AC127 | J134: Can alert user of other requirements that are linked to objects that are to-be deleted | K134: 2 | M134: 0
A135: 6. Manage Requirements | B135: Update Requirements | C135: Track version history | D135: US072 | E135: Retain history of deleted requirements | F135: Business Analyst | G135: to be able to access requirements that have been deleted | H135: So that | I135: US072-AC128 | J135: Can view objects that have been deleted (so tool must store) | K135: 2 | M135: 0
A136: 6. Manage Requirements | B136: Update Requirements | C136: Track version history | D136: US072 | E136: Retain history of deleted requirements | F136: Business Analyst | G136: to be able to access requirements that have been deleted | H136: So that | I136: US072-AC129 | J136: Can restore an object that has been deleted | K136: 2 | M136: 0
A137: 6. Manage Requirements | B137: Update Requirements | C137: Maintain Documentation | D137: US073 | E137: Edit individual objects | F137: Business Analyst | G137: to be able to edit requirements | H137: So that | I137: US073-AC130 | J137: Can change attribute values of objects | K137: 8 | M137: 0
A138: 6. Manage Requirements | B138: Update Requirements | C138: Maintain Documentation | D138: US073 | E138: Edit individual objects | F138: Business Analyst | G138: to be able to edit requirements | H138: So that | I138: US073-AC131 | J138: Can indicate which attributes of an object can be editable after creation | K138: 2 | M138: 0
A139: 6. Manage Requirements | B139: Update Requirements | C139: Maintain Documentation | D139: US073 | E139: Edit individual objects | F139: Business Analyst | G139: to be able to edit requirements | H139: So that | I139: US073-AC132 | J139: Can undo the immediately previous change | K139: 2 | M139: 0
A140: 6. Manage Requirements | B140: Update Requirements | C140: Maintain Documentation | D140: US074 | E140: Edit many objects | F140: Business Analyst | G140: to be able to edit requirements many requirements at once | H140: So that | I140: US074-AC133 | J140: Can edit multiple requirements in a selected set in-line (e.g. like in a an excel spreadsheet or grid) without having to click into each individual object | K140: 2 | M140: 0
A141: 6. Manage Requirements | B141: Update Requirements | C141: Maintain Documentation | D141: US074 | E141: Edit many objects | F141: Business Analyst | G141: to be able to edit requirements many requirements at once | H141: So that | I141: US074-AC134 | J141: Can bulk-edit requirement attributes (can select multiple requirements and change a field to a specified value for all selected requirements) | K141: 2 | M141: 0
A142: 6. Manage Requirements | B142: Evaluate impacts of change | C142: Identify affected areas | D142: US075 | E142: Perform impact analysis | F142: Business Analyst | G142: to be able to identify the impact of a change on a requirement | H142: So that | I142: US075-AC135 | J142: When an object is changed, user can choose to highlight suspect relationships | K142: 1 | M142: 0
A143: 6. Manage Requirements | B143: Evaluate impacts of change | C143: Identify affected areas | D143: US075 | E143: Perform impact analysis | F143: Business Analyst | G143: to be able to identify the impact of a change on a requirement | H143: So that | I143: US075-AC136 | J143: Can clear suspect flags when related objects are changed | K143: 1 | M143: 0
A144: 6. Manage Requirements | B144: Track health metrics | C144: Track health metrics | D144: US076 | E144: Metrics reporting | F144: Business Analyst | G144: to be able to report on metrics | H144: So that | I144: US076-AC137 | J144: Can create custom filters with objects and attributes to report on (e.g. number of user stories that do not have acceptance criteria, number of items with attached open issues, report of any object by status, etc.) | K144: 5 | M144: 0
A145: 6. Manage Requirements | B145: Track health metrics | C145: Track health metrics | D145: US076 | E145: Metrics reporting | F145: Business Analyst | G145: to be able to report on metrics | H145: So that | I145: US076-AC138 | J145: Can download reports | K145: 2 | M145: 0
A146: 6. Manage Requirements | B146: Track health metrics | C146: Track health metrics | D146: US076 | E146: Metrics reporting | F146: Business Analyst | G146: to be able to report on metrics | H146: So that | I146: US076-AC139 | J146: Can deliver reports via email | K146: 1 | M146: 0
A147: 6. Manage Requirements | B147: Track health metrics | C147: Track health metrics | D147: US076 | E147: Metrics reporting | F147: Business Analyst | G147: to be able to report on metrics | H147: So that | I147: US076-AC140 | J147: Can export report data (excel, word) | K147: 2 | M147: 0
A148: 6. Manage Requirements | B148: Track health metrics | C148: Track health metrics | D148: US077 | E148: Metrics reporting - charts/graphs | F148: Business Analyst | G148: to be able to display health metrics visually | H148: So that | I148: US077-AC141 | J148: Can generate charts/graphs to visually display selected metrics | K148: 2 | M148: 0
A149: 6. Manage Requirements | B149: Track health metrics | C149: Track health metrics | D149: US077 | E149: Metrics reporting - charts/graphs | F149: Business Analyst | G149: to be able to display health metrics visually | H149: So that | I149: US077-AC142 | J149: Can create/customize a project metrics dashboard | K149: 1 | M149: 0
A150: 6. Manage Requirements | B150: Track health metrics | C150: Track health metrics | D150: US077 | E150: Metrics reporting - charts/graphs | F150: Business Analyst | G150: to be able to display health metrics visually | H150: So that | I150: US077-AC143 | J150: Can create burn down reports | K150: 2 | M150: 0
A151: 6. Manage Requirements | B151: Create test plans | C151: Create UAT scripts | D151: US078 | E151: Auto generate a draft UAT script for a set of requirements | F151: Business Analyst | G151: to be able to auto generate a draft test script from a set of requirements | H151: So that | I151: US078-AC144 | J151: Can convert process flows, user stories or use cases (or something similar) into test scripts | K151: 1 | M151: 0
A152: 6. Manage Requirements | B152: Update Requirements | C152: Maintain Documentation | D152: US079 | E152: Versioning - Roll back | F152: Business Analyst | G152: to be able to revert requirements, models or documents back to a previous version | H152: So that | I152: US079-AC145 | J152: Can select a previous version of a requirement, model, or document as the current version | K152: 2 | M152: 0
A153: 6. Manage Requirements | B153: Update Requirements | C153: Maintain Documentation | D153: US079 | E153: Versioning - Roll back | F153: Business Analyst | G153: to be able to revert requirements, models or documents back to a previous version | H153: So that | I153: US079-AC146 | J153: Can revert all artifacts within the project to a baseline version | K153: 1 | M153: 0
A154: 6. Manage Requirements | B154: Create test plans | C154: Create test plans | D154: US080 | E154: Create test plans | F154: Business Analyst | G154: to be able to create test plans based on my requirements | H154: So that | I154: US080-AC147 | J154: Create a test suite based on selecting a group of requirements and using the linked tests (can be done in tool or via an integration) | K154: 1 | M154: 0
A155: 6. Manage Requirements | B155: Update Requirements | C155: Maintain Documentation | D155: US081 | E155: View new and changed requirements | F155: Business Analyst | G155: to be able to filter through new/changed requirements | H155: So that | I155: US081-AC148 | J155: Can generate views of requirements based on timing of actions taken (e.g. view all new requirements added in the last week) | K155: 1 | M155: 0
A156: 7. User Experience | H156: So that | K156: Heading Fill
A157: 7. User Experience | B157: User functions | C157: Copy/cut/paste | D157: US082 | E157: Copy/cut/paste | F157: Tool User | G157: cut and paste between fields within the tool | H157: So that | I157: =D157&"-"&"AC"&TEXT(ROW()-8,"000") -> US082-AC149 | J157: Can copy, cut and paste within the tool and from external applications (and formatting can be maintained) | K157: 5 | M157: 0
A158: 7. User Experience | B158: User functions | C158: Save | D158: US083 | E158: Auto-save | F158: Tool User | G158: save all my edits instantly | H158: So that | I158: US083-AC150 | J158: Tool has mechanisms in place to make sure work is not lost by accident or on system failure or something | K158: 3 | M158: 0
A159: 7. User Experience | B159: Non-functional requirements | C159: Scalability | D159: US084 | E159: Scale to volumes | F159: Tool User | G159: The tool scales with increasing number of input requirements | H159: So that | I159: US084-AC151 | J159: Vendor can share an example/case study (doesn't have to be formal, could be them telling a story) where tool is still manageable with >10,000 requirements objects (i.e., how does the tool response times compare with 1000 vs. 15000 vs. 30000 requirements?) | K159: 8 | M159: 0
A160: 7. User Experience | B160: Adoption | C160: User documentation | D160: US085 | E160: Availability of documentation (either online, soft-copy, or hard-copy) | F160: Tool User | G160: to be able to access a variety of documentation about how to use the tool easily | H160: So that | I160: US085-AC152 | J160: Configuration and basic use documentation is readily available in a variety of forms | K160: 2 | M160: 0
A161: 7. User Experience | B161: Adoption | C161: Ease of use | D161: US086 | E161: Instinctually easy to use | F161: Tool User | G161: to be able to use the tool easily just based on instinct | H161: So that | I161: US086-AC153 | J161: Tool is intuitive and easy to learn (subjective based on evaluator's opinion) | K161: 5 | M161: 0
A162: 7. User Experience | B162: User functions | C162: Find and replace | D162: US087 | E162: Find and replace | F162: Tool user | G162: to be able to find and replace within the tool | H162: So that | I162: US087-AC154 | J162: Can find and replace | K162: 2 | M162: 0
A163: 7. User Experience | B163: Adoption | C163: Support | D163: US088 | E163: Online support | F163: Tool user | G163: to be able to get help through online support (e.g., message board, knowledge base, users group, wiki, etc.) | H163: So that | I163: US088-AC155 | J163: Adequate online support resources are available | K163: 2 | M163: 0
A164: 7. User Experience | B164: Adoption | C164: Support | D164: US089 | E164: Learning aids | F164: Tool user | G164: to be able to use learning aids (e.g., sample requirements, workflow tutorial, etc.) to better learn how to use the tool | H164: So that | I164: US089-AC156 | J164: Learning aids are available | K164: 2 | M164: 0
A165: 7. User Experience | B165: Adoption | C165: Support | D165: US091 | E165: System help | F165: Tool user | G165: to have context-sensitive help within the system | H165: So that | I165: US091-AC157 | J165: Context specific help within tool while looking at screens is readily available | K165: 1 | M165: 0
A166: 7. User Experience | B166: Adoption | C166: Support | D166: US093 | E166: Training classes | F166: Tool user | G166: to be able to attend training classes for the tool | H166: So that | I166: US093-AC158 | J166: Training classes are available for the tool | K166: 1 | M166: 0
A167: 7. User Experience | D167: US094 | E167: Rich text formatting | F167: Tool user | G167: to be able to format the text of my requirements | H167: So that | I167: US094-AC159 | J167: Can have rich formatting for text (e.g. Can format a selection of text, Choose font size and type, bold, italicize, underline, Choose text color, Highlight requirement text, Can use special characters) | K167: 2 | M167: 0
A168: 7. User Experience | B168: User interface | C168: Attributes | D168: US095 | E168: Custom user interface | F168: Tool user | G168: to modify the user interface | H168: So that | I168: US095-AC160 | J168: Can save a custom view of selected attributes in the user interface (e.g. you've customized what fields are seen when creating an object, or you've customized the columns that display in a list of requirements, and you can come back to that same view later) | K168: 2 | M168: 0
A169: 7. User Experience | B169: User interface | C169: Attributes | D169: US095 | E169: Custom user interface | F169: Tool user | G169: to modify the user interface | H169: So that | I169: US095-AC161 | J169: Can select menu items to view in the user interface and save my settings | K169: 1 | M169: 0
A170: 7. User Experience | B170: User interface | C170: Attributes | D170: US095 | E170: Custom user interface | F170: Tool user | G170: to modify the user interface | H170: So that | I170: US095-AC162 | J170: Can save custom view as "public" for anyone in my project to use | K170: 1 | M170: 0
A171: 7. User Experience | B171: User interface | C171: Attributes | D171: US095 | E171: Custom user interface | F171: Tool user | G171: to modify the user interface | H171: So that | I171: US095-AC163 | J171: Can assign hot keys and functions to buttons | K171: 1 | M171: 0
A172: 7. User Experience | B172: User interface | C172: Attributes | D172: US095 | E172: Custom user interface | F172: Tool user | G172: to modify the user interface | H172: So that | I172: US095-AC164 | J172: Predefined hotkeys exist like standard window commands, ctrl+c, ctrl+v, ctrl+z | K172: 1 | M172: 0
A173: 7. User Experience | B173: User interface | C173: filter | D173: US096 | E173: Filter views of requirements | F173: Tool user | G173: to be able to customize the way my requirements are viewed based on criteria that I select | H173: So that | I173: US096-AC165 | J173: Filter a view of requirements by any attribute (queries) - including contains filters (e.g. title contains the word red) | K173: 5 | M173: 0
A174: 7. User Experience | B174: User interface | C174: filter | D174: US097 | E174: Save filtered view | F174: Tool user | G174: to be able to create custom views of the filters I use most often | H174: So that | I174: US097-AC166 | J174: Save private custom views of requirements (e.g., analyst makes custom filtered view and plans to use often in the future - via saved query) | K174: 2 | M174: 0
A175: 7. User Experience | B175: User interface | C175: filter | D175: US096 | E175: Filter views of requirements | F175: Tool user | G175: to be able to define a custom view of my requirements for my project team | H175: So that | I175: US096-AC167 | J175: Can save the filter settings I have selected for others in my project to use | K175: 1 | M175: 0
A176: 7. User Experience | B176: User interface | C176: sort | D176: US098 | E176: Sort | F176: Tool user | G176: to be able to sort the order my requirements are displayed | H176: So that | I176: US098-AC168 | J176: Can sort a list of requirements by any of the attributes or another object type's value (for example, sort requirements by L1 feature value) | K176: 5 | M176: 0
A177: 7. User Experience | B177: User interface | C177: Filter | D177: US099 | E177: Custom Filter Functionality | F177: Tool user | G177: to be able to apply multiple filters to multiple attributes at the same time | H177: So that | I177: US099-AC169 | J177: Can filter using multiple attributes at the same time | K177: 2 | M177: 0
A178: 7. User Experience | B178: User interface | C178: Search | D178: US100 | E178: Search requirements by keyword | F178: Tool user | G178: to be able to search for requirements by keyword | H178: So that | I178: US100-AC170 | J178: Can search requirements by keyword | K178: 8 | M178: 0
A179: 7. User Experience | B179: User interface | C179: Search | D179: US100 | E179: Search requirements by keyword | F179: Tool user | G179: to be able to search for requirements by keyword | H179: So that | I179: US100-AC171 | J179: Can support Boolean searches | K179: 2 | M179: 0
A180: 7. User Experience | B180: User interface | C180: Search | D180: US100 | E180: Search requirements by keyword | F180: Tool user | G180: to be able to search for requirements by keyword | H180: So that | I180: US100-AC172 | J180: Can support nesting in searches (use of parentheses to organize a search statement that uses more than one kind of connector or operator (AND, OR, NOT) e.g. "sales feature" AND ("quoting" OR "ordering") | K180: 1 | M180: 0
A181: 7. User Experience | B181: User interface | C181: Search | D181: US100 | E181: Search requirements by keyword | F181: Tool user | G181: to be able to search for requirements by keyword | H181: So that | I181: US100-AC173 | J181: Can search using any of requirement's attributes | K181: 2 | M181: 0
A182: 8. Administer Tool | H182: So that | K182: Heading Fill
A183: 8. Administer Tool | B183: Manage users | C183: Permissions | D183: US101 | E183: Manage access permissions for groups of users | F183: Administrator | G183: to manage access permissions for groups of users | H183: So that | I183: =D183&"-"&"AC"&TEXT(ROW()-9,"000") -> US101-AC174 | J183: Can assign users to groups and set permissions based on group | K183: 2 | M183: =K183*L183 -> 0
A184: 8. Administer Tool | B184: Manage users | C184: Permissions | D184: US101 | E184: Manage access permissions for groups of users | F184: Administrator | G184: to manage access permissions for groups of users | H184: So that | I184: US101-AC175 | J184: Can create custom role definitions | K184: 2 | M184: 0
A185: 8. Administer Tool | B185: Manage users | C185: Permissions | D185: US101 | E185: Manage access permissions for groups of users | F185: Administrator | G185: to manage access permissions for groups of users | H185: So that | I185: US101-AC176 | J185: Comes with predefined custom role definitions | K185: 2 | M185: 0
A186: 8. Administer Tool | B186: Manage users | C186: Permissions | D186: US101 | E186: Manage access permissions for groups of users | F186: Administrator | G186: to setup users | H186: So that | I186: US101-AC177 | J186: Can create user accounts | K186: 8 | M186: 0
A187: 8. Administer Tool | B187: Manage users | C187: Permissions | D187: US103 | E187: Manage role permissions | F187: Administrator | G187: to be able to specify which roles have permissions to certain actions within the tool | H187: So that | I187: US103-AC178 | J187: Can assign users to established roles in the system | K187: 8 | M187: 0
A188: 8. Administer Tool | B188: Manage users | C188: Permissions | D188: US103 | E188: Manage role permissions | F188: Administrator | G188: to be able to specify which roles have permissions to certain actions within the tool | H188: So that | I188: US103-AC179 | J188: Can specify custom privileges based on defined roles (e.g. can assign users with read only permissions, read and edit permissions, can restrict users from viewing anything in draft status) | K188: 2 | M188: 0
A189: 8. Administer Tool | B189: Manage users | C189: Authentication | D189: US104 | E189: ​Mixed authentication | F189: Administrator | G189: to setup mixed authentication logins for my users | H189: So that | I189: US104-AC180 | J189: Can use active directory login | K189: 1 | M189: 0
A190: 8. Administer Tool | B190: Setup | C190: Install method | D190: US105 | E190: Hosted | F190: Organization | G190: to use a tool that is hosted in the cloud | H190: So that | I190: =D190&"-"&"AC"&TEXT(ROW()-9,"000") -> US105-AC181 | J190: Tool is hosted | K190: 5 | M190: 0
A191: 8. Administer Tool | B191: Setup | C191: Install method | D191: US106 | E191: Installed central repository (not-hosted) | F191: Organization | G191: to use a tool that is installed in a central repository (not-hosted) | H191: So that | I191: US106-AC182 | J191: Tool can store data in a central, non-hosted repository (out of box) | K191: 2 | M191: 0
A192: 8. Administer Tool | B192: Manage users | C192: Concurrent users | D192: US107 | E192: Allow multiple concurrent users | F192: Organization | G192: to use a tool that allows multiple users to work concurrently on a given project | H192: So that | I192: US107-AC183 | J192: Multiple users can work concurrently on a single project within the tool | K192: 8 | M192: 0
A193: 8. Administer Tool | B193: Login | C193: SSO | D193: US108 | E193: Single Sign On | F193: Administrator | G193: to set up single sign on capability for my tool users | H193: So that | I193: US108-AC184 | J193: Can set up SSO | K193: 2 | M193: 0
A194: 8. Administer Tool | B194: Manage users | C194: licenses | D194: US109 | E194: ​License activity status reporting | F194: Administrator | G194: to generate license activity reports | H194: So that | I194: US109-AC185 | J194: Can generate report indicating license volume and activity | K194: 1 | M194: 0
A195: 8. Administer Tool | B195: Administration | C195: Maintenance | D195: US110 | E195: Ease of administration (e.g., database maintenance, installing upgrades, etc.) | F195: Administrator | G195: a tool that is easy to install and maintain | H195: So that | I195: US110-AC186 | J195: Tool maintain is "reasonable" (subjective based on examples) | K195: 2 | M195: 0
A196: 8. Administer Tool | B196: Setup | C196: installed client | D196: US111 | E196: Installed client only | F196: Organization | G196: to use a tool that operates only through an installed client | H196: So that | I196: US111-AC187 | J196: Tool operates through an installed local client | K196: 1 | M196: 0
A197: 8. Administer Tool | B197: Integration | C197: Integration | D197: US112 | E197: Automated Integration | F197: Business Analyst | G197: the tool to have automated integration with other systems being utilized throughout the project | H197: So that | I197: US112-AC188 | J197: Can integrate with Test Management Systems (list them) | K197: 2 | M197: 0
A198: 8. Administer Tool | B198: Integration | C198: Integration | D198: US112 | E198: Automated Integration | F198: Business Analyst | G198: the tool to have automated integration with other systems being utilized throughout the project | H198: So that | I198: US112-AC189 | J198: Can integrate with Development tools/environments (e.g., TFS, Rally) (list them) | K198: 2 | M198: 0
A199: 8. Administer Tool | B199: Integration | C199: Integration | D199: US112 | E199: Automated Integration | F199: Business Analyst | G199: the tool to have automated integration with other systems being utilized throughout the project | H199: So that | I199: US112-AC190 | J199: Can directly integrate with revision control system for any linked documents - (e.g., SharePoint, CVS, SourceSafe, etc.) (list them) - this doesn't include just copying a link into a data field | K199: 2 | M199: 0
A200: 8. Administer Tool | B200: Integration | C200: Integration | D200: US112 | E200: Automated Integration | F200: Business Analyst | G200: the tool to have automated integration with other systems being utilized throughout the project | H200: So that | I200: US112-AC191 | J200: ​Integration to any tools is configurable, allowing definable mapping of object types between the two products. | K200: 2 | M200: 0
... 17 more rows

Sheet Summary Dashboard
M1: Rank | N1: Tool Name (Tabs) | O1: Tool Name, Vendor | P1: Total Score | Q1: Average Score (Weighted)
M2: 21 | N2: Innoslate | O2: Innoslate, SPEC Innovations | P2: =SUM(INDIRECT(N2&"!$M$3:$M$218")) -> 914.00 | Q2: =AVERAGE(INDIRECT(N2&"!$M$3:$M$217")) -> 4.42
M3: 20 | N3: Workspace.com | O3: Workspace.com, workspace.com | P3: =SUM(INDIRECT(N3&"!$M$3:$M$218")) -> 927.00 | Q3: =AVERAGE(INDIRECT(N3&"!$M$3:$M$217")) -> 4.48
M4: 19 | N4: Aha! | O4: Aha!, Aha! Labs | P4: =SUM('Aha!'!M3:M217) -> 1027.00 | Q4: =AVERAGE(('Aha!'!M3:M217)) -> 4.96
M5: 17 | N5: JIRA | O5: JIRA, Atlassian | P5: =SUM(INDIRECT(N5&"!$M$3:$M$218")) -> 1105.00 | Q5: =AVERAGE(INDIRECT(N5&"!$M$3:$M$217")) -> 5.34
M6: 16 | N6: Innovator | O6: Innovator for Business Analysts, MID Gmbh | P6: 1109.00 | Q6: 5.36
M7: 14 | N7: TFS | O7: Team Foundation Server/Visual Studio Team Services, Microsoft | P7: 1148.78 | Q7: 5.55
M8: 18 | N8: Polarion | O8: Polarion Requirements, Polarion Software | P8: 1150.50 | Q8: 5.56
M9: 15 | N9: Kovair | O9: Kovair Global Lifecycle/ALM solution, Kovair Software | P9: =SUM(INDIRECT(N9&"!$M$3:$M$218")) -> 1162.00 | Q9: 5.61
M10: 13 | N10: Cockpit | O10: Cockpit, Cognition | P10: 1170.50 | Q10: 5.65
M11: 12 | N11: inSTEP RED | O11: in-STEP RED, microTool | P11: =SUM('inSTEP RED'!$M$3:$M$217) -> 1195.00 | Q11: =AVERAGE('inSTEP RED'!$M$3:$M$216) -> 5.78
M12: 11 | N12: DimensionsRM | O12: Serena Dimensions RM, Serena Software | P12: 1273.00 | Q12: 6.15
M13: 10 | N13: Cradle | O13: Cradle, 3SL | P13: 1290.00 | Q13: 6.23
M14: 9 | N14: Enterprise Architect | O14: Enterprise Architect, Sparx Systems | P14: =SUM('Enterprise Architect'!$M$3:$M$217) -> 1300.50 | Q14: =AVERAGE('Enterprise Architect'!$M$3:$M$216) -> 6.29
M15: 8 | N15: TestTrack | O15: TestTrack, Seapine Software | P15: 1310.00 | Q15: 6.33
M16: 7 | N16: Caliber | O16: Caliber, Micro Focus | P16: 1331.00 | Q16: 6.43
M17: 6 | N17: iRise with JIRA | O17: iRise, iRise integrated with JIRA | P17: =SUM('iRise with JIRA'!M3:M217) -> 1364.00 | Q17: =AVERAGE(('iRise with JIRA'!M3:M217)) -> 6.59
M18: 5 | N18: Visure | O18: Visure Requirements, Visure Solutions | P18: =SUM(INDIRECT(N18&"!$M$3:$M$218")) -> 1393.00 | Q18: =AVERAGE(INDIRECT(N18&"!$M$3:$M$217")) -> 6.73
M19: 4 | N19: Jama | O19: Jama, Jama Software | P19: =SUM(INDIRECT(N19&"!$M$3:$M$218")) -> 1399.50 | Q19: =AVERAGE(INDIRECT(N19&"!$M$3:$M$217")) -> 6.76
M20: 3 | N20: Blueprint | O20: Blueprint, Blueprint Software Systems | P20: =SUM(INDIRECT(N20&"!$M$3:$M$218")) -> 1454.00 | Q20: =AVERAGE(INDIRECT(N20&"!$M$3:$M$217")) -> 7.02
M21: 2 | N21: Modern Requirements Tool Suite | O21: InteGREAT Studio, InteGREAT4TFS, and SmartOffice4TFS by eDev Technologies, backed by TFS/Visual Studio Team Services | P21: =SUM('Modern Requirements Tool Suite'!Y3:Y217) -> 1462.50 | Q21: =AVERAGE('Modern Requirements Tool Suite'!Y3:Y217) -> 7.07
M22: 1 | N22: TopTeam Analyst | O22: TopTeam Analyst, Techno Solutions | P22: =SUM(TopTeam!M3:M217) -> 1506.50 | Q22: =AVERAGE((TopTeam!M3:M217)) -> 7.28
N26: AVERAGE | P26: =AVERAGE(P2:P22) -> 1237.75 | Q26: =AVERAGE(Q2:Q22) -> 5.98
N27: MEDIAN | P27: =MEDIAN(P2:P22) -> 1273.00 | Q27: =MEDIAN(Q2:Q22) -> 6.15

Sheet Aha!
A1: L1 Feature | B1: L2 Feature | C1: L3 Feature | D1: User Story ID | E1: Title | F1: As a(n) | G1: I want | H1: So that | I1: ACID | J1: Acceptance Criteria | K1: Priority (1-8) - 8 is high 1 - Delighter feature that is wonderful to have but not critical for an RM tool 2 - Performance feature that is important to have and increases performance managing requirements 3,5,8 - Basic feature - MVP to be considered an RM | L1: Score (0-3) - 3 is the best 0 - CANNOT do in tool 1 - Can do it, but there's a manual workaround 2 - Can do it without any workarounds, but it's still not that easy to use 3 - Can do it in the tool and it's user friendly | M1: Total Score | N1: Notes
A2: 1. Plan Requirements
A3: 1. Plan Requirements | B3: Administer Project | C3: Estimate requirements work | D3: US001 | E3: Estimate requirements work | F3: Business analyst, Product Manager | G3: to be able to estimate how much time I need for my requirements activities (given a few preliminary details about my project) | H3: I can coordinate with my project manager and ensure we are clear on expectations around requirements scope and timeline. | I3: =D3&"-"&"AC"&TEXT(ROW()-2,"000") -> US001-AC001 | J3: Can input project knowns (like number of stakeholders, number of interfacing systems) as estimate inputs | K3: =Table13[[#This Row],[Priority (1-8) - 8 is high 1 - Delighter feature that is wonderful to have but not critical for an RM tool 2 - Performance feature that is important to have and increases performance managing requirements 3,5,8 - Basic feature - MVP to be considered an RM]] -> 1 | L3: 0 | M3: =K3*L3 -> 0
A4: 1. Plan Requirements | B4: Administer Project | C4: Estimate requirements work | D4: US001 | E4: Estimate requirements work | F4: Business analyst, Product Manager | G4: to be able to estimate how much time I need for my requirements activities (given a few preliminary details about my project) | H4: I can coordinate with my project manager and ensure we are clear on expectations around requirements scope and timeline. | I4: US001-AC002 | J4: Can calculate total estimate of work left on tasks | K4: =Table13[[#This Row],[Priority (1-8) - 8 is high 1 - Delighter feature that is wonderful to have but not critical for an RM tool 2 - Performance feature that is important to have and increases performance managing requirements 3,5,8 - Basic feature - MVP to be considered an RM]] -> 1 | L4: 3 | M4: 3 | N4: Better than most ones we have seen
A5: 1. Plan Requirements | B5: Administer Project | C5: Estimate requirements work | D5: US001 | E5: Estimate requirements work | F5: Business analyst, Product Manager | G5: to be able to estimate how much time I need for my requirements activities (given a few preliminary details about my project) | H5: I can coordinate with my project manager and ensure we are clear on expectations around requirements scope and timeline. | I5: US001-AC003 | J5: Can link tasks to individual requirements or some other similar object in the tool | K5: =Table13[[#This Row],[Priority (1-8) - 8 is high 1 - Delighter feature that is wonderful to have but not critical for an RM tool 2 - Performance feature that is important to have and increases performance managing requirements 3,5,8 - Basic feature - MVP to be considered an RM]] -> 1 | L5: 3 | M5: 3
A6: 1. Plan Requirements | B6: Administer Project | C6: Define task management process | D6: US002 | E6: Manage requirements tasks | F6: Business Analyst | G6: to be able to track all of the requirements activities and tasks I have left for my project | H6: I can make smart choices about what to spend my time on (and I can have early warning signs when I need to cut scope) | I6: US002-AC004 | J6: Can input tasks with estimates and track how much time is remaining on each task | K6: =Table13[[#This Row],[Priority (1-8) - 8 is high 1 - Delighter feature that is wonderful to have but not critical for an RM tool 2 - Performance feature that is important to have and increases performance managing requirements 3,5,8 - Basic feature - MVP to be considered an RM]] -> 2 | L6: 3 | M6: 6
A7: 1. Plan Requirements | B7: Administer Project | C7: Define task management process | D7: US002 | E7: Manage requirements tasks | F7: Business Analyst | G7: to be able to track all of the requirements activities and tasks I have left for my project | H7: I can make smart choices about what to spend my time on (and I can have early warning signs when I need to cut scope) | I7: US002-AC005 | J7: Can graph work remaining (task burndown chart) to project end dates | K7: =Table13[[#This Row],[Priority (1-8) - 8 is high 1 - Delighter feature that is wonderful to have but not critical for an RM tool 2 - Performance feature that is important to have and increases performance managing requirements 3,5,8 - Basic feature - MVP to be considered an RM]] -> 2 | L7: 2 | M7: 4 | N7: Yes it can actually - but it is labeled progress and was not easy to find at start
A8: 1. Plan Requirements | B8: Administer Project | C8: Create requirements plan | D8: US003 | E8: Create requirements plan | F8: Business Analyst | G8: to create a requirements plan to track my requirements activities and target dates | H8: I can allocate my time effectively early in my project and stay on top of all of the things I need to do. | I8: US003-AC006 | J8: Can enter tasks with target completion dates and owners | K8: =Table13[[#This Row],[Priority (1-8) - 8 is high 1 - Delighter feature that is wonderful to have but not critical for an RM tool 2 - Performance feature that is important to have and increases performance managing requirements 3,5,8 - Basic feature - MVP to be considered an RM]] -> 1 | L8: 2 | M8: 2
A9: 1. Plan Requirements | B9: Administer Project | C9: Manage project portfolio | D9: US004 | E9: Align projects across a product portfolio | F9: Product Manager | G9: to be able to oversee requirements activity for multiple products within my portfolio in a centralized location | H9: I can be better equipped to plan for things like synchronized releases | I9: US004-AC007 | J9: Can create/track dependencies across projects within a portfolio | K9: =Table13[[#This Row],[Priority (1-8) - 8 is high 1 - Delighter feature that is wonderful to have but not critical for an RM tool 2 - Performance feature that is important to have and increases performance managing requirements 3,5,8 - Basic feature - MVP to be considered an RM]] -> 1 | L9: 2 | M9: 2 | N9: It is a new column
A10: 1. Plan Requirements | B10: Adapt methodology | C10: Customize methodology checklist | D10: US005 | E10: Track to a defined methodology | F10: Business Analyst | G10: to be able to customize a checklist of items I need to complete to follow my organization's requirements methodology | H10: I can have a convenient reminder of all of the things I should do to make my project a success | I10: US005-AC008 | J10: Can store and edit a methodology/process checklist as tasks to do | K10: =Table13[[#This Row],[Priority (1-8) - 8 is high 1 - Delighter feature that is wonderful to have but not critical for an RM tool 2 - Performance feature that is important to have and increases performance managing requirements 3,5,8 - Basic feature - MVP to be considered an RM]] -> 1 | L10: 1 | M10: 1 | N10: Workflow can be incorporated - it won't be everything though
A11: 1. Plan Requirements | B11: Perform stakeholder analysis | C11: Create Org Chart Create SME Map | D11: US006 | E11: Track stakeholders | F11: Business Analyst | G11: I want to be able to track all of the stakeholders on my project along with their participation in requirements activities | H11: I can ensure I don't forget to talk to anyone (and miss requirements!) | I11: US006-AC009 | J11: Can import an existing org chart (from Visio or ppt) | K11: =Table13[[#This Row],[Priority (1-8) - 8 is high 1 - Delighter feature that is wonderful to have but not critical for an RM tool 2 - Performance feature that is important to have and increases performance managing requirements 3,5,8 - Basic feature - MVP to be considered an RM]] -> 2 | L11: 0 | M11: 0
A12: 1. Plan Requirements | B12: Perform stakeholder analysis | C12: Create Org Chart Create SME Map | D12: US006 | E12: Track stakeholders | F12: Business Analyst | G12: I want to be able to track all of the stakeholders on my project along with their participation in requirements activities | H12: I can ensure I don't forget to talk to anyone (and miss requirements!) | I12: US006-AC010 | J12: Can track stakeholder participation in requirements activities | K12: =Table13[[#This Row],[Priority (1-8) - 8 is high 1 - Delighter feature that is wonderful to have but not critical for an RM tool 2 - Performance feature that is important to have and increases performance managing requirements 3,5,8 - Basic feature - MVP to be considered an RM]] -> 1 | L12: 2 | M12: 2 | N12: assign stakeholders
A13: 1. Plan Requirements | B13: Perform stakeholder analysis | C13: Create Personas | D13: US007 | E13: Create stakeholder personas | F13: Business Analyst | G13: to be able to group my stakeholders into classes with like attributes and summarize each group's characteristics | H13: I can better understand the needs and motivations behind people that care about my project (so I can better meet those needs!). | I13: US007-AC011 | J13: Can create user personas and capture persona attributes | K13: =Table13[[#This Row],[Priority (1-8) - 8 is high 1 - Delighter feature that is wonderful to have but not critical for an RM tool 2 - Performance feature that is important to have and increases performance managing requirements 3,5,8 - Basic feature - MVP to be considered an RM]] -> 2 | L13: 3 | M13: 6
A14: 1. Plan Requirements | B14: Perform stakeholder analysis | C14: Create Personas | D14: US007 | E14: Create stakeholder personas | F14: Business Analyst | G14: to be able to group my stakeholders into classes with like attributes and summarize each group's characteristics | H14: I can better understand the needs and motivations behind people that care about my project (so I can better meet those needs!). | I14: US007-AC012 | J14: Can link the persona to user requirements | K14: =Table13[[#This Row],[Priority (1-8) - 8 is high 1 - Delighter feature that is wonderful to have but not critical for an RM tool 2 - Performance feature that is important to have and increases performance managing requirements 3,5,8 - Basic feature - MVP to be considered an RM]] -> 2 | L14: 3 | M14: 6
A15: 1. Plan Requirements | B15: Adapt Methodology | C15: Define object hierarchy | D15: US008 | E15: Use multiple types of requirements objects | F15: Requirements architect | G15: to be able to use multiple types of requirements objects for my projects | H15: I can maintain separate silos for different levels of my requirements (because I never really have only one type of requirement). | I15: US008-AC013 | J15: Multiple out of the box objects exist with the tool that users can select from (basic object types would include feature, requirement) | K15: =Table13[[#This Row],[Priority (1-8) - 8 is high 1 - Delighter feature that is wonderful to have but not critical for an RM tool 2 - Performance feature that is important to have and increases performance managing requirements 3,5,8 - Basic feature - MVP to be considered an RM]] -> 8 | L15: 3 | M15: 24
A16: 1. Plan Requirements | B16: Adapt Methodology | C16: Define object hierarchy | D16: US008 | E16: Use multiple types of requirements objects | F16: Requirements architect | G16: to be able to use multiple types of requirements objects for my projects | H16: I can maintain separate silos for different levels of my requirements (because I never really have only one type of requirement). | I16: US008-AC014 | J16: User can add custom object types. Example object types desired include: -Vision statement -Business objectives -Business problems -Success Metric -Feature -Business Requirement -User Requirement -User Story -Epic -Functional Requirement -Non-Functional Requirement -Epic -Requirements model objects (e.g. process flow, business data diagram) -Requirements model sub-objects (e.g. Process flow steps, business data objects) -Personas -Stakeholders -UI mockups/prototypes -Risk -Issue -Bug -Objects for each type of visual model | K16: =Table13[[#This Row],[Priority (1-8) - 8 is high 1 - Delighter feature that is wonderful to have but not critical for an RM tool 2 - Performance feature that is important to have and increases performance managing requirements 3,5,8 - Basic feature - MVP to be considered an RM]] -> 8 | L16: 2 | M16: 16
A17: 1. Plan Requirements | B17: Adapt Methodology | C17: Define object hierarchy | D17: US008 | E17: Use multiple types of requirements objects | F17: Requirements architect | G17: to be able to use multiple types of requirements objects for my projects | H17: I can maintain separate silos for different levels of my requirements (because I never really have only one type of requirement). | I17: US008-AC015 | J17: Requirements objects types can vary by project | K17: =Table13[[#This Row],[Priority (1-8) - 8 is high 1 - Delighter feature that is wonderful to have but not critical for an RM tool 2 - Performance feature that is important to have and increases performance managing requirements 3,5,8 - Basic feature - MVP to be considered an RM]] -> 1 | L17: 3 | M17: 3
A18: 1. Plan Requirements | B18: Adapt Methodology | C18: Define object hierarchy | D18: US009 | E18: Define hierarchical relationships between requirements objects | F18: Requirements architect | G18: to be able to define the possible relationships between requirements objects for my project | H18: I can establish a consistent traceability model for my requirements objects. | I18: US009-AC016 | J18: Requirements architecture (which objects and the relationships between requirements object types) can vary by project (e.g. each project can define the requirements architecture they need) | K18: =Table13[[#This Row],[Priority (1-8) - 8 is high 1 - Delighter feature that is wonderful to have but not critical for an RM tool 2 - Performance feature that is important to have and increases performance managing requirements 3,5,8 - Basic feature - MVP to be considered an RM]] -> 2 | L18: 2 | M18: 4 | N18: They said workflows could be made - I am sure they could be different for projects - but it was not easy to see originally
A19: 1. Plan Requirements | B19: Adapt Methodology | C19: Define object hierarchy | D19: US009 | E19: Define hierarchical relationships between requirements objects | F19: Requirements architect | G19: to be able to define the possible relationships between requirements objects for my project | H19: I can establish a consistent traceability model for my requirements objects. | I19: US009-AC017 | J19: Can specify which relationships types are available between any 2 object types | K19: =Table13[[#This Row],[Priority (1-8) - 8 is high 1 - Delighter feature that is wonderful to have but not critical for an RM tool 2 - Performance feature that is important to have and increases performance managing requirements 3,5,8 - Basic feature - MVP to be considered an RM]] -> 2 | L19: 3 | M19: 6
A20: 1. Plan Requirements | B20: Adapt Methodology | C20: Define object hierarchy | D20: US009 | E20: Define hierarchical relationships between requirements objects | F20: Requirements architect | G20: to be able to define the possible relationships between requirements objects for my project | H20: I can establish a consistent traceability model for my requirements objects. | I20: US009-AC018 | J20: Tool supports at least 2 relationships types where 1 of them is parent-child and the other is one that can be a generic type of relationship. | K20: =Table13[[#This Row],[Priority (1-8) - 8 is high 1 - Delighter feature that is wonderful to have but not critical for an RM tool 2 - Performance feature that is important to have and increases performance managing requirements 3,5,8 - Basic feature - MVP to be considered an RM]] -> 5 | L20: 3 | M20: 15
A21: 1. Plan Requirements | B21: Adapt Methodology | C21: Define object hierarchy | D21: US009 | E21: Define hierarchical relationships between requirements objects | F21: Requirements architect | G21: to be able to define the possible relationships between requirements objects for my project | H21: I can establish a consistent traceability model for my requirements objects. | I21: US009-AC019 | J21: Tool supports N:N bidirectional relationship on at least one of the relationship types (one instance of object type X can be associated with 0, 1, or more than 1 instance of object type Y, and one instance of object type Y can be associated with 0, 1, or more than 1 instance of object type X) | K21: =Table13[[#This Row],[Priority (1-8) - 8 is high 1 - Delighter feature that is wonderful to have but not critical for an RM tool 2 - Performance feature that is important to have and increases performance managing requirements 3,5,8 - Basic feature - MVP to be considered an RM]] -> 5 | L21: 2 | M21: 10
A22: 1. Plan Requirements | B22: Adapt Methodology | C22: Define object hierarchy | D22: US009 | E22: Define hierarchical relationships between requirements objects | F22: Requirements architect | G22: to be able to define the possible relationships between requirements objects for my project | H22: I can establish a consistent traceability model for my requirements objects. | I22: US009-AC020 | J22: Can see a visual layout the relationship hierarchy of the object types (not the actual data in the objects) that has been established (i.e. see my requirements architecture) | K22: =Table13[[#This Row],[Priority (1-8) - 8 is high 1 - Delighter feature that is wonderful to have but not critical for an RM tool 2 - Performance feature that is important to have and increases performance managing requirements 3,5,8 - Basic feature - MVP to be considered an RM]] -> 2 | L22: 3 | M22: 6
A23: 1. Plan Requirements | B23: Adapt Methodology | C23: Define object hierarchy | D23: US010 | E23: Provide a template for new projects to minimize setup | F23: Requirements architect | G23: to be able to choose a requirements architecture template for my project, | H23: I only have to spend a minimal amount of time setting up my project (and so that I can just leverage common requirements architectures used in the industry) | I23: US010-AC021 | J23: Can leverage industry best practice requirements architecture templates that come with the tool (e.g. tool provides a standard agile requirements architecture template, standard hybrid model, etc.) | K23: =Table13[[#This Row],[Priority (1-8) - 8 is high 1 - Delighter feature that is wonderful to have but not critical for an RM tool 2 - Performance feature that is important to have and increases performance managing requirements 3,5,8 - Basic feature - MVP to be considered an RM]] -> 1 | L23: 1 | M23: 1
A24: 1. Plan Requirements | B24: Adapt Methodology | C24: Define object hierarchy | D24: US010 | E24: Provide a template for new projects to minimize setup | F24: Requirements architect | G24: to be able to choose a requirements architecture template for my project, | H24: I only have to spend a minimal amount of time setting up my project (and so that I can just leverage common requirements architectures used in the industry) | I24: US010-AC022 | J24: Can create reusable customized requirements architecture templates for projects (with a set of defined object types with specified relationships) | K24: =Table13[[#This Row],[Priority (1-8) - 8 is high 1 - Delighter feature that is wonderful to have but not critical for an RM tool 2 - Performance feature that is important to have and increases performance managing requirements 3,5,8 - Basic feature - MVP to be considered an RM]] -> 2 | L24: 3 | M24: 6
A25: 1. Plan Requirements | B25: Adapt Methodology | C25: Define object hierarchy | D25: US010 | E25: Provide a template for new projects to minimize setup | F25: Requirements architect | G25: to be able to choose a requirements architecture template for my project, | H25: I only have to spend a minimal amount of time setting up my project (and so that I can just leverage common requirements architectures used in the industry) | I25: US010-AC023 | J25: Can store multiple object relationship templates (requirements architectures) that projects can select from | K25: =Table13[[#This Row],[Priority (1-8) - 8 is high 1 - Delighter feature that is wonderful to have but not critical for an RM tool 2 - Performance feature that is important to have and increases performance managing requirements 3,5,8 - Basic feature - MVP to be considered an RM]] -> 2 | L25: 1 | M25: 2 | N25: Can be done by cloning a release.
A26: 1. Plan Requirements | B26: Adapt Methodology | C26: Define object attributes | D26: US011 | E26: Define attributes for each requirement object | F26: Requirements architect | G26: to be able to define the attributes (data fields) for each requirement object on my project | H26: I can establish a consistent method for capturing data, and ensure my team provides the information necessary for each object. | I26: US011-AC024 | J26: Can customize list of fields associated with each requirements object (as many as needed) | K26: =Table13[[#This Row],[Priority (1-8) - 8 is high 1 - Delighter feature that is wonderful to have but not critical for an RM tool 2 - Performance feature that is important to have and increases performance managing requirements 3,5,8 - Basic feature - MVP to be considered an RM]] -> 2 | L26: 2 | M26: 4
A27: 1. Plan Requirements | B27: Adapt Methodology | C27: Define object attributes | D27: US011 | E27: Define attributes for each requirement object | F27: Requirements architect | G27: to be able to define the attributes (data fields) for each requirement object on my project | H27: I can establish a consistent method for capturing data, and ensure my team provides the information necessary for each object. | I27: US011-AC025 | J27: Can set up attributes with predefined value choices (e.g. I want to add an attribute called Requirement Type and specify a picklist of values of functional, business, or user. Another example would be defining custom list of status options for an object) | K27: =Table13[[#This Row],[Priority (1-8) - 8 is high 1 - Delighter feature that is wonderful to have but not critical for an RM tool 2 - Performance feature that is important to have and increases performance managing requirements 3,5,8 - Basic feature - MVP to be considered an RM]] -> 2 | L27: 3 | M27: 6
A28: 1. Plan Requirements | B28: Adapt Methodology | C28: Define object attributes | D28: US011 | E28: Define attributes for each requirement object | F28: Requirements architect | G28: to be able to define the attributes (data fields) for each requirement object on my project | H28: I can establish a consistent method for capturing data, and ensure my team provides the information necessary for each object. | I28: US011-AC026 | J28: Can specify whether each field is required or optional | K28: =Table13[[#This Row],[Priority (1-8) - 8 is high 1 - Delighter feature that is wonderful to have but not critical for an RM tool 2 - Performance feature that is important to have and increases performance managing requirements 3,5,8 - Basic feature - MVP to be considered an RM]] -> 2 | L28: 3 | M28: 6
A29: 1. Plan Requirements | B29: Adapt Methodology | C29: Define object attributes | D29: US011 | E29: Define attributes for each requirement object | F29: Requirements architect | G29: to be able to define the attributes (data fields) for each requirement object on my project | H29: I can establish a consistent method for capturing data, and ensure my team provides the information necessary for each object. | I29: US011-AC027 | J29: Can define field format (e.g. requirements IDs formats, UCXX for use cases, BRXX for business rules, etc. or define whether it's a text or numerical) | K29: =Table13[[#This Row],[Priority (1-8) - 8 is high 1 - Delighter feature that is wonderful to have but not critical for an RM tool 2 - Performance feature that is important to have and increases performance managing requirements 3,5,8 - Basic feature - MVP to be considered an RM]] -> 1 | L29: 2 | M29: 2
A30: 1. Plan Requirements | B30: Adapt Methodology | C30: Define object attributes | D30: US011 | E30: Define attributes for each requirement object | F30: Requirements architect | G30: to be able to define the attributes (data fields) for each requirement object on my project | H30: I can establish a consistent method for capturing data, and ensure my team provides the information necessary for each object. | I30: US011-AC028 | J30: Can define calculated fields | K30: =Table13[[#This Row],[Priority (1-8) - 8 is high 1 - Delighter feature that is wonderful to have but not critical for an RM tool 2 - Performance feature that is important to have and increases performance managing requirements 3,5,8 - Basic feature - MVP to be considered an RM]] -> 1 | L30: 0 | M30: 0
A31: 1. Plan Requirements | B31: Adapt Methodology | C31: Customize tools | D31: US013 | E31: Create custom workflows | F31: Requirements Architect | G31: to be able to create custom workflows for my requirements objects | H31: I can leverage the tool to enforce better requirements practices in my organization | I31: US013-AC029 | J31: Can define custom workflow for by object type (e.g. require object to reach drafted status, then review status, then approval status before allowing it to be flagged as ready for development) | K31: =Table13[[#This Row],[Priority (1-8) - 8 is high 1 - Delighter feature that is wonderful to have but not critical for an RM tool 2 - Performance feature that is important to have and increases performance managing requirements 3,5,8 - Basic feature - MVP to be considered an RM]] -> 1 | L31: 3 | M31: 3
A32: 1. Plan Requirements | B32: Administer Project | C32: Glossary | D32: US014 | E32: Define glossary | F32: Business Analyst | G32: to be able to create a glossary | H32: I that I can reference acronyms or unfamiliar words | I32: US014-AC030 | J32: Can create and update a glossary | K32: =Table13[[#This Row],[Priority (1-8) - 8 is high 1 - Delighter feature that is wonderful to have but not critical for an RM tool 2 - Performance feature that is important to have and increases performance managing requirements 3,5,8 - Basic feature - MVP to be considered an RM]] -> 1 | L32: 3 | M32: 3
A33: 1. Plan Requirements | B33: Administer Project | C33: Glossary | D33: US014 | E33: Define glossary | F33: Business Analyst | G33: to be able to create a glossary | H33: I that I can reference acronyms or unfamiliar words | I33: US014-AC031 | J33: Can upload an existing glossary to the requirement management tool | K33: =Table13[[#This Row],[Priority (1-8) - 8 is high 1 - Delighter feature that is wonderful to have but not critical for an RM tool 2 - Performance feature that is important to have and increases performance managing requirements 3,5,8 - Basic feature - MVP to be considered an RM]] -> 1 | L33: 0 | M33: 0
A34: 1. Plan Requirements | B34: Administer Project | C34: Define task management process | D34: US015 | E34: Assign owners to requirements | F34: Product manager | G34: I want to be able to assign an owner to a requirement/set of requirements | H34: requirements authors know which requirements they are responsible for | I34: US015-AC032 | J34: Can assign/re-assign a user to a single requirement or a set of requirements as the "owner" | K34: =Table13[[#This Row],[Priority (1-8) - 8 is high 1 - Delighter feature that is wonderful to have but not critical for an RM tool 2 - Performance feature that is important to have and increases performance managing requirements 3,5,8 - Basic feature - MVP to be considered an RM]] -> 3 | L34: 3 | M34: 9
A35: 1. Plan Requirements | B35: Administer Project | C35: Define task management process | D35: US015 | E35: Assign owners to requirements | F35: Product manager | G35: I want to be able to assign an owner to a requirement/set of requirements | H35: requirements authors know which requirements they are responsible for | I35: US015-AC033 | J35: Owner receive notifications around requirements that are assigned to them (e.g. when it first gets assigned to them, when it's reassigned, when it's edited, when it's approved) | K35: =Table13[[#This Row],[Priority (1-8) - 8 is high 1 - Delighter feature that is wonderful to have but not critical for an RM tool 2 - Performance feature that is important to have and increases performance managing requirements 3,5,8 - Basic feature - MVP to be considered an RM]] -> 1 | L35: 3 | M35: 3
A36: 1. Plan Requirements | B36: Administer Project | C36: Create requirements plan | D36: US016 | E36: Set up sprints/iterations for agile and hybrid projects | F36: Product Owner | G36: I want to be able to establish iterations for my project | H36: I can organize my requirements objects by priority of delivery | I36: US016-AC034 | J36: Can create/edit delivery iterations and assign requirements to them | K36: =Table13[[#This Row],[Priority (1-8) - 8 is high 1 - Delighter feature that is wonderful to have but not critical for an RM tool 2 - Performance feature that is important to have and increases performance managing requirements 3,5,8 - Basic feature - MVP to be considered an RM]] -> 2 | L36: 3 | M36: 6
A37: 1. Plan Requirements | B37: Administer Project | C37: Create requirements plan | D37: US017 | E37: Release roadmap | F37: Product Owner | G37: I want to be able to assign iterations to releases | H37: I can start to organize my requirements by my feature delivery roadmap | I37: US017-AC035 | J37: Can visually see features (or similar object type) as assigned to iterations (e.g. generate a roadmap for a release listing features assigned by iteration with ability to see progress) | K37: =Table13[[#This Row],[Priority (1-8) - 8 is high 1 - Delighter feature that is wonderful to have but not critical for an RM tool 2 - Performance feature that is important to have and increases performance managing requirements 3,5,8 - Basic feature - MVP to be considered an RM]] -> 2 | L37: 3 | M37: 6
A38: 2. Elicit Requirements
A39: 2. Elicit Requirements | B39: Identify requirements | C39: Reuse | D39: US018 | E39: Reuse requirements | F39: Business Analyst | G39: to be able to reuse requirements, | H39: I can leverage work that has already been done and produce my current requirements set faster. | I39: =D39&"-"&"AC"&TEXT(ROW()-3,"000") -> US018-AC036 | J39: Can copy requirements for reuse (from other projects or within the same project) | K39: =Table13[[#This Row],[Priority (1-8) - 8 is high 1 - Delighter feature that is wonderful to have but not critical for an RM tool 2 - Performance feature that is important to have and increases performance managing requirements 3,5,8 - Basic feature - MVP to be considered an RM]] -> 2 | L39: 3 | M39: 6
A40: 2. Elicit Requirements | B40: Identify requirements | C40: Reuse | D40: US018 | E40: Reuse requirements | F40: Business Analyst | G40: to be able to reuse requirements, | H40: I can leverage work that has already been done and produce my current requirements set faster. | I40: =D40&"-"&"AC"&TEXT(ROW()-3,"000") -> US018-AC037 | J40: Can store selected requirements in a reuse repository (e.g. common non-functional requirements that apply to the organization) | K40: =Table13[[#This Row],[Priority (1-8) - 8 is high 1 - Delighter feature that is wonderful to have but not critical for an RM tool 2 - Performance feature that is important to have and increases performance managing requirements 3,5,8 - Basic feature - MVP to be considered an RM]] -> 1 | L40: 1 | M40: 1
A41: 2. Elicit Requirements | B41: Administer Elicitation | C41: Capture requirements | D41: US020 | E41: Capture requirements during elicitation | F41: Business Analyst | G41: to be able to capture requirements directly in the tool during elicitation | H41: I can ensure I don't miss anything I learn from my elicitation efforts by capturing it all right away | I41: =D41&"-"&"AC"&TEXT(ROW()-3,"000") -> US020-AC038 | J41: Can track the source of the requirement | K41: =Table13[[#This Row],[Priority (1-8) - 8 is high 1 - Delighter feature that is wonderful to have but not critical for an RM tool 2 - Performance feature that is important to have and increases performance managing requirements 3,5,8 - Basic feature - MVP to be considered an RM]] -> 2 | L41: 2 | M41: 4
A42: 3. Analyze Requirements
A43: 3. Analyze Requirements | B43: Categorize Requirements | C43: Group requirements | D43: US023 | E43: Group requirements by project | F43: Business Analyst | G43: to be able to group my requirements | H43: I can organize my requirements information in such a way that stakeholders and I can locate information efficiently | I43: =D43&"-"&"AC"&TEXT(ROW()-4,"000") -> US023-AC039 | J43: Can filter the view of a group of requirements by certain criteria | K43: =Table13[[#This Row],[Priority (1-8) - 8 is high 1 - Delighter feature that is wonderful to have but not critical for an RM tool 2 - Performance feature that is important to have and increases performance managing requirements 3,5,8 - Basic feature - MVP to be considered an RM]] -> 2 | L43: 3 | M43: 6
A44: 3. Analyze Requirements | B44: Identify factors | C44: Dependencies | D44: US024 | E44: Add dependencies | F44: Product manager | G44: to be able to document dependencies with the tool | H44: I can identify pre-emptively roadblocks if dependencies fail. | I44: US024-AC040 | J44: Can link items/object as dependency to another item - this could be done as one of the allowed relationship types | K44: =Table13[[#This Row],[Priority (1-8) - 8 is high 1 - Delighter feature that is wonderful to have but not critical for an RM tool 2 - Performance feature that is important to have and increases performance managing requirements 3,5,8 - Basic feature - MVP to be considered an RM]] -> 2 | L44: 2 | M44: 4
A45: 3. Analyze Requirements | B45: Identify factors | C45: Value of a feature | D45: US025 | E45: Assign value to features | F45: Product manager | G45: to be able to assign and compare values of features | H45: I can prioritize features according to value. | I45: US025-AC041 | J45: Can specify quantified dollar values for features | K45: =Table13[[#This Row],[Priority (1-8) - 8 is high 1 - Delighter feature that is wonderful to have but not critical for an RM tool 2 - Performance feature that is important to have and increases performance managing requirements 3,5,8 - Basic feature - MVP to be considered an RM]] -> 2 | L45: 3 | M45: 6
A46: 3. Analyze Requirements | B46: Identify factors | C46: Value of a feature | D46: US025 | E46: Assign value to features | F46: Product manager | G46: to be able to assign and compare values of features | H46: I can prioritize features according to value. | I46: US025-AC042 | J46: Can rank features according to quantified value (or any custom attribute) | K46: =Table13[[#This Row],[Priority (1-8) - 8 is high 1 - Delighter feature that is wonderful to have but not critical for an RM tool 2 - Performance feature that is important to have and increases performance managing requirements 3,5,8 - Basic feature - MVP to be considered an RM]] -> 2 | L46: 3 | M46: 6
A47: 3. Analyze Requirements | B47: Identify factors | C47: Assumptions | D47: US026 | E47: Document assumptions | F47: Product manager | G47: to be able to document assumptions within the tool | H47: I can communicate the assumptions to the team and monitor them in order to assess impacts to the project if the assumptions fail to be true. | I47: US026-AC043 | J47: Can create/update assumptions | K47: =Table13[[#This Row],[Priority (1-8) - 8 is high 1 - Delighter feature that is wonderful to have but not critical for an RM tool 2 - Performance feature that is important to have and increases performance managing requirements 3,5,8 - Basic feature - MVP to be considered an RM]] -> 2 | L47: 2 | M47: 4
A48: 3. Analyze Requirements | B48: Identify factors | C48: Constraints | D48: US027 | E48: Document constraints | F48: Product manager | G48: to be able to document constraints in the tool | H48: I can make accurate project estimates and plans. | I48: US027-AC044 | J48: Can create/update constraints | K48: =Table13[[#This Row],[Priority (1-8) - 8 is high 1 - Delighter feature that is wonderful to have but not critical for an RM tool 2 - Performance feature that is important to have and increases performance managing requirements 3,5,8 - Basic feature - MVP to be considered an RM]] -> 2 | L48: 1 | M48: 2
A49: 3. Analyze Requirements | B49: Identify factors | C49: Risks | D49: US028 | E49: Document risks | F49: Product manager | G49: to be able to document risks in the tool | H49: so that I can communicate the risks to the team and monitor them in order to assess impacts to the project. | I49: US028-AC045 | J49: Can create/update risks | K49: =Table13[[#This Row],[Priority (1-8) - 8 is high 1 - Delighter feature that is wonderful to have but not critical for an RM tool 2 - Performance feature that is important to have and increases performance managing requirements 3,5,8 - Basic feature - MVP to be considered an RM]] -> 2 | L49: 1 | M49: =K49*L49 -> 2
A50: 3. Analyze Requirements | B50: Draft Requirements Models | C50: Objectives, People, Systems, Data | D50: US029 | E50: Create models in the tool | F50: Business Analyst | G50: to be able to create visual models directly in the tool | H50: I don't have to toggle back and forth between other applications to generate the visual models I need to simplify understanding of my requirements | I50: US029-AC046 | J50: Can create/edit models with various shapes (boxes, circles, etc.) connected by lines and arrows (e.g. process flow, ecosystem map, system flows, decision trees, business data diagram, org chart, business objectives model) | K50: =Table13[[#This Row],[Priority (1-8) - 8 is high 1 - Delighter feature that is wonderful to have but not critical for an RM tool 2 - Performance feature that is important to have and increases performance managing requirements 3,5,8 - Basic feature - MVP to be considered an RM]] -> 8 | L50: 0 | M50: 0
A51: 3. Analyze Requirements | B51: Draft Requirements Models | C51: Objectives, People, Systems, Data | D51: US029 | E51: Create models in the tool | F51: Business Analyst | G51: to be able to create visual models directly in the tool | H51: I don't have to toggle back and forth between other applications to generate the visual models I need to simplify understanding of my requirements | I51: US029-AC047 | J51: Can create models as tables (e.g. system interface table, decision tables, roles and permissions matrix, state table) | K51: =Table13[[#This Row],[Priority (1-8) - 8 is high 1 - Delighter feature that is wonderful to have but not critical for an RM tool 2 - Performance feature that is important to have and increases performance managing requirements 3,5,8 - Basic feature - MVP to be considered an RM]] -> 8 | L51: 0 | M51: 0
A52: 3. Analyze Requirements | B52: Draft Requirements Models | C52: Objectives, People, Systems, Data | D52: US029 | E52: Create models in the tool | F52: Business Analyst | G52: to be able to create visual models directly in the tool | H52: I don't have to toggle back and forth between other applications to generate the visual models I need to simplify understanding of my requirements | I52: US029-AC048 | J52: Can create diagrams with branching lines (e.g. feature tree, fishbone diagram) | K52: =Table13[[#This Row],[Priority (1-8) - 8 is high 1 - Delighter feature that is wonderful to have but not critical for an RM tool 2 - Performance feature that is important to have and increases performance managing requirements 3,5,8 - Basic feature - MVP to be considered an RM]] -> 8 | L52: 0 | M52: 0
A53: 3. Analyze Requirements | B53: Draft Requirements Models | C53: Objectives, People, Systems, Data | D53: US029 | E53: Create models in the tool | F53: Business Analyst | G53: to be able to create visual models directly in the tool | H53: I don't have to toggle back and forth between other applications to generate the visual models I need to simplify understanding of my requirements | I53: US029-AC049 | J53: Can create each of the elements of a model as its own item that can be linked to (like a step in a process flow is its own item) | K53: =Table13[[#This Row],[Priority (1-8) - 8 is high 1 - Delighter feature that is wonderful to have but not critical for an RM tool 2 - Performance feature that is important to have and increases performance managing requirements 3,5,8 - Basic feature - MVP to be considered an RM]] -> 5 | L53: 0 | M53: 0
A54: 3. Analyze Requirements | B54: Draft Requirements Models | C54: Objectives, People, Systems, Data | D54: US030 | E54: Create UI/UX mockups | F54: Business Analyst | G54: to be able to create UI/UX mockups directly within the tool | H54: I can supplement UI requirements with visual examples in order to ensure the proper UI is built. | I54: US030-AC050 | J54: Can mockup low-fidelity screens in the tool directly (e.g. sketch wireframe) | K54: =Table13[[#This Row],[Priority (1-8) - 8 is high 1 - Delighter feature that is wonderful to have but not critical for an RM tool 2 - Performance feature that is important to have and increases performance managing requirements 3,5,8 - Basic feature - MVP to be considered an RM]] -> 1 | L54: 2 | M54: 2
A55: 3. Analyze Requirements | B55: Draft Requirements Models | C55: Objectives, People, Systems, Data | D55: US030 | E55: Create UI/UX mockups | F55: Business Analyst | G55: to be able to create UI/UX mockups directly within the tool | H55: I can supplement UI requirements with visual examples in order to ensure the proper UI is built. | I55: US030-AC051 | J55: Can mockup high-fidelity screens in the tool directly (e.g. real looking or interactive prototype designed as the page should look) | K55: =Table13[[#This Row],[Priority (1-8) - 8 is high 1 - Delighter feature that is wonderful to have but not critical for an RM tool 2 - Performance feature that is important to have and increases performance managing requirements 3,5,8 - Basic feature - MVP to be considered an RM]] -> 1 | L55: 2 | M55: 2
A56: 3. Analyze Requirements | B56: Draft Requirements Models | C56: Objectives, People, Systems, Data | D56: US031 | E56: Import Models | F56: Business Analyst | G56: to be able to add models from other tools to supplement my requirements | H56: I can provide visual context to requirements for stakeholders | I56: US031-AC052 | J56: Person viewing requirement can either view or easily access a model to gain context | K56: =Table13[[#This Row],[Priority (1-8) - 8 is high 1 - Delighter feature that is wonderful to have but not critical for an RM tool 2 - Performance feature that is important to have and increases performance managing requirements 3,5,8 - Basic feature - MVP to be considered an RM]] -> 8 | L56: 3 | M56: 24
A57: 3. Analyze Requirements | B57: Draft Requirements Models | C57: Objectives, People, Systems, Data | D57: US031 | E57: Import Models | F57: Business Analyst | G57: to be able to add models from other tools to supplement my requirements | H57: I can provide visual context to requirements for stakeholders | I57: US031-AC053 | J57: Can import existing models and maintain the individual elements of the model in the tool (import from Visio, excel, etc.) | K57: =Table13[[#This Row],[Priority (1-8) - 8 is high 1 - Delighter feature that is wonderful to have but not critical for an RM tool 2 - Performance feature that is important to have and increases performance managing requirements 3,5,8 - Basic feature - MVP to be considered an RM]] -> 2 | L57: 0 | M57: 0
A58: 3. Analyze Requirements | B58: Draft Requirements Models | C58: Objectives, People, Systems, Data | D58: US032 | E58: Automatically create models from text | F58: Business Analyst | G58: to be able to automatically generate diagrams or models from written requirements | H58: I can spend less time making diagrams or models from written requirements | I58: US032-AC054 | J58: Can generate a visual representation of selected objects and their relationships (e.g. can generate a feature tree based on feature hierarchy defined in the tool) | K58: =Table13[[#This Row],[Priority (1-8) - 8 is high 1 - Delighter feature that is wonderful to have but not critical for an RM tool 2 - Performance feature that is important to have and increases performance managing requirements 3,5,8 - Basic feature - MVP to be considered an RM]] -> 2 | L58: 1 | M58: 2 | N58: Possible - but could not find before and it creates a web that can be hard to read
A59: 3. Analyze Requirements | B59: Trace Requirements Artifacts | C59: Map Relationships | D59: US034 | E59: Create object relationships | F59: Business Analyst | G59: to be able to create relationships between objects | H59: I can have end to end traceability, which allows me to ensure I'm not missing any requirements | I59: US034-AC055 | J59: Can create/edit/break a relationship from one object to multiple other objects | K59: =Table13[[#This Row],[Priority (1-8) - 8 is high 1 - Delighter feature that is wonderful to have but not critical for an RM tool 2 - Performance feature that is important to have and increases performance managing requirements 3,5,8 - Basic feature - MVP to be considered an RM]] -> 8 | L59: 2 | M59: 16
A60: 3. Analyze Requirements | B60: Trace Requirements Artifacts | C60: Map Relationships | D60: US034 | E60: Create object relationships | F60: Business Analyst | G60: to be able to create relationships between objects | H60: I can have end to end traceability, which allows me to ensure I'm not missing any requirements | I60: US034-AC056 | J60: Can drag and drop to form relationships | K60: =Table13[[#This Row],[Priority (1-8) - 8 is high 1 - Delighter feature that is wonderful to have but not critical for an RM tool 2 - Performance feature that is important to have and increases performance managing requirements 3,5,8 - Basic feature - MVP to be considered an RM]] -> 2 | L60: 0 | M60: 0
A61: 3. Analyze Requirements | B61: Trace Requirements Artifacts | C61: Map Relationships | D61: US034 | E61: Create object relationships | F61: Business Analyst | G61: to be able to create relationships between objects | H61: I can have end to end traceability, which allows me to ensure I'm not missing any requirements | I61: US034-AC057 | J61: While creating a relationship between objects, can specify the type of relationship to be created | K61: =Table13[[#This Row],[Priority (1-8) - 8 is high 1 - Delighter feature that is wonderful to have but not critical for an RM tool 2 - Performance feature that is important to have and increases performance managing requirements 3,5,8 - Basic feature - MVP to be considered an RM]] -> 5 | L61: 2 | M61: 10
A62: 3. Analyze Requirements | B62: Trace Requirements Artifacts | C62: Map Relationships | D62: US034 | E62: Create object relationships | F62: Business Analyst | G62: to be able to create relationships between objects | H62: I can have end to end traceability, which allows me to ensure I'm not missing any requirements | I62: US034-AC058 | J62: Can create relationships in bulk (e.g. can relate one object to many other objects at once) | K62: =Table13[[#This Row],[Priority (1-8) - 8 is high 1 - Delighter feature that is wonderful to have but not critical for an RM tool 2 - Performance feature that is important to have and increases performance managing requirements 3,5,8 - Basic feature - MVP to be considered an RM]] -> 2 | L62: 0 | M62: 0
A63: 3. Analyze Requirements | B63: Trace Requirements Artifacts | C63: Map Relationships | D63: US034 | E63: Create object relationships | F63: Business Analyst | G63: to be able to create relationships between objects | H63: I can have end to end traceability, which allows me to ensure I'm not missing any requirements | I63: US034-AC059 | J63: Can create a relationship between a requirement object and a visual model | K63: =Table13[[#This Row],[Priority (1-8) - 8 is high 1 - Delighter feature that is wonderful to have but not critical for an RM tool 2 - Performance feature that is important to have and increases performance managing requirements 3,5,8 - Basic feature - MVP to be considered an RM]] -> 8 | L63: 2 | M63: 16
A64: 3. Analyze Requirements | B64: Trace Requirements Artifacts | C64: Map Relationships | D64: US034 | E64: Create object relationships | F64: Business Analyst | G64: to be able to create relationships between objects | H64: I can have end to end traceability, which allows me to ensure I'm not missing any requirements | I64: US034-AC060 | J64: Can relate a requirement to an element of a visual model (e.g. user story to process step, or user story to individual step in a use case, or a mock-up to a process step) | K64: =Table13[[#This Row],[Priority (1-8) - 8 is high 1 - Delighter feature that is wonderful to have but not critical for an RM tool 2 - Performance feature that is important to have and increases performance managing requirements 3,5,8 - Basic feature - MVP to be considered an RM]] -> 8 | L64: 2 | M64: 16
A65: 3. Analyze Requirements | B65: Trace Requirements Artifacts | C65: Map Relationships | D65: US034 | E65: Create object relationships | F65: Business Analyst | G65: to be able to create relationships between objects | H65: I can have end to end traceability, which allows me to ensure I'm not missing any requirements | I65: US034-AC061 | J65: Can relate requirements to individual elements on a UI screen mockup | K65: =Table13[[#This Row],[Priority (1-8) - 8 is high 1 - Delighter feature that is wonderful to have but not critical for an RM tool 2 - Performance feature that is important to have and increases performance managing requirements 3,5,8 - Basic feature - MVP to be considered an RM]] -> 1 | L65: 2 | M65: 2
A66: 3. Analyze Requirements | B66: Trace Requirements Artifacts | C66: Map Relationships | D66: US034 | E66: Create object relationships | F66: Business Analyst | G66: to be able to create relationships between objects | H66: I can have end to end traceability, which allows me to ensure I'm not missing any requirements | I66: US034-AC062 | J66: Can relate objects to test scripts (in the tool or in an integrated tool) | K66: =Table13[[#This Row],[Priority (1-8) - 8 is high 1 - Delighter feature that is wonderful to have but not critical for an RM tool 2 - Performance feature that is important to have and increases performance managing requirements 3,5,8 - Basic feature - MVP to be considered an RM]] -> 2 | L66: 2 | M66: 4
A67: 3. Analyze Requirements | B67: Trace Requirements Artifacts | C67: Map Relationships | D67: US035 | E67: Associate requirements with stakeholders | F67: Business Analyst | G67: to be able to associate a stakeholder for each requirement | H67: I can know who the requirement was elicited from/who to talk to if there is an issue. | I67: US035-AC063 | J67: Can define stakeholders | K67: =Table13[[#This Row],[Priority (1-8) - 8 is high 1 - Delighter feature that is wonderful to have but not critical for an RM tool 2 - Performance feature that is important to have and increases performance managing requirements 3,5,8 - Basic feature - MVP to be considered an RM]] -> 2 | L67: 3 | M67: =K67*L67 -> 6
A68: 3. Analyze Requirements | B68: Trace Requirements Artifacts | C68: Map Relationships | D68: US036 | E68: View traceability | F68: Business Analyst | G68: to be able to view the relationships between requirements objects | H68: I can understand all of the requirements impacted by a given object and vice versa | I68: US036-AC064 | J68: Can navigate through models, images, and requirements mapped to one another without losing context (can flip back and forth between objects I'm viewing) | K68: =Table13[[#This Row],[Priority (1-8) - 8 is high 1 - Delighter feature that is wonderful to have but not critical for an RM tool 2 - Performance feature that is important to have and increases performance managing requirements 3,5,8 - Basic feature - MVP to be considered an RM]] -> 2 | L68: 2 | M68: 4
A69: 3. Analyze Requirements | B69: Trace Requirements Artifacts | C69: Map Relationships | D69: US036 | E69: View traceability | F69: Business Analyst | G69: to be able to view the relationships between requirements objects | H69: I can understand all of the requirements impacted by a given object and vice versa | I69: US036-AC065 | J69: From within a visual model, can easily navigate to items related to objects within the model (e.g. can view related prototypes by hovering over process steps) | K69: =Table13[[#This Row],[Priority (1-8) - 8 is high 1 - Delighter feature that is wonderful to have but not critical for an RM tool 2 - Performance feature that is important to have and increases performance managing requirements 3,5,8 - Basic feature - MVP to be considered an RM]] -> 1 | L69: 0 | M69: 0
A70: 3. Analyze Requirements | B70: Trace Requirements Artifacts | C70: Map Relationships | D70: US036 | E70: View traceability | F70: Business Analyst | G70: to be able to view the relationships between requirements objects | H70: I can understand all of the requirements impacted by a given object and vice versa | I70: US036-AC066 | J70: Can view a list of all directly related objects from an object | K70: =Table13[[#This Row],[Priority (1-8) - 8 is high 1 - Delighter feature that is wonderful to have but not critical for an RM tool 2 - Performance feature that is important to have and increases performance managing requirements 3,5,8 - Basic feature - MVP to be considered an RM]] -> 5 | L70: 2 | M70: 10
A71: 3. Analyze Requirements | B71: Trace Requirements Artifacts | C71: Map Relationships | D71: US036 | E71: View traceability | F71: Business Analyst | G71: to be able to view the relationships between requirements objects | H71: I can understand all of the requirements impacted by a given object and vice versa | I71: US036-AC067 | J71: Can view the hierarchy above and below a requirements object | K71: =Table13[[#This Row],[Priority (1-8) - 8 is high 1 - Delighter feature that is wonderful to have but not critical for an RM tool 2 - Performance feature that is important to have and increases performance managing requirements 3,5,8 - Basic feature - MVP to be considered an RM]] -> 2 | L71: 2 | M71: 4
A72: 3. Analyze Requirements | B72: Trace Requirements Artifacts | C72: Map Relationships | D72: US036 | E72: View traceability | F72: Business Analyst | G72: to be able to view the relationships between requirements objects | H72: I can understand all of the requirements impacted by a given object and vice versa | I72: US036-AC068 | J72: Can view all indirect (inherited) relationships for an object | K72: =Table13[[#This Row],[Priority (1-8) - 8 is high 1 - Delighter feature that is wonderful to have but not critical for an RM tool 2 - Performance feature that is important to have and increases performance managing requirements 3,5,8 - Basic feature - MVP to be considered an RM]] -> 2 | L72: 2 | M72: 4
A73: 3. Analyze Requirements | B73: Trace Requirements Artifacts | C73: Map Relationships | D73: US036 | E73: View traceability | F73: Business Analyst | G73: to be able to view the relationships between requirements objects | H73: I can understand all of the requirements impacted by a given object and vice versa | I73: US036-AC069 | J73: Can export relationship hierarchy trees to an Excel table (like a traceability matrix) | K73: =Table13[[#This Row],[Priority (1-8) - 8 is high 1 - Delighter feature that is wonderful to have but not critical for an RM tool 2 - Performance feature that is important to have and increases performance managing requirements 3,5,8 - Basic feature - MVP to be considered an RM]] -> 2 | L73: 0 | M73: 0
A74: 3. Analyze Requirements | B74: Trace Requirements Artifacts | C74: Map Relationships | D74: US036 | E74: View traceability | F74: Business Analyst | G74: to be able to view the relationships between requirements objects | H74: I can understand all of the requirements impacted by a given object and vice versa | I74: US036-AC070 | J74: Can view object hierarchies as diagrams (such as a tree) | K74: =Table13[[#This Row],[Priority (1-8) - 8 is high 1 - Delighter feature that is wonderful to have but not critical for an RM tool 2 - Performance feature that is important to have and increases performance managing requirements 3,5,8 - Basic feature - MVP to be considered an RM]] -> 2 | L74: 2 | M74: 4 | N74: Hard to find
A75: 3. Analyze Requirements | B75: Trace Requirements Artifacts | C75: Map Relationships | D75: US036 | E75: View traceability | F75: Business Analyst | G75: to be able to view the relationships between requirements objects | H75: I can understand all of the requirements impacted by a given object and vice versa | I75: US036-AC071 | J75: Detects inconsistencies in links (e.g., circular linking or linking in the "wrong" direction in the hierarchy) | K75: =Table13[[#This Row],[Priority (1-8) - 8 is high 1 - Delighter feature that is wonderful to have but not critical for an RM tool 2 - Performance feature that is important to have and increases performance managing requirements 3,5,8 - Basic feature - MVP to be considered an RM]] -> 1 | L75: 0 | M75: 0
A76: 3. Analyze Requirements | B76: Trace Requirements Artifacts | C76: Perform Gap Analysis | D76: US037 | E76: Identify missing model relationships | F76: Business Analyst | G76: to be able to identify objects that do not have relationships needed for coverage | H76: I can ensure I am not missing any requirements or including unnecessary requirements in my scope. | I76: US037-AC072 | J76: Can identify orphans from any object relationship type (e.g. can identify features that don't have business objectives, or user stories not associated to features, or process steps that don't have requirements, identify any object that doesn't have a parent) | K76: =Table13[[#This Row],[Priority (1-8) - 8 is high 1 - Delighter feature that is wonderful to have but not critical for an RM tool 2 - Performance feature that is important to have and increases performance managing requirements 3,5,8 - Basic feature - MVP to be considered an RM]] -> 5 | L76: 2 | M76: 10
A77: 3. Analyze Requirements | B77: Trace Requirements Artifacts | C77: Perform Gap Analysis | D77: US037 | E77: Identify missing model relationships | F77: Business Analyst | G77: to be able to identify objects that do not have relationships needed for coverage | H77: I can ensure I am not missing any requirements or including unnecessary requirements in my scope. | I77: US037-AC073 | J77: Can generate traceability reports that shows orphans (e.g. features that don't have objectives, etc.) | K77: =Table13[[#This Row],[Priority (1-8) - 8 is high 1 - Delighter feature that is wonderful to have but not critical for an RM tool 2 - Performance feature that is important to have and increases performance managing requirements 3,5,8 - Basic feature - MVP to be considered an RM]] -> 2 | L77: 2 | M77: 4
A78: 3. Analyze Requirements | B78: Trace Requirements Artifacts | C78: Perform Gap Analysis | D78: US037 | E78: Identify missing model relationships | F78: Business Analyst | G78: to be able to identify objects that do not have relationships needed for coverage | H78: I can ensure I am not missing any requirements or including unnecessary requirements in my scope. | I78: US037-AC074 | J78: Can track progress towards achieving full traceability with custom dashboard charts and graphs (e.g. can show bar chart with number of process steps still needing requirements, or show pie chart showing percentage of features that are mapped to business objectives) | K78: =Table13[[#This Row],[Priority (1-8) - 8 is high 1 - Delighter feature that is wonderful to have but not critical for an RM tool 2 - Performance feature that is important to have and increases performance managing requirements 3,5,8 - Basic feature - MVP to be considered an RM]] -> 1 | L78: 0 | M78: 0
A79: 4. Specify Requirements
A80: 4. Specify Requirements | B80: Document Requirements | C80: All object types | D80: US038 | E80: Import requirements | F80: Business Analyst | G80: to be able to import requirements/objects to the tool from an external source | H80: I can quickly manage all of the requirements for my project in a single location without having to duplicate efforts | I80: =D80&"-"&"AC"&TEXT(ROW()-5,"000") -> US038-AC075 | J80: Can import objects from Microsoft Word (could be through direct integration with the tool through something like a Word add-in or automatically identify requirements from key words, structure, etc.) | K80: =Table13[[#This Row],[Priority (1-8) - 8 is high 1 - Delighter feature that is wonderful to have but not critical for an RM tool 2 - Performance feature that is important to have and increases performance managing requirements 3,5,8 - Basic feature - MVP to be considered an RM]] -> 3 | L80: 1 | M80: 3
A81: 4. Specify Requirements | B81: Document Requirements | C81: All object types | D81: US038 | E81: Import requirements | F81: Business Analyst | G81: to be able to import requirements/objects to the tool from an external source | H81: I can quickly manage all of the requirements for my project in a single location without having to duplicate efforts | I81: US038-AC076 | J81: Can import objects from Microsoft Excel (e.g. use import template or format from tool, or enable user to select which column headings to map to which object field, or through direct integration with the tool (Excel add-in)) | K81: =Table13[[#This Row],[Priority (1-8) - 8 is high 1 - Delighter feature that is wonderful to have but not critical for an RM tool 2 - Performance feature that is important to have and increases performance managing requirements 3,5,8 - Basic feature - MVP to be considered an RM]] -> 5 | L81: 3 | M81: 15
A82: 4. Specify Requirements | B82: Document Requirements | C82: All object types | D82: US038 | E82: Import requirements | F82: Business Analyst | G82: to be able to import requirements/objects to the tool from an external source | H82: I can quickly manage all of the requirements for my project in a single location without having to duplicate efforts | I82: US038-AC077 | J82: Can import objects from Microsoft Visio (e.g. recognize all objects on a Visio page upon upload and select which to add, or through direct integration with the tool (Visio add-in)) | K82: =Table13[[#This Row],[Priority (1-8) - 8 is high 1 - Delighter feature that is wonderful to have but not critical for an RM tool 2 - Performance feature that is important to have and increases performance managing requirements 3,5,8 - Basic feature - MVP to be considered an RM]] -> 2 | L82: 0 | M82: 0
A83: 4. Specify Requirements | B83: Document Requirements | C83: All object types | D83: US038 | E83: Import requirements | F83: Business Analyst | G83: to attach AV files to my requirements objects | H83: I can refer to recorded elicitation sessions if I need more background information about an object | I83: US038-AC078 | J83: Can import external AV files and store them within the tool attached to objects (audio files, video files) | K83: =Table13[[#This Row],[Priority (1-8) - 8 is high 1 - Delighter feature that is wonderful to have but not critical for an RM tool 2 - Performance feature that is important to have and increases performance managing requirements 3,5,8 - Basic feature - MVP to be considered an RM]] -> 1 | L83: 0 | M83: 0
A84: 4. Specify Requirements | B84: Document Requirements | C84: All object types | D84: US040 | E84: Create requirement | F84: Business Analyst | G84: to be able to add new requirements for my product | H84: I can capture stakeholder needs as they come up | I84: US040-AC079 | J84: Enter individual requirements into the tool easily and with low user interaction with tool UI (low click count, etc.) | K84: =Table13[[#This Row],[Priority (1-8) - 8 is high 1 - Delighter feature that is wonderful to have but not critical for an RM tool 2 - Performance feature that is important to have and increases performance managing requirements 3,5,8 - Basic feature - MVP to be considered an RM]] -> 5 | L84: 2 | M84: 10
A85: 4. Specify Requirements | B85: Document Requirements | C85: All object types | D85: US040 | E85: Create requirement | F85: Business Analyst | G85: to be able to add new requirements for my product | H85: I can capture stakeholder needs as they come up | I85: US040-AC080 | J85: unique IDs are automatically generated for each created object | K85: =Table13[[#This Row],[Priority (1-8) - 8 is high 1 - Delighter feature that is wonderful to have but not critical for an RM tool 2 - Performance feature that is important to have and increases performance managing requirements 3,5,8 - Basic feature - MVP to be considered an RM]] -> 5 | L85: 3 | M85: 15
A86: 4. Specify Requirements | B86: Document Requirements | C86: All object types | D86: US041 | E86: Create related objects | F86: Business Analyst | G86: to be able to add new related objects from an object | H86: I can establish intrinsic traceability as I discover and document new items | I86: US041-AC081 | J86: Can create a relationship link and specify the type for an object you are looking at | K86: =Table13[[#This Row],[Priority (1-8) - 8 is high 1 - Delighter feature that is wonderful to have but not critical for an RM tool 2 - Performance feature that is important to have and increases performance managing requirements 3,5,8 - Basic feature - MVP to be considered an RM]] -> 5 | L86: 2 | M86: 10
A87: 4. Specify Requirements | B87: Document Requirements | C87: All object types | D87: US041 | E87: Create related objects | F87: Business Analyst | G87: to be able to add new related objects from an object | H87: I can establish intrinsic traceability as I discover and document new items | I87: US041-AC082 | J87: Can automatically create parent-child relationships by adding sub-objects | K87: =Table13[[#This Row],[Priority (1-8) - 8 is high 1 - Delighter feature that is wonderful to have but not critical for an RM tool 2 - Performance feature that is important to have and increases performance managing requirements 3,5,8 - Basic feature - MVP to be considered an RM]] -> 2 | L87: 0 | M87: 0
A88: 4. Specify Requirements | B88: Document Requirements | C88: All object types | D88: US042 | E88: Spell/Grammar Check | F88: Business Analyst | G88: the requirement management tool to automatically check for spelling and grammar errors | H88: I can produce accurate requirements and polished documentation. | I88: US042-AC083 | J88: Can run spelling and grammar check and highlight errors | K88: =Table13[[#This Row],[Priority (1-8) - 8 is high 1 - Delighter feature that is wonderful to have but not critical for an RM tool 2 - Performance feature that is important to have and increases performance managing requirements 3,5,8 - Basic feature - MVP to be considered an RM]] -> 2 | L88: 3 | M88: 6
A89: 4. Specify Requirements | B89: Assess requirements quality | C89: Unambiguous, atomic, verifiable, Correct, complete | D89: US044 | E89: Check requirements for use of problematic words | F89: Business Analyst | G89: to be able to check a set of my requirements to identify use of certain problematic words | H89: I can identify requirements that may need editing. | I89: US044-AC084 | J89: Can create a set of keywords that will be flagged if used in a requirement and user is notified (e.g. identify keywords that should be avoided because they are known for being ambiguous, or identify acronyms used that should be avoided) | K89: =Table13[[#This Row],[Priority (1-8) - 8 is high 1 - Delighter feature that is wonderful to have but not critical for an RM tool 2 - Performance feature that is important to have and increases performance managing requirements 3,5,8 - Basic feature - MVP to be considered an RM]] -> 1 | L89: 0 | M89: 0
A90: 4. Specify Requirements | B90: Assess requirements quality | C90: Necessary | D90: US045 | E90: Merge duplicate requirements | F90: Business Analyst | G90: to be able to mark requirements as duplicates and merge them together | H90: I can prevent having a lot of clutter in the tool | I90: US045-AC085 | J90: Can mark a requirement as duplicate and merge with another requirement | K90: =Table13[[#This Row],[Priority (1-8) - 8 is high 1 - Delighter feature that is wonderful to have but not critical for an RM tool 2 - Performance feature that is important to have and increases performance managing requirements 3,5,8 - Basic feature - MVP to be considered an RM]] -> 1 | L90: 1 | M90: 1 | N90: Not exactly intended feature, but you can merge requirements to features or covert features to reqs
A91: 4. Specify Requirements | B91: Assess requirements quality | C91: unambiguous | D91: US046 | E91: Map requirements' text to glossary terms | F91: Business Analyst | G91: to be able to see the definition of a word in a requirement object as it is defined in the project glossary | H91: I can spend less time navigating and searching through the glossary if there's a word I'm unsure about | I91: US046-AC086 | J91: Can identify words within an object's text that exist in the glossary and enable user to view the definition | K91: =Table13[[#This Row],[Priority (1-8) - 8 is high 1 - Delighter feature that is wonderful to have but not critical for an RM tool 2 - Performance feature that is important to have and increases performance managing requirements 3,5,8 - Basic feature - MVP to be considered an RM]] -> 1 | L91: 0 | M91: 0
A92: 4. Specify Requirements | B92: Produce requirements documents | C92: Populate documents | D92: US047 | E92: Populate requirements into a document for review | F92: Business Analyst | G92: to populate requirements documents with the requirements from the tool | H92: it can be reviewed by stakeholders outside the tool | I92: US047-AC087 | J92: Can create requirements document export templates (define custom format for word or excel) | K92: =Table13[[#This Row],[Priority (1-8) - 8 is high 1 - Delighter feature that is wonderful to have but not critical for an RM tool 2 - Performance feature that is important to have and increases performance managing requirements 3,5,8 - Basic feature - MVP to be considered an RM]] -> 2 | L92: 3 | M92: 6
A93: 4. Specify Requirements | B93: Produce requirements documents | C93: Populate documents | D93: US047 | E93: Populate requirements into a document for review | F93: Business Analyst | G93: to be able to populate requirements into a document | H93: it can be reviewed by stakeholders outside the tool | I93: US047-AC088 | J93: Can export a select group of requirements to a document template | K93: =Table13[[#This Row],[Priority (1-8) - 8 is high 1 - Delighter feature that is wonderful to have but not critical for an RM tool 2 - Performance feature that is important to have and increases performance managing requirements 3,5,8 - Basic feature - MVP to be considered an RM]] -> 5 | L93: 3 | M93: 15
A94: 4. Specify Requirements | B94: Produce requirements documents | C94: Populate documents | D94: US047 | E94: Populate requirements into a document for review | F94: Business Analyst | G94: to be able to populate requirements into a document | H94: it can be reviewed by stakeholders outside the tool | I94: US047-AC089 | J94: Highlight changes on exported document against a previous baseline | K94: =Table13[[#This Row],[Priority (1-8) - 8 is high 1 - Delighter feature that is wonderful to have but not critical for an RM tool 2 - Performance feature that is important to have and increases performance managing requirements 3,5,8 - Basic feature - MVP to be considered an RM]] -> 1 | L94: 1 | M94: 1
A95: 4. Specify Requirements | B95: Produce requirements documents | C95: Export requirements | D95: US048 | E95: Export requirements | F95: Business Analyst | G95: to be able to export a select set of requirements objects | H95: I can view them outside of the system when I need to share with others that don't have access to the tool (or so I can use other tools myself to update the information) | I95: US048-AC090 | J95: Can select attributes of objects to include in export | K95: =Table13[[#This Row],[Priority (1-8) - 8 is high 1 - Delighter feature that is wonderful to have but not critical for an RM tool 2 - Performance feature that is important to have and increases performance managing requirements 3,5,8 - Basic feature - MVP to be considered an RM]] -> 5 | L95: 1 | M95: 5
A96: 4. Specify Requirements | B96: Produce requirements documents | C96: Export requirements | D96: US048 | E96: Export requirements | F96: Business Analyst | G96: to be able to export a select set of requirements objects | H96: I can view them outside of the system when I need to share with others that don't have access to the tool (or so I can use other tools myself to update the information) | I96: US048-AC091 | J96: Can select objects to export | K96: =Table13[[#This Row],[Priority (1-8) - 8 is high 1 - Delighter feature that is wonderful to have but not critical for an RM tool 2 - Performance feature that is important to have and increases performance managing requirements 3,5,8 - Basic feature - MVP to be considered an RM]] -> 5 | L96: 3 | M96: 15
A97: 4. Specify Requirements | B97: Produce requirements documents | C97: Export requirements | D97: US048 | E97: Export requirements | F97: Business Analyst | G97: to be able to export a select set of requirements objects | H97: I can view them outside of the system when I need to share with others that don't have access to the tool (or so I can use other tools myself to update the information) | I97: US048-AC092 | J97: Can export to Excel | K97: =Table13[[#This Row],[Priority (1-8) - 8 is high 1 - Delighter feature that is wonderful to have but not critical for an RM tool 2 - Performance feature that is important to have and increases performance managing requirements 3,5,8 - Basic feature - MVP to be considered an RM]] -> 8 | L97: 2 | M97: 16
A98: 4. Specify Requirements | B98: Produce requirements documents | C98: Export requirements | D98: US048 | E98: Export requirements | F98: Business Analyst | G98: to be able to export a select set of requirements objects | H98: I can view them outside of the system when I need to share with others that don't have access to the tool (or so I can use other tools myself to update the information) | I98: US048-AC093 | J98: Can export to Word | K98: =Table13[[#This Row],[Priority (1-8) - 8 is high 1 - Delighter feature that is wonderful to have but not critical for an RM tool 2 - Performance feature that is important to have and increases performance managing requirements 3,5,8 - Basic feature - MVP to be considered an RM]] -> 8 | L98: 2 | M98: 16
A99: 4. Specify Requirements | B99: Produce requirements documents | C99: Export requirements | D99: US048 | E99: Export requirements | F99: Business Analyst | G99: to be able to export a select set of requirements objects | H99: I can view them outside of the system when I need to share with others that don't have access to the tool (or so I can use other tools myself to update the information) | I99: US048-AC094 | J99: Can export objects that represent visual models or images and have them display as images in the exported document | K99: =Table13[[#This Row],[Priority (1-8) - 8 is high 1 - Delighter feature that is wonderful to have but not critical for an RM tool 2 - Performance feature that is important to have and increases performance managing requirements 3,5,8 - Basic feature - MVP to be considered an RM]] -> 2 | L99: 2 | M99: 4
A100: 4. Specify Requirements | B100: Document Requirements | C100: Elaborate Requirements | D100: US049 | E100: Link requirements to external documents | F100: Business Analyst | G100: to be able to associate an external document with a requirement | H100: I can easily access documentation related to the requirement | I100: US049-AC095 | J100: Can link an external document (i.e. document on SharePoint or internal database) to a requirement and access the link | K100: =Table13[[#This Row],[Priority (1-8) - 8 is high 1 - Delighter feature that is wonderful to have but not critical for an RM tool 2 - Performance feature that is important to have and increases performance managing requirements 3,5,8 - Basic feature - MVP to be considered an RM]] -> 2 | L100: 3 | M100: 6
A101: 5. Validate Requirements
A102: 5. Validate requirements | B102: Review with stakeholders | C102: Confirm feature alignment with Business Objectives | D102: US052 | E102: Request review/approval | F102: Business Analyst | G102: I want to be able to select a set of requirements objects for users to review and approve within the tool | H102: I can validate that my requirements align with needs and business value with stakeholders without having to continually be in meetings with them | I102: =D102&"-"&"AC"&TEXT(ROW()-6,"000") -> US052-AC096 | J102: Can request for a set of requirements objects to be reviewed | K102: =Table13[[#This Row],[Priority (1-8) - 8 is high 1 - Delighter feature that is wonderful to have but not critical for an RM tool 2 - Performance feature that is important to have and increases performance managing requirements 3,5,8 - Basic feature - MVP to be considered an RM]] -> 2 | L102: 3 | M102: 6
A103: 5. Validate requirements | B103: Review with stakeholders | C103: Confirm feature alignment with Business Objectives | D103: US052 | E103: Request review/approval | F103: Business Analyst | G103: I want to be able to select a set of requirements objects for users to review and approve within the tool | H103: I can validate that my requirements align with needs and business value with stakeholders without having to continually be in meetings with them | I103: US052-AC097 | J103: Can specify user as various standard roles, like reviewer, approver, etc. | K103: =Table13[[#This Row],[Priority (1-8) - 8 is high 1 - Delighter feature that is wonderful to have but not critical for an RM tool 2 - Performance feature that is important to have and increases performance managing requirements 3,5,8 - Basic feature - MVP to be considered an RM]] -> 2 | L103: 2 | M103: 4 | N103: Not easy first time around
A104: 5. Validate requirements | B104: Review with stakeholders | C104: Confirm feature alignment with Business Objectives | D104: US052 | E104: Request review/approval | F104: Business Analyst | G104: I want to be able to select a set of requirements objects for users to review and approve within the tool | H104: I can validate that my requirements align with needs and business value with stakeholders without having to continually be in meetings with them | I104: US052-AC098 | J104: Users are notified when they have been selected to review a set of requirements | K104: =Table13[[#This Row],[Priority (1-8) - 8 is high 1 - Delighter feature that is wonderful to have but not critical for an RM tool 2 - Performance feature that is important to have and increases performance managing requirements 3,5,8 - Basic feature - MVP to be considered an RM]] -> 2 | L104: 3 | M104: 6 | N104: It can notify
A105: 5. Validate requirements | B105: Review with stakeholders | C105: Confirm feature alignment with Business Objectives | D105: US052 | E105: Request review/approval | F105: Business Analyst | G105: I want to be able to select a set of requirements objects for users to review and approve within the tool | H105: I can validate that my requirements align with needs and business value with stakeholders without having to continually be in meetings with them | I105: US052-AC099 | J105: Can track status on reviews | K105: =Table13[[#This Row],[Priority (1-8) - 8 is high 1 - Delighter feature that is wonderful to have but not critical for an RM tool 2 - Performance feature that is important to have and increases performance managing requirements 3,5,8 - Basic feature - MVP to be considered an RM]] -> 2 | L105: 2 | M105: 4 | N105: Could not find without vendor assistance
A106: 5. Validate requirements | B106: Review with stakeholders | C106: Confirm feature alignment with Business Objectives | D106: US052 | E106: Request review/approval | F106: Business Analyst | G106: I want to be able to select a set of requirements objects for users to review and approve within the tool | H106: I can validate that my requirements align with needs and business value with stakeholders without having to continually be in meetings with them | I106: US052-AC100 | J106: Owner notified when a requirement has been actioned (reviewed, approved, rejected, commented on) | K106: =Table13[[#This Row],[Priority (1-8) - 8 is high 1 - Delighter feature that is wonderful to have but not critical for an RM tool 2 - Performance feature that is important to have and increases performance managing requirements 3,5,8 - Basic feature - MVP to be considered an RM]] -> 2 | L106: 2 | M106: 4
A107: 5. Validate requirements | B107: Obtain Approval | C107: On individual requirements, on a set of requirements | D107: US053 | E107: Review/approve requirements | F107: Stakeholder | G107: to be able to review and approve or reject requirements in the tool | H107: I know the requirements satisfy my objectives before they are sent to the development team | I107: US053-AC101 | J107: Can review sets of requirements in the tool and indicate they've been reviewed | K107: =Table13[[#This Row],[Priority (1-8) - 8 is high 1 - Delighter feature that is wonderful to have but not critical for an RM tool 2 - Performance feature that is important to have and increases performance managing requirements 3,5,8 - Basic feature - MVP to be considered an RM]] -> 2 | L107: 2 | M107: 4
A108: 5. Validate requirements | B108: Obtain Approval | C108: On individual requirements, on a set of requirements | D108: US053 | E108: Review/approve requirements | F108: Stakeholder | G108: to be able to review and approve or reject requirements in the tool | H108: I know the requirements satisfy my objectives before they are sent to the development team | I108: US053-AC102 | J108: Can approve one or more requirements | K108: =Table13[[#This Row],[Priority (1-8) - 8 is high 1 - Delighter feature that is wonderful to have but not critical for an RM tool 2 - Performance feature that is important to have and increases performance managing requirements 3,5,8 - Basic feature - MVP to be considered an RM]] -> 2 | L108: 3 | M108: 6
A109: 5. Validate requirements | B109: Obtain Approval | C109: On individual requirements, on a set of requirements | D109: US053 | E109: Review/approve requirements | F109: Stakeholder | G109: to be able to review and approve or reject requirements in the tool | H109: I know the requirements satisfy my objectives before they are sent to the development team | I109: US053-AC103 | J109: Can reject one or more requirements as needing more work | K109: =Table13[[#This Row],[Priority (1-8) - 8 is high 1 - Delighter feature that is wonderful to have but not critical for an RM tool 2 - Performance feature that is important to have and increases performance managing requirements 3,5,8 - Basic feature - MVP to be considered an RM]] -> 2 | L109: 0 | M109: 0
A110: 5. Validate requirements | B110: Review with stakeholders | C110: Capture Feedback | D110: US054 | E110: Provide feedback | F110: Stakeholder | G110: to be able to provide feedback about requirements | H110: I can ensure any requirements errors, issues and questions are captured for the team to consider | I110: US054-AC104 | J110: Can add feedback commentary on requirements | K110: =Table13[[#This Row],[Priority (1-8) - 8 is high 1 - Delighter feature that is wonderful to have but not critical for an RM tool 2 - Performance feature that is important to have and increases performance managing requirements 3,5,8 - Basic feature - MVP to be considered an RM]] -> 2 | L110: 3 | M110: 6
A111: 5. Validate requirements | B111: Review with stakeholders | C111: Capture Feedback | D111: US056 | E111: Edit rejected requirements | F111: Business Analyst | G111: to be able to edit rejected requirements and resubmit them for approval | H111: I can incorporate feedback from stakeholders and ensure my requirements are correct | I111: US056-AC105 | J111: Once a requirement has been rejected, then edited based on feedback, user can submit for iterative reviews until approval is received (and store a history of the iterative reviews) | K111: =Table13[[#This Row],[Priority (1-8) - 8 is high 1 - Delighter feature that is wonderful to have but not critical for an RM tool 2 - Performance feature that is important to have and increases performance managing requirements 3,5,8 - Basic feature - MVP to be considered an RM]] -> 2 | L111: 0 | M111: 0
A112: 5. Validate Requirements | B112: Review with stakeholders | C112: Capture Feedback | D112: US057 | E112: Import edited exported documents | F112: Business Analyst | G112: to be able to import exported requirements documents back into the system | H112: changes do not have be manually inputted | I112: US057-AC106 | J112: If items have been exported from the tool and edited, then changes can be re-imported back into the tool | K112: =Table13[[#This Row],[Priority (1-8) - 8 is high 1 - Delighter feature that is wonderful to have but not critical for an RM tool 2 - Performance feature that is important to have and increases performance managing requirements 3,5,8 - Basic feature - MVP to be considered an RM]] -> 2 | L112: 0 | M112: 0
A113: 5. Validate requirements | B113: Prioritize Requirements | C113: Assign Priority Score | D113: US058 | E113: Set priority on requirements | F113: Product manager, Product owner | G113: to be able to prioritize my requirements | H113: I can determine which requirements/features to build first | I113: US058-AC107 | J113: Can set a priority on requirements | K113: =Table13[[#This Row],[Priority (1-8) - 8 is high 1 - Delighter feature that is wonderful to have but not critical for an RM tool 2 - Performance feature that is important to have and increases performance managing requirements 3,5,8 - Basic feature - MVP to be considered an RM]] -> 5 | L113: 2 | M113: 10
A114: 5. Validate requirements | B114: Prioritize Requirements | C114: Assign Priority Score | D114: US058 | E114: Set priority on requirements | F114: Product manager, Product owner | G114: to be able to prioritize my requirements | H114: I can determine which requirements/features to build first | I114: US058-AC108 | J114: Can specify custom prioritization scale/mechanism | K114: =Table13[[#This Row],[Priority (1-8) - 8 is high 1 - Delighter feature that is wonderful to have but not critical for an RM tool 2 - Performance feature that is important to have and increases performance managing requirements 3,5,8 - Basic feature - MVP to be considered an RM]] -> 2 | L114: 3 | M114: 6
A115: 5. Validate requirements | B115: Prioritize Requirements | C115: Assign Priority Score | D115: US059 | E115: Prioritize backlog | F115: Product Owner | G115: to be able to keep my backlog of user stories constantly prioritized | H115: the development team knows which items to pull off of the top of the backlog to accept into sprints | I115: US059-AC109 | J115: Can assign stack ranking to user stories | K115: =Table13[[#This Row],[Priority (1-8) - 8 is high 1 - Delighter feature that is wonderful to have but not critical for an RM tool 2 - Performance feature that is important to have and increases performance managing requirements 3,5,8 - Basic feature - MVP to be considered an RM]] -> 2 | L115: 3 | M115: 6
A116: 5. Validate requirements | B116: Prioritize Requirements | C116: Assign Priority Score | D116: US059 | E116: Prioritize backlog | F116: Product Owner | G116: to be able to keep my backlog of user stories constantly prioritized | H116: the development team knows which items to pull off of the top of the backlog to accept into sprints | I116: US059-AC110 | J116: Can easily assign/update stack ranking in the interface (e.g. drag and drop to re-order) | K116: =Table13[[#This Row],[Priority (1-8) - 8 is high 1 - Delighter feature that is wonderful to have but not critical for an RM tool 2 - Performance feature that is important to have and increases performance managing requirements 3,5,8 - Basic feature - MVP to be considered an RM]] -> 2 | L116: 3 | M116: 6
A117: 6. Manage Requirements
A118: 6. Manage Requirements | B118: Administer Project | C118: Start and manage issues list | D118: US061 | E118: Manage project issues | F118: Business Analyst | G118: to store all of the issues for my project in an issues list that others can view and update | H118: my team has transparency around all open items on the project (and people can be reminded of their action items) | I118: =D118&"-"&"AC"&TEXT(ROW()-7,"000") -> US061-AC111 | J118: Can add project issues (individually, in bulk through Word or Excel, from e-mail, directly from a requirement) | K118: =Table13[[#This Row],[Priority (1-8) - 8 is high 1 - Delighter feature that is wonderful to have but not critical for an RM tool 2 - Performance feature that is important to have and increases performance managing requirements 3,5,8 - Basic feature - MVP to be considered an RM]] -> 2 | L118: 2 | M118: 4
A119: 6. Manage Requirements | B119: Administer Project | C119: Start and manage issues list | D119: US061 | E119: Manage project issues | F119: Business Analyst | G119: to store all of the issues for my project in an issues list that others can view and update | H119: my team has transparency around all open items on the project (and people can be reminded of their action items) | I119: US061-AC112 | J119: Can relate (link) an issue to one or more requirements | K119: =Table13[[#This Row],[Priority (1-8) - 8 is high 1 - Delighter feature that is wonderful to have but not critical for an RM tool 2 - Performance feature that is important to have and increases performance managing requirements 3,5,8 - Basic feature - MVP to be considered an RM]] -> 2 | L119: 1 | M119: 2 | N119: Created as feature with multiple requirements
A120: 6. Manage Requirements | B120: Administer Project | C120: Start and manage issues list | D120: US062 | E120: Link requirements to external issues list | F120: Business Analyst | G120: to be able to link a requirement to a specific issue in another tool | H120: I can view issues associated with requirements that are stored outside of the requirements management tool. | I120: US062-AC113 | J120: Can integrate with another issue tracking tool (e.g. SharePoint, can link a requirement to one or more issues in a collaboration or issue tracking tool with a URL) | K120: =Table13[[#This Row],[Priority (1-8) - 8 is high 1 - Delighter feature that is wonderful to have but not critical for an RM tool 2 - Performance feature that is important to have and increases performance managing requirements 3,5,8 - Basic feature - MVP to be considered an RM]] -> 2 | L120: 1 | M120: 2 | N120: JIRA
A121: 6. Manage Requirements | B121: Track health metrics | C121: issues count | D121: US063 | E121: Issue tracking functionality | F121: Business Analyst | G121: to track issues associated with my requirements | H121: the team can monitor the health of our requirements based on issues are being identified, documented and resolved | I121: US063-AC114 | J121: Tool can generate metrics based on user specified attributes (ex: issue status, date opened, time to close, etc.) | K121: =Table13[[#This Row],[Priority (1-8) - 8 is high 1 - Delighter feature that is wonderful to have but not critical for an RM tool 2 - Performance feature that is important to have and increases performance managing requirements 3,5,8 - Basic feature - MVP to be considered an RM]] -> 1 | L121: 2 | M121: 2 | N121: Pivot tables - could not find without vendor assistance
A122: 6. Manage Requirements | B122: Update Requirements | C122: Maintain Documentation | D122: US064 | E122: Versioning - lock for edit/check out | F122: Business Analyst | G122: to be able to restrict another user from editing a requirement while I'm editing in online mode | H122: I can prevent version issues | I122: US064-AC115 | J122: Tool referees competing changes to a requirement in a logical way" or something | K122: =Table13[[#This Row],[Priority (1-8) - 8 is high 1 - Delighter feature that is wonderful to have but not critical for an RM tool 2 - Performance feature that is important to have and increases performance managing requirements 3,5,8 - Basic feature - MVP to be considered an RM]] -> 3 | L122: 3 | M122: 9
A123: 6. Manage Requirements | B123: Update Requirements | C123: Maintain Documentation | D123: US066 | E123: Versioning - editing local copies | F123: Business Analyst | G123: to be able to work on requirements offline (i.e. while disconnected from the requirements management tool server) and connect to upload my changes when I am done | H123: I have the flexibility to continue to work when I am unable to connect to the tool. | I123: US066-AC116 | J123: Can work in an offline/disconnected state of the client and synchronize the updates to the tool when back online (working in offline doc and syncing back is covered in another AC under validate) | K123: =Table13[[#This Row],[Priority (1-8) - 8 is high 1 - Delighter feature that is wonderful to have but not critical for an RM tool 2 - Performance feature that is important to have and increases performance managing requirements 3,5,8 - Basic feature - MVP to be considered an RM]] -> 2 | L123: 0 | M123: 0
A124: 6. Manage Requirements | B124: Update Requirements | C124: Track Version History | D124: US067 | E124: Establish Baseline | F124: Business Analyst | G124: to be able to establish a baseline set of requirements | H124: I can assess impacts to project budget and timeline as requirements are added, changed, or deleted. | I124: =D124&"-"&"AC"&TEXT(ROW()-7,"000") -> US067-AC117 | J124: Can establish a baseline on a set of requirements | K124: =Table13[[#This Row],[Priority (1-8) - 8 is high 1 - Delighter feature that is wonderful to have but not critical for an RM tool 2 - Performance feature that is important to have and increases performance managing requirements 3,5,8 - Basic feature - MVP to be considered an RM]] -> 2 | L124: 0 | M124: =K124*L124 -> 0
A125: 6. Manage Requirements | B125: Update Requirements | C125: Track Version History | D125: US067 | E125: Establish Baseline | F125: Business Analyst | G125: to be able to establish a baseline set of requirements | H125: I can assess impacts to project budget and timeline as requirements are added, changed, or deleted. | I125: US067-AC118 | J125: Can compare current version against baseline | K125: =Table13[[#This Row],[Priority (1-8) - 8 is high 1 - Delighter feature that is wonderful to have but not critical for an RM tool 2 - Performance feature that is important to have and increases performance managing requirements 3,5,8 - Basic feature - MVP to be considered an RM]] -> 2 | L125: 1 | M125: 2 | N125: Need custom req. status
A126: 6. Manage Requirements | B126: Update Requirements | C126: Track version history | D126: US068 | E126: Identify new requirements | F126: Business Analyst | G126: to be able to identify any new requirements that are added to a set after baseline | H126: I can ensure requirements are reviewed/approved. | I126: US068-AC119 | J126: Flags requirements created after baseline as new | K126: =Table13[[#This Row],[Priority (1-8) - 8 is high 1 - Delighter feature that is wonderful to have but not critical for an RM tool 2 - Performance feature that is important to have and increases performance managing requirements 3,5,8 - Basic feature - MVP to be considered an RM]] -> 2 | L126: 1 | M126: 2 | N126: Custom req. status
A127: 6. Manage Requirements | B127: Update Requirements | C127: Track version history | D127: US068 | E127: Identify new requirements | F127: Business Analyst | G127: to be able to identify any new requirements that are added to a set after baseline | H127: I can ensure requirements are reviewed/approved. | I127: US068-AC120 | J127: Can mark requirement as acknowledged (so that it's no longer flagged as new) | K127: =Table13[[#This Row],[Priority (1-8) - 8 is high 1 - Delighter feature that is wonderful to have but not critical for an RM tool 2 - Performance feature that is important to have and increases performance managing requirements 3,5,8 - Basic feature - MVP to be considered an RM]] -> 1 | L127: 3 | M127: 3
A128: 6. Manage Requirements | B128: Update Requirements | C128: Track version history | D128: US069 | E128: Identifying edited requirements | F128: Business Analyst | G128: to be able to identify any requirements that have been updated after baseline | H128: I can ensure changes to baselined requirements are reviewed/approved (and I can consider the impacts of those changes to downstream requirements) | I128: US069-AC121 | J128: Can notify users that a requirement has been edited | K128: =Table13[[#This Row],[Priority (1-8) - 8 is high 1 - Delighter feature that is wonderful to have but not critical for an RM tool 2 - Performance feature that is important to have and increases performance managing requirements 3,5,8 - Basic feature - MVP to be considered an RM]] -> 1 | L128: 0 | M128: 0
A129: 6. Manage Requirements | B129: Update Requirements | C129: Track version history | D129: US070 | E129: Audit trail | F129: Business Analyst | G129: the tool to maintain a history of the changes that are made to any requirements objects | H129: I can understand the evolution of each requirement (and refer back to previous versions if needed) | I129: US070-AC122 | J129: Tool retains all previous versions of requirements objects | K129: =Table13[[#This Row],[Priority (1-8) - 8 is high 1 - Delighter feature that is wonderful to have but not critical for an RM tool 2 - Performance feature that is important to have and increases performance managing requirements 3,5,8 - Basic feature - MVP to be considered an RM]] -> 3 | L129: 3 | M129: 9
A130: 6. Manage Requirements | B130: Update Requirements | C130: Track version history | D130: US070 | E130: Audit trail | F130: Business Analyst | G130: the tool to maintain a history of the changes that are made to any requirements objects | H130: I can understand the evolution of each requirement (and refer back to previous versions if needed) | I130: US070-AC123 | J130: Tool logs author, date, and time of all actions taken on objects | K130: =Table13[[#This Row],[Priority (1-8) - 8 is high 1 - Delighter feature that is wonderful to have but not critical for an RM tool 2 - Performance feature that is important to have and increases performance managing requirements 3,5,8 - Basic feature - MVP to be considered an RM]] -> 3 | L130: 2 | M130: 6
A131: 6. Manage Requirements | B131: Update Requirements | C131: Track version history | D131: US070 | E131: Audit trail | F131: Business Analyst | G131: the tool to maintain a history of the changes that are made to any requirements objects | H131: I can understand the evolution of each requirement (and refer back to previous versions if needed) | I131: US070-AC124 | J131: Can view previous versions of a selected object | K131: =Table13[[#This Row],[Priority (1-8) - 8 is high 1 - Delighter feature that is wonderful to have but not critical for an RM tool 2 - Performance feature that is important to have and increases performance managing requirements 3,5,8 - Basic feature - MVP to be considered an RM]] -> 1 | L131: 3 | M131: 3
A132: 6. Manage Requirements | B132: Update Requirements | C132: Track version history | D132: US070 | E132: Audit trail | F132: Business Analyst | G132: the tool to maintain a history of the changes that are made to any requirements objects | H132: I can understand the evolution of each requirement (and refer back to previous versions if needed) | I132: US070-AC125 | J132: Can view audit log for a given object (log of author, date and time of all actions taken) | K132: =Table13[[#This Row],[Priority (1-8) - 8 is high 1 - Delighter feature that is wonderful to have but not critical for an RM tool 2 - Performance feature that is important to have and increases performance managing requirements 3,5,8 - Basic feature - MVP to be considered an RM]] -> 2 | L132: 3 | M132: 6 | N132: Actions dropdown
A133: 6. Manage Requirements | B133: Update Requirements | C133: Maintain Documentation | D133: US071 | E133: Delete requirements | F133: Business Analyst | G133: to be able to delete requirements | H133: I don't have requirements that are no longer needed or relevant (or created by accident) cluttering the tool | I133: US071-AC126 | J133: Can delete objects | K133: =Table13[[#This Row],[Priority (1-8) - 8 is high 1 - Delighter feature that is wonderful to have but not critical for an RM tool 2 - Performance feature that is important to have and increases performance managing requirements 3,5,8 - Basic feature - MVP to be considered an RM]] -> 2 | L133: 1 | M133: 2
A134: 6. Manage Requirements | B134: Update Requirements | C134: Maintain Documentation | D134: US071 | E134: Delete requirements | F134: Business Analyst | G134: to be able to delete requirements | H134: I don't have requirements that are no longer needed or relevant (or created by accident) cluttering the tool | I134: US071-AC127 | J134: Can alert user of other requirements that are linked to objects that are to-be deleted | K134: =Table13[[#This Row],[Priority (1-8) - 8 is high 1 - Delighter feature that is wonderful to have but not critical for an RM tool 2 - Performance feature that is important to have and increases performance managing requirements 3,5,8 - Basic feature - MVP to be considered an RM]] -> 2 | L134: 3 | M134: 6
A135: 6. Manage Requirements | B135: Update Requirements | C135: Track version history | D135: US072 | E135: Retain history of deleted requirements | F135: Business Analyst | G135: to be able to access requirements that have been deleted | H135: so that I can restore them to the current or future project(s). | I135: US072-AC128 | J135: Can view objects that have been deleted (so tool must store) | K135: =Table13[[#This Row],[Priority (1-8) - 8 is high 1 - Delighter feature that is wonderful to have but not critical for an RM tool 2 - Performance feature that is important to have and increases performance managing requirements 3,5,8 - Basic feature - MVP to be considered an RM]] -> 2 | L135: 0 | M135: 0
A136: 6. Manage Requirements | B136: Update Requirements | C136: Track version history | D136: US072 | E136: Retain history of deleted requirements | F136: Business Analyst | G136: to be able to access requirements that have been deleted | H136: so that I can restore them to the current or future project(s). | I136: US072-AC129 | J136: Can restore an object that has been deleted | K136: =Table13[[#This Row],[Priority (1-8) - 8 is high 1 - Delighter feature that is wonderful to have but not critical for an RM tool 2 - Performance feature that is important to have and increases performance managing requirements 3,5,8 - Basic feature - MVP to be considered an RM]] -> 2 | L136: 0 | M136: 0
A137: 6. Manage Requirements | B137: Update Requirements | C137: Maintain Documentation | D137: US073 | E137: Edit individual objects | F137: Business Analyst | G137: to be able to edit requirements | H137: I can update requirements with accurate information as the project evolves. | I137: US073-AC130 | J137: Can change attribute values of objects | K137: =Table13[[#This Row],[Priority (1-8) - 8 is high 1 - Delighter feature that is wonderful to have but not critical for an RM tool 2 - Performance feature that is important to have and increases performance managing requirements 3,5,8 - Basic feature - MVP to be considered an RM]] -> 8 | L137: 3 | M137: 24
A138: 6. Manage Requirements | B138: Update Requirements | C138: Maintain Documentation | D138: US073 | E138: Edit individual objects | F138: Business Analyst | G138: to be able to edit requirements | H138: I can update requirements with accurate information as the project evolves. | I138: US073-AC131 | J138: Can indicate which attributes of an object can be editable after creation | K138: =Table13[[#This Row],[Priority (1-8) - 8 is high 1 - Delighter feature that is wonderful to have but not critical for an RM tool 2 - Performance feature that is important to have and increases performance managing requirements 3,5,8 - Basic feature - MVP to be considered an RM]] -> 2 | L138: 3 | M138: 6
A139: 6. Manage Requirements | B139: Update Requirements | C139: Maintain Documentation | D139: US073 | E139: Edit individual objects | F139: Business Analyst | G139: to be able to edit requirements | H139: I can update requirements with accurate information as the project evolves. | I139: US073-AC132 | J139: Can undo the immediately previous change | K139: =Table13[[#This Row],[Priority (1-8) - 8 is high 1 - Delighter feature that is wonderful to have but not critical for an RM tool 2 - Performance feature that is important to have and increases performance managing requirements 3,5,8 - Basic feature - MVP to be considered an RM]] -> 2 | L139: 3 | M139: 6
A140: 6. Manage Requirements | B140: Update Requirements | C140: Maintain Documentation | D140: US074 | E140: Edit many objects | F140: Business Analyst | G140: to be able to edit requirements many requirements at once | H140: I can minimize my time spent navigating through multiple pages of individual requirements | I140: US074-AC133 | J140: Can edit multiple requirements in a selected set in-line (e.g. like in a an excel spreadsheet or grid) without having to click into each individual object | K140: =Table13[[#This Row],[Priority (1-8) - 8 is high 1 - Delighter feature that is wonderful to have but not critical for an RM tool 2 - Performance feature that is important to have and increases performance managing requirements 3,5,8 - Basic feature - MVP to be considered an RM]] -> 2 | L140: 3 | M140: 6 | N140: Drop down menu
A141: 6. Manage Requirements | B141: Update Requirements | C141: Maintain Documentation | D141: US074 | E141: Edit many objects | F141: Business Analyst | G141: to be able to edit requirements many requirements at once | H141: I can minimize my time spent navigating through multiple pages of individual requirements | I141: US074-AC134 | J141: Can bulk-edit requirement attributes (can select multiple requirements and change a field to a specified value for all selected requirements) | K141: =Table13[[#This Row],[Priority (1-8) - 8 is high 1 - Delighter feature that is wonderful to have but not critical for an RM tool 2 - Performance feature that is important to have and increases performance managing requirements 3,5,8 - Basic feature - MVP to be considered an RM]] -> 2 | L141: 1 | M141: 2
A142: 6. Manage Requirements | B142: Evaluate impacts of change | C142: Identify affected areas | D142: US075 | E142: Perform impact analysis | F142: Business Analyst | G142: to be able to identify the impact of a change on a requirement | H142: I can determine whether I need to make changes to any related objects | I142: US075-AC135 | J142: When an object is changed, user can choose to highlight suspect relationships | K142: =Table13[[#This Row],[Priority (1-8) - 8 is high 1 - Delighter feature that is wonderful to have but not critical for an RM tool 2 - Performance feature that is important to have and increases performance managing requirements 3,5,8 - Basic feature - MVP to be considered an RM]] -> 1 | L142: 0 | M142: 0
A143: 6. Manage Requirements | B143: Evaluate impacts of change | C143: Identify affected areas | D143: US075 | E143: Perform impact analysis | F143: Business Analyst | G143: to be able to identify the impact of a change on a requirement | H143: I can determine whether I need to make changes to any related objects | I143: US075-AC136 | J143: Can clear suspect flags when related objects are changed | K143: =Table13[[#This Row],[Priority (1-8) - 8 is high 1 - Delighter feature that is wonderful to have but not critical for an RM tool 2 - Performance feature that is important to have and increases performance managing requirements 3,5,8 - Basic feature - MVP to be considered an RM]] -> 1 | L143: 0 | M143: 0
A144: 6. Manage Requirements | B144: Track health metrics | C144: Track health metrics | D144: US076 | E144: Metrics reporting | F144: Business Analyst | G144: to be able to report on metrics | H144: I can have a detailed understanding of the progress of a project and the health of my requirements | I144: US076-AC137 | J144: Can create custom filters with objects and attributes to report on (e.g. number of user stories that do not have acceptance criteria, number of items with attached open issues, report of any object by status, etc.) | K144: =Table13[[#This Row],[Priority (1-8) - 8 is high 1 - Delighter feature that is wonderful to have but not critical for an RM tool 2 - Performance feature that is important to have and increases performance managing requirements 3,5,8 - Basic feature - MVP to be considered an RM]] -> 5 | L144: 0 | M144: 0
A145: 6. Manage Requirements | B145: Track health metrics | C145: Track health metrics | D145: US076 | E145: Metrics reporting | F145: Business Analyst | G145: to be able to report on metrics | H145: I can have a detailed understanding of the progress of a project and the health of my requirements | I145: US076-AC138 | J145: Can download reports | K145: =Table13[[#This Row],[Priority (1-8) - 8 is high 1 - Delighter feature that is wonderful to have but not critical for an RM tool 2 - Performance feature that is important to have and increases performance managing requirements 3,5,8 - Basic feature - MVP to be considered an RM]] -> 2 | L145: 3 | M145: 6
A146: 6. Manage Requirements | B146: Track health metrics | C146: Track health metrics | D146: US076 | E146: Metrics reporting | F146: Business Analyst | G146: to be able to report on metrics | H146: I can have a detailed understanding of the progress of a project and the health of my requirements | I146: US076-AC139 | J146: Can deliver reports via email | K146: =Table13[[#This Row],[Priority (1-8) - 8 is high 1 - Delighter feature that is wonderful to have but not critical for an RM tool 2 - Performance feature that is important to have and increases performance managing requirements 3,5,8 - Basic feature - MVP to be considered an RM]] -> 1 | L146: 2 | M146: 2
A147: 6. Manage Requirements | B147: Track health metrics | C147: Track health metrics | D147: US076 | E147: Metrics reporting | F147: Business Analyst | G147: to be able to report on metrics | H147: I can have a detailed understanding of the progress of a project and the health of my requirements | I147: US076-AC140 | J147: Can export report data (excel, word) | K147: =Table13[[#This Row],[Priority (1-8) - 8 is high 1 - Delighter feature that is wonderful to have but not critical for an RM tool 2 - Performance feature that is important to have and increases performance managing requirements 3,5,8 - Basic feature - MVP to be considered an RM]] -> 2 | L147: 2 | M147: 4 | N147: Could not find without vendor assistance
A148: 6. Manage Requirements | B148: Track health metrics | C148: Track health metrics | D148: US077 | E148: Metrics reporting - charts/graphs | F148: Business Analyst | G148: to be able to display health metrics visually | H148: I can easily share updates with the project team, stakeholders, and executives | I148: US077-AC141 | J148: Can generate charts/graphs to visually display selected metrics | K148: =Table13[[#This Row],[Priority (1-8) - 8 is high 1 - Delighter feature that is wonderful to have but not critical for an RM tool 2 - Performance feature that is important to have and increases performance managing requirements 3,5,8 - Basic feature - MVP to be considered an RM]] -> 2 | L148: 2 | M148: =K148*L148 -> 4 | N148: Could not find without vendor assistance
A149: 6. Manage Requirements | B149: Track health metrics | C149: Track health metrics | D149: US077 | E149: Metrics reporting - charts/graphs | F149: Business Analyst | G149: to be able to display health metrics visually | H149: I can easily share updates with the project team, stakeholders, and executives | I149: US077-AC142 | J149: Can create/customize a project metrics dashboard | K149: =Table13[[#This Row],[Priority (1-8) - 8 is high 1 - Delighter feature that is wonderful to have but not critical for an RM tool 2 - Performance feature that is important to have and increases performance managing requirements 3,5,8 - Basic feature - MVP to be considered an RM]] -> 1 | L149: 0 | M149: 0
A150: 6. Manage Requirements | B150: Track health metrics | C150: Track health metrics | D150: US077 | E150: Metrics reporting - charts/graphs | F150: Business Analyst | G150: to be able to display health metrics visually | H150: I can easily share updates with the project team, stakeholders, and executives | I150: US077-AC143 | J150: Can create burn down reports | K150: =Table13[[#This Row],[Priority (1-8) - 8 is high 1 - Delighter feature that is wonderful to have but not critical for an RM tool 2 - Performance feature that is important to have and increases performance managing requirements 3,5,8 - Basic feature - MVP to be considered an RM]] -> 2 | L150: 1 | M150: 2 | N150: A model that is similar
A151: 6. Manage Requirements | B151: Create test plans | C151: Create UAT scripts | D151: US078 | E151: Auto generate a draft UAT script for a set of requirements | F151: Business Analyst | G151: to be able to auto generate a draft test script from a set of requirements | H151: I have a place to start from when writing test scripts. | I151: US078-AC144 | J151: Can convert process flows, user stories or use cases (or something similar) into test scripts | K151: =Table13[[#This Row],[Priority (1-8) - 8 is high 1 - Delighter feature that is wonderful to have but not critical for an RM tool 2 - Performance feature that is important to have and increases performance managing requirements 3,5,8 - Basic feature - MVP to be considered an RM]] -> 1 | L151: 0 | M151: 0
A152: 6. Manage Requirements | B152: Update Requirements | C152: Maintain Documentation | D152: US079 | E152: Versioning - Roll back | F152: Business Analyst | G152: to be able to revert requirements, models or documents back to a previous version | H152: I do not have to try to recreate artifacts if a mistake has been made or stakeholder's have changed their mind. | I152: US079-AC145 | J152: Can select a previous version of a requirement, model, or document as the current version | K152: =Table13[[#This Row],[Priority (1-8) - 8 is high 1 - Delighter feature that is wonderful to have but not critical for an RM tool 2 - Performance feature that is important to have and increases performance managing requirements 3,5,8 - Basic feature - MVP to be considered an RM]] -> 2 | L152: 3 | M152: 6
A153: 6. Manage Requirements | B153: Update Requirements | C153: Maintain Documentation | D153: US079 | E153: Versioning - Roll back | F153: Business Analyst | G153: to be able to revert requirements, models or documents back to a previous version | H153: I do not have to try to recreate artifacts if a mistake has been made or stakeholder's have changed their mind. | I153: US079-AC146 | J153: Can revert all artifacts within the project to a baseline version | K153: =Table13[[#This Row],[Priority (1-8) - 8 is high 1 - Delighter feature that is wonderful to have but not critical for an RM tool 2 - Performance feature that is important to have and increases performance managing requirements 3,5,8 - Basic feature - MVP to be considered an RM]] -> 1 | L153: 1 | M153: 1 | N153: Test plans can be added as req. for each feature/story
A154: 6. Manage Requirements | B154: Create test plans | C154: Create test plans | D154: US080 | E154: Create test plans | F154: Business Analyst | G154: to be able to create test plans based on my requirements | H154: I can ensure the product is properly tested before deployment | I154: US080-AC147 | J154: Create a test suite based on selecting a group of requirements and using the linked tests (can be done in tool or via an integration) | K154: =Table13[[#This Row],[Priority (1-8) - 8 is high 1 - Delighter feature that is wonderful to have but not critical for an RM tool 2 - Performance feature that is important to have and increases performance managing requirements 3,5,8 - Basic feature - MVP to be considered an RM]] -> 1 | L154: 0 | M154: 0
A155: 6. Manage Requirements | B155: Update Requirements | C155: Maintain Documentation | D155: US081 | E155: View new and changed requirements | F155: Business Analyst | G155: to be able to filter through new/changed requirements | H155: I can ensure all appropriate actions are taken when objects get changed | I155: US081-AC148 | J155: Can generate views of requirements based on timing of actions taken (e.g. view all new requirements added in the last week) | K155: =Table13[[#This Row],[Priority (1-8) - 8 is high 1 - Delighter feature that is wonderful to have but not critical for an RM tool 2 - Performance feature that is important to have and increases performance managing requirements 3,5,8 - Basic feature - MVP to be considered an RM]] -> 1 | L155: 0 | M155: 0
A156: 7. User Experience
A157: 7. User Experience | B157: User functions | C157: Copy/cut/paste | D157: US082 | E157: Copy/cut/paste | F157: Tool User | G157: cut and paste between fields within the tool | H157: I work efficiently and minimize time spent typing | I157: =D157&"-"&"AC"&TEXT(ROW()-8,"000") -> US082-AC149 | J157: Can copy, cut and paste within the tool and from external applications (and formatting can be maintained) | K157: =Table13[[#This Row],[Priority (1-8) - 8 is high 1 - Delighter feature that is wonderful to have but not critical for an RM tool 2 - Performance feature that is important to have and increases performance managing requirements 3,5,8 - Basic feature - MVP to be considered an RM]] -> 5 | L157: 3 | M157: 15
A158: 7. User Experience | B158: User functions | C158: Save | D158: US083 | E158: Auto-save | F158: Tool User | G158: save all my edits instantly | H158: I can be sure nothing is lost if I get disconnected or something breaks | I158: US083-AC150 | J158: Tool has mechanisms in place to make sure work is not lost by accident or on system failure or something | K158: =Table13[[#This Row],[Priority (1-8) - 8 is high 1 - Delighter feature that is wonderful to have but not critical for an RM tool 2 - Performance feature that is important to have and increases performance managing requirements 3,5,8 - Basic feature - MVP to be considered an RM]] -> 3 | L158: 3 | M158: 9
A159: 7. User Experience | B159: Non-functional requirements | C159: Scalability | D159: US084 | E159: Scale to volumes | F159: Tool User | G159: The tool scales with increasing number of input requirements | H159: I can ensure the tool will meet the growing needs of my organization | I159: US084-AC151 | J159: Vendor can share an example/case study (doesn't have to be formal, could be them telling a story) where tool is still manageable with >10,000 requirements objects (i.e., how does the tool response times compare with 1000 vs. 15000 vs. 30000 requirements?) | K159: =Table13[[#This Row],[Priority (1-8) - 8 is high 1 - Delighter feature that is wonderful to have but not critical for an RM tool 2 - Performance feature that is important to have and increases performance managing requirements 3,5,8 - Basic feature - MVP to be considered an RM]] -> 8 | L159: 3 | M159: 24
A160: 7. User Experience | B160: Adoption | C160: User documentation | D160: US085 | E160: Availability of documentation (either online, soft-copy, or hard-copy) | F160: Tool User | G160: to be able to access a variety of documentation about how to use the tool easily | H160: I can learn how to best leverage the tool to bring value to my organization without having to spend too much time | I160: US085-AC152 | J160: Configuration and basic use documentation is readily available in a variety of forms | K160: =Table13[[#This Row],[Priority (1-8) - 8 is high 1 - Delighter feature that is wonderful to have but not critical for an RM tool 2 - Performance feature that is important to have and increases performance managing requirements 3,5,8 - Basic feature - MVP to be considered an RM]] -> 2 | L160: 1 | M160: 2
A161: 7. User Experience | B161: Adoption | C161: Ease of use | D161: US086 | E161: Instinctually easy to use | F161: Tool User | G161: to be able to use the tool easily just based on instinct | H161: I don't have to waste any of my valuable time learning a new tool - it should just come natural and be intuitive to use! | I161: US086-AC153 | J161: Tool is intuitive and easy to learn (subjective based on evaluator's opinion) | K161: =Table13[[#This Row],[Priority (1-8) - 8 is high 1 - Delighter feature that is wonderful to have but not critical for an RM tool 2 - Performance feature that is important to have and increases performance managing requirements 3,5,8 - Basic feature - MVP to be considered an RM]] -> 5 | L161: 2 | M161: 10
A162: 7. User Experience | B162: User functions | C162: Find and replace | D162: US087 | E162: Find and replace | F162: Tool user | G162: to be able to find and replace within the tool | H162: I can make changes to a lot of requirements quickly | I162: US087-AC154 | J162: Can find and replace | K162: =Table13[[#This Row],[Priority (1-8) - 8 is high 1 - Delighter feature that is wonderful to have but not critical for an RM tool 2 - Performance feature that is important to have and increases performance managing requirements 3,5,8 - Basic feature - MVP to be considered an RM]] -> 2 | L162: 0 | M162: 0
A163: 7. User Experience | B163: Adoption | C163: Support | D163: US088 | E163: Online support | F163: Tool user | G163: to be able to get help through online support (e.g., message board, knowledge base, users group, wiki, etc.) | H163: I can find answers to my tool questions as quickly as possible | I163: US088-AC155 | J163: Adequate online support resources are available | K163: =Table13[[#This Row],[Priority (1-8) - 8 is high 1 - Delighter feature that is wonderful to have but not critical for an RM tool 2 - Performance feature that is important to have and increases performance managing requirements 3,5,8 - Basic feature - MVP to be considered an RM]] -> 2 | L163: 3 | M163: 6
A164: 7. User Experience | B164: Adoption | C164: Support | D164: US089 | E164: Learning aids | F164: Tool user | G164: to be able to use learning aids (e.g., sample requirements, workflow tutorial, etc.) to better learn how to use the tool | H164: I can become as efficient as possible with my tool usage | I164: US089-AC156 | J164: Learning aids are available | K164: =Table13[[#This Row],[Priority (1-8) - 8 is high 1 - Delighter feature that is wonderful to have but not critical for an RM tool 2 - Performance feature that is important to have and increases performance managing requirements 3,5,8 - Basic feature - MVP to be considered an RM]] -> 2 | L164: 3 | M164: 6
A165: 7. User Experience | B165: Adoption | C165: Support | D165: US091 | E165: System help | F165: Tool user | G165: to have context-sensitive help within the system | H165: I can figure out what I need to know about the tool without having to navigate away to other screens/documentation | I165: US091-AC157 | J165: Context specific help within tool while looking at screens is readily available | K165: =Table13[[#This Row],[Priority (1-8) - 8 is high 1 - Delighter feature that is wonderful to have but not critical for an RM tool 2 - Performance feature that is important to have and increases performance managing requirements 3,5,8 - Basic feature - MVP to be considered an RM]] -> 1 | L165: 3 | M165: 3
A166: 7. User Experience | B166: Adoption | C166: Support | D166: US093 | E166: Training classes | F166: Tool user | G166: to be able to attend training classes for the tool | H166: I can learn everything I need to know about the tool quickly (so I can start using it!) | I166: US093-AC158 | J166: Training classes are available for the tool | K166: =Table13[[#This Row],[Priority (1-8) - 8 is high 1 - Delighter feature that is wonderful to have but not critical for an RM tool 2 - Performance feature that is important to have and increases performance managing requirements 3,5,8 - Basic feature - MVP to be considered an RM]] -> 1 | L166: 2 | M166: 2
A167: 7. User Experience | D167: US094 | E167: Rich text formatting | F167: Tool user | G167: to be able to format the text of my requirements | H167: I can emphasize certain words or changed the aesthetics of my requirement | I167: US094-AC159 | J167: Can have rich formatting for text (e.g. Can format a selection of text, Choose font size and type, bold, italicize, underline, Choose text color, Highlight requirement text, Can use special characters) | K167: =Table13[[#This Row],[Priority (1-8) - 8 is high 1 - Delighter feature that is wonderful to have but not critical for an RM tool 2 - Performance feature that is important to have and increases performance managing requirements 3,5,8 - Basic feature - MVP to be considered an RM]] -> 2 | L167: 3 | M167: 6
A168: 7. User Experience | B168: User interface | C168: Attributes | D168: US095 | E168: Custom user interface | F168: Tool user | G168: to modify the user interface | H168: so that I can more easily access the information I need in order to analyze my requirements | I168: US095-AC160 | J168: Can save a custom view of selected attributes in the user interface (e.g. you've customized what fields are seen when creating an object, or you've customized the columns that display in a list of requirements, and you can come back to that same view later) | K168: =Table13[[#This Row],[Priority (1-8) - 8 is high 1 - Delighter feature that is wonderful to have but not critical for an RM tool 2 - Performance feature that is important to have and increases performance managing requirements 3,5,8 - Basic feature - MVP to be considered an RM]] -> 2 | L168: 3 | M168: 6
A169: 7. User Experience | B169: User interface | C169: Attributes | D169: US095 | E169: Custom user interface | F169: Tool user | G169: to modify the user interface | H169: so that I can more easily access the information I need in order to analyze my requirements | I169: US095-AC161 | J169: Can select menu items to view in the user interface and save my settings | K169: =Table13[[#This Row],[Priority (1-8) - 8 is high 1 - Delighter feature that is wonderful to have but not critical for an RM tool 2 - Performance feature that is important to have and increases performance managing requirements 3,5,8 - Basic feature - MVP to be considered an RM]] -> 1 | L169: 3 | M169: 3
A170: 7. User Experience | B170: User interface | C170: Attributes | D170: US095 | E170: Custom user interface | F170: Tool user | G170: to modify the user interface | H170: so that I can more easily access the information I need in order to analyze my requirements | I170: US095-AC162 | J170: Can save custom view as "public" for anyone in my project to use | K170: =Table13[[#This Row],[Priority (1-8) - 8 is high 1 - Delighter feature that is wonderful to have but not critical for an RM tool 2 - Performance feature that is important to have and increases performance managing requirements 3,5,8 - Basic feature - MVP to be considered an RM]] -> 1 | L170: 0 | M170: 0
A171: 7. User Experience | B171: User interface | C171: Attributes | D171: US095 | E171: Custom user interface | F171: Tool user | G171: to modify the user interface | H171: so that I can more easily access the information I need in order to analyze my requirements | I171: US095-AC163 | J171: Can assign hot keys and functions to buttons | K171: =Table13[[#This Row],[Priority (1-8) - 8 is high 1 - Delighter feature that is wonderful to have but not critical for an RM tool 2 - Performance feature that is important to have and increases performance managing requirements 3,5,8 - Basic feature - MVP to be considered an RM]] -> 1 | L171: 0 | M171: 0
A172: 7. User Experience | B172: User interface | C172: Attributes | D172: US095 | E172: Custom user interface | F172: Tool user | G172: to modify the user interface | H172: so that I can more easily access the information I need in order to analyze my requirements | I172: US095-AC164 | J172: Predefined hotkeys exist like standard window commands, ctrl+c, ctrl+v, ctrl+z | K172: =Table13[[#This Row],[Priority (1-8) - 8 is high 1 - Delighter feature that is wonderful to have but not critical for an RM tool 2 - Performance feature that is important to have and increases performance managing requirements 3,5,8 - Basic feature - MVP to be considered an RM]] -> 1 | L172: 3 | M172: 3
A173: 7. User Experience | B173: User interface | C173: filter | D173: US096 | E173: Filter views of requirements | F173: Tool user | G173: to be able to customize the way my requirements are viewed based on criteria that I select | H173: so that I can more easily access the information I need in order to analyze my requirements | I173: US096-AC165 | J173: Filter a view of requirements by any attribute (queries) - including contains filters (e.g. title contains the word red) | K173: =Table13[[#This Row],[Priority (1-8) - 8 is high 1 - Delighter feature that is wonderful to have but not critical for an RM tool 2 - Performance feature that is important to have and increases performance managing requirements 3,5,8 - Basic feature - MVP to be considered an RM]] -> 5 | L173: 3 | M173: 15
A174: 7. User Experience | B174: User interface | C174: filter | D174: US097 | E174: Save filtered view | F174: Tool user | G174: to be able to create custom views of the filters I use most often | H174: I can quickly access the information I am looking for | I174: US097-AC166 | J174: Save private custom views of requirements (e.g., analyst makes custom filtered view and plans to use often in the future - via saved query) | K174: =Table13[[#This Row],[Priority (1-8) - 8 is high 1 - Delighter feature that is wonderful to have but not critical for an RM tool 2 - Performance feature that is important to have and increases performance managing requirements 3,5,8 - Basic feature - MVP to be considered an RM]] -> 2 | L174: 3 | M174: 6
A175: 7. User Experience | B175: User interface | C175: filter | D175: US096 | E175: Filter views of requirements | F175: Tool user | G175: to be able to define a custom view of my requirements for my project team | H175: so that we can more easily access the information we need in order to analyze our requirements | I175: US096-AC167 | J175: Can save the filter settings I have selected for others in my project to use | K175: =Table13[[#This Row],[Priority (1-8) - 8 is high 1 - Delighter feature that is wonderful to have but not critical for an RM tool 2 - Performance feature that is important to have and increases performance managing requirements 3,5,8 - Basic feature - MVP to be considered an RM]] -> 1 | L175: 3 | M175: 3
A176: 7. User Experience | B176: User interface | C176: sort | D176: US098 | E176: Sort | F176: Tool user | G176: to be able to sort the order my requirements are displayed | H176: so that I can more easily access the information I need in order to analyze my requirements | I176: US098-AC168 | J176: Can sort a list of requirements by any of the attributes or another object type's value (for example, sort requirements by L1 feature value) | K176: =Table13[[#This Row],[Priority (1-8) - 8 is high 1 - Delighter feature that is wonderful to have but not critical for an RM tool 2 - Performance feature that is important to have and increases performance managing requirements 3,5,8 - Basic feature - MVP to be considered an RM]] -> 5 | L176: 3 | M176: 15
A177: 7. User Experience | B177: User interface | C177: Filter | D177: US099 | E177: Custom Filter Functionality | F177: Tool user | G177: to be able to apply multiple filters to multiple attributes at the same time | H177: I can view requirements in a way specific to my needs. | I177: US099-AC169 | J177: Can filter using multiple attributes at the same time | K177: =Table13[[#This Row],[Priority (1-8) - 8 is high 1 - Delighter feature that is wonderful to have but not critical for an RM tool 2 - Performance feature that is important to have and increases performance managing requirements 3,5,8 - Basic feature - MVP to be considered an RM]] -> 2 | L177: 3 | M177: 6
A178: 7. User Experience | B178: User interface | C178: Search | D178: US100 | E178: Search requirements by keyword | F178: Tool user | G178: to be able to search for requirements by keyword | H178: I can quickly locate the requirements I am looking for | I178: US100-AC170 | J178: Can search requirements by keyword | K178: =Table13[[#This Row],[Priority (1-8) - 8 is high 1 - Delighter feature that is wonderful to have but not critical for an RM tool 2 - Performance feature that is important to have and increases performance managing requirements 3,5,8 - Basic feature - MVP to be considered an RM]] -> 8 | L178: 3 | M178: 24
A179: 7. User Experience | B179: User interface | C179: Search | D179: US100 | E179: Search requirements by keyword | F179: Tool user | G179: to be able to search for requirements by keyword | H179: I can quickly locate the requirements I am looking for | I179: US100-AC171 | J179: Can support Boolean searches | K179: =Table13[[#This Row],[Priority (1-8) - 8 is high 1 - Delighter feature that is wonderful to have but not critical for an RM tool 2 - Performance feature that is important to have and increases performance managing requirements 3,5,8 - Basic feature - MVP to be considered an RM]] -> 2 | L179: 3 | M179: 6
A180: 7. User Experience | B180: User interface | C180: Search | D180: US100 | E180: Search requirements by keyword | F180: Tool user | G180: to be able to search for requirements by keyword | H180: I can quickly locate the requirements I am looking for | I180: US100-AC172 | J180: Can support nesting in searches (use of parentheses to organize a search statement that uses more than one kind of connector or operator (AND, OR, NOT) e.g. "sales feature" AND ("quoting" OR "ordering") | K180: =Table13[[#This Row],[Priority (1-8) - 8 is high 1 - Delighter feature that is wonderful to have but not critical for an RM tool 2 - Performance feature that is important to have and increases performance managing requirements 3,5,8 - Basic feature - MVP to be considered an RM]] -> 1 | L180: 2 | M180: 2 | N180: Vendor says this can be done, but did not seem like it could during trial
A181: 7. User Experience | B181: User interface | C181: Search | D181: US100 | E181: Search requirements by keyword | F181: Tool user | G181: to be able to search for requirements by keyword | H181: I can quickly locate the requirements I am looking for | I181: US100-AC173 | J181: Can search using any of requirement's attributes | K181: =Table13[[#This Row],[Priority (1-8) - 8 is high 1 - Delighter feature that is wonderful to have but not critical for an RM tool 2 - Performance feature that is important to have and increases performance managing requirements 3,5,8 - Basic feature - MVP to be considered an RM]] -> 2 | L181: 0 | M181: 0
A182: 8. Administer Tool
A183: 8. Administer Tool | B183: Manage users | C183: Permissions | D183: US101 | E183: Manage access permissions for groups of users | F183: Administrator | G183: to manage access permissions for groups of users | H183: I can save time adding lots of people with different user roles quickly | I183: =D183&"-"&"AC"&TEXT(ROW()-9,"000") -> US101-AC174 | J183: Can assign users to groups and set permissions based on group | K183: =Table13[[#This Row],[Priority (1-8) - 8 is high 1 - Delighter feature that is wonderful to have but not critical for an RM tool 2 - Performance feature that is important to have and increases performance managing requirements 3,5,8 - Basic feature - MVP to be considered an RM]] -> 2 | L183: 3 | M183: =K183*L183 -> 6
A184: 8. Administer Tool | B184: Manage users | C184: Permissions | D184: US101 | E184: Manage access permissions for groups of users | F184: Administrator | G184: to manage access permissions for groups of users | H184: I can save time adding lots of people with different user roles quickly | I184: US101-AC175 | J184: Can create custom role definitions | K184: =Table13[[#This Row],[Priority (1-8) - 8 is high 1 - Delighter feature that is wonderful to have but not critical for an RM tool 2 - Performance feature that is important to have and increases performance managing requirements 3,5,8 - Basic feature - MVP to be considered an RM]] -> 2 | L184: 3 | M184: 6
A185: 8. Administer Tool | B185: Manage users | C185: Permissions | D185: US101 | E185: Manage access permissions for groups of users | F185: Administrator | G185: to manage access permissions for groups of users | H185: I can save time adding lots of people with different user roles quickly | I185: US101-AC176 | J185: Comes with predefined custom role definitions | K185: =Table13[[#This Row],[Priority (1-8) - 8 is high 1 - Delighter feature that is wonderful to have but not critical for an RM tool 2 - Performance feature that is important to have and increases performance managing requirements 3,5,8 - Basic feature - MVP to be considered an RM]] -> 2 | L185: 3 | M185: 6
A186: 8. Administer Tool | B186: Manage users | C186: Permissions | D186: US101 | E186: Manage access permissions for groups of users | F186: Administrator | G186: to setup users | H186: I can have some control over who is in the tool or not | I186: US101-AC177 | J186: Can create user accounts | K186: =Table13[[#This Row],[Priority (1-8) - 8 is high 1 - Delighter feature that is wonderful to have but not critical for an RM tool 2 - Performance feature that is important to have and increases performance managing requirements 3,5,8 - Basic feature - MVP to be considered an RM]] -> 8 | L186: 3 | M186: 24
A187: 8. Administer Tool | B187: Manage users | C187: Permissions | D187: US103 | E187: Manage role permissions | F187: Administrator | G187: to be able to specify which roles have permissions to certain actions within the tool | H187: I can restrict actions to only those users that are authorized to make them | I187: US103-AC178 | J187: Can assign users to established roles in the system | K187: =Table13[[#This Row],[Priority (1-8) - 8 is high 1 - Delighter feature that is wonderful to have but not critical for an RM tool 2 - Performance feature that is important to have and increases performance managing requirements 3,5,8 - Basic feature - MVP to be considered an RM]] -> 8 | L187: 3 | M187: 24
A188: 8. Administer Tool | B188: Manage users | C188: Permissions | D188: US103 | E188: Manage role permissions | F188: Administrator | G188: to be able to specify which roles have permissions to certain actions within the tool | H188: I can restrict actions to only those users that are authorized to make them | I188: US103-AC179 | J188: Can specify custom privileges based on defined roles (e.g. can assign users with read only permissions, read and edit permissions, can restrict users from viewing anything in draft status) | K188: =Table13[[#This Row],[Priority (1-8) - 8 is high 1 - Delighter feature that is wonderful to have but not critical for an RM tool 2 - Performance feature that is important to have and increases performance managing requirements 3,5,8 - Basic feature - MVP to be considered an RM]] -> 2 | L188: 3 | M188: 6
A189: 8. Administer Tool | B189: Manage users | C189: Authentication | D189: US104 | E189: ​Mixed authentication | F189: Administrator | G189: to setup mixed authentication logins for my users | H189: users can have both Active Directory logins, and local database user logins for the same project | I189: US104-AC180 | J189: Can use active directory login | K189: =Table13[[#This Row],[Priority (1-8) - 8 is high 1 - Delighter feature that is wonderful to have but not critical for an RM tool 2 - Performance feature that is important to have and increases performance managing requirements 3,5,8 - Basic feature - MVP to be considered an RM]] -> 1 | L189: 3 | M189: 3
A190: 8. Administer Tool | B190: Setup | C190: Install method | D190: US105 | E190: Hosted | F190: Organization | G190: to use a tool that is hosted in the cloud | H190: I don't have to support a heavyweight solution | I190: =D190&"-"&"AC"&TEXT(ROW()-9,"000") -> US105-AC181 | J190: Tool is hosted | K190: =Table13[[#This Row],[Priority (1-8) - 8 is high 1 - Delighter feature that is wonderful to have but not critical for an RM tool 2 - Performance feature that is important to have and increases performance managing requirements 3,5,8 - Basic feature - MVP to be considered an RM]] -> 5 | L190: 0 | M190: 0
A191: 8. Administer Tool | B191: Setup | C191: Install method | D191: US106 | E191: Installed central repository (not-hosted) | F191: Organization | G191: to use a tool that is installed in a central repository (not-hosted) | H191: I can ensure our data is secure | I191: US106-AC182 | J191: Tool can store data in a central, non-hosted repository (out of box) | K191: =Table13[[#This Row],[Priority (1-8) - 8 is high 1 - Delighter feature that is wonderful to have but not critical for an RM tool 2 - Performance feature that is important to have and increases performance managing requirements 3,5,8 - Basic feature - MVP to be considered an RM]] -> 2 | L191: 3 | M191: 6
A192: 8. Administer Tool | B192: Manage users | C192: Concurrent users | D192: US107 | E192: Allow multiple concurrent users | F192: Organization | G192: to use a tool that allows multiple users to work concurrently on a given project | H192: we can collaborate and operate efficiently | I192: US107-AC183 | J192: Multiple users can work concurrently on a single project within the tool | K192: =Table13[[#This Row],[Priority (1-8) - 8 is high 1 - Delighter feature that is wonderful to have but not critical for an RM tool 2 - Performance feature that is important to have and increases performance managing requirements 3,5,8 - Basic feature - MVP to be considered an RM]] -> 8 | L192: 3 | M192: 24
A193: 8. Administer Tool | B193: Login | C193: SSO | D193: US108 | E193: Single Sign On | F193: Administrator | G193: to set up single sign on capability for my tool users | H193: users don't have to re-authenticate to access the tool when they are in the network | I193: US108-AC184 | J193: Can set up SSO | K193: =Table13[[#This Row],[Priority (1-8) - 8 is high 1 - Delighter feature that is wonderful to have but not critical for an RM tool 2 - Performance feature that is important to have and increases performance managing requirements 3,5,8 - Basic feature - MVP to be considered an RM]] -> 2 | L193: 3 | M193: 6
A194: 8. Administer Tool | B194: Manage users | C194: licenses | D194: US109 | E194: ​License activity status reporting | F194: Administrator | G194: to generate license activity reports | H194: I can ensure my organization's licenses are not being abused and we have the appropriate number of licenses | I194: US109-AC185 | J194: Can generate report indicating license volume and activity | K194: =Table13[[#This Row],[Priority (1-8) - 8 is high 1 - Delighter feature that is wonderful to have but not critical for an RM tool 2 - Performance feature that is important to have and increases performance managing requirements 3,5,8 - Basic feature - MVP to be considered an RM]] -> 1 | L194: 1 | M194: 1
A195: 8. Administer Tool | B195: Administration | C195: Maintenance | D195: US110 | E195: Ease of administration (e.g., database maintenance, installing upgrades, etc.) | F195: Administrator | G195: a tool that is easy to install and maintain | H195: my organization's productivity doesn't suffer due to technical difficulties. | I195: US110-AC186 | J195: Tool maintain is "reasonable" (subjective based on examples) | K195: =Table13[[#This Row],[Priority (1-8) - 8 is high 1 - Delighter feature that is wonderful to have but not critical for an RM tool 2 - Performance feature that is important to have and increases performance managing requirements 3,5,8 - Basic feature - MVP to be considered an RM]] -> 2 | L195: 3 | M195: 6
A196: 8. Administer Tool | B196: Setup | C196: installed client | D196: US111 | E196: Installed client only | F196: Organization | G196: to use a tool that operates only through an installed client | H196: I can limit access to our data | I196: US111-AC187 | J196: Tool operates through an installed local client | K196: =Table13[[#This Row],[Priority (1-8) - 8 is high 1 - Delighter feature that is wonderful to have but not critical for an RM tool 2 - Performance feature that is important to have and increases performance managing requirements 3,5,8 - Basic feature - MVP to be considered an RM]] -> 1 | L196: 0 | M196: 0
A197: 8. Administer Tool | B197: Integration | C197: Integration | D197: US112 | E197: Automated Integration | F197: Business Analyst | G197: the tool to have automated integration with other systems being utilized throughout the project | H197: transitioning to other systems is seamless and the project team can operate more efficiently. | I197: US112-AC188 | J197: Can integrate with Test Management Systems (list them) | K197: =Table13[[#This Row],[Priority (1-8) - 8 is high 1 - Delighter feature that is wonderful to have but not critical for an RM tool 2 - Performance feature that is important to have and increases performance managing requirements 3,5,8 - Basic feature - MVP to be considered an RM]] -> 2 | L197: 1 | M197: 2 | N197: Some potential fits worth something - not exact fit
A198: 8. Administer Tool | B198: Integration | C198: Integration | D198: US112 | E198: Automated Integration | F198: Business Analyst | G198: the tool to have automated integration with other systems being utilized throughout the project | H198: transitioning to other systems is seamless and the project team can operate more efficiently. | I198: US112-AC189 | J198: Can integrate with Development tools/environments (e.g., TFS, Rally) (list them) | K198: =Table13[[#This Row],[Priority (1-8) - 8 is high 1 - Delighter feature that is wonderful to have but not critical for an RM tool 2 - Performance feature that is important to have and increases performance managing requirements 3,5,8 - Basic feature - MVP to be considered an RM]] -> 2 | L198: 3 | M198: 6 | N198: TFS, JIRA, Rally, Trello, SalesForce
A199: 8. Administer Tool | B199: Integration | C199: Integration | D199: US112 | E199: Automated Integration | F199: Business Analyst | G199: the tool to have automated integration with other systems being utilized throughout the project | H199: transitioning to other systems is seamless and the project team can operate more efficiently. | I199: US112-AC190 | J199: Can directly integrate with revision control system for any linked documents - (e.g., SharePoint, CVS, SourceSafe, etc.) (list them) - this doesn't include just copying a link into a data field | K199: =Table13[[#This Row],[Priority (1-8) - 8 is high 1 - Delighter feature that is wonderful to have but not critical for an RM tool 2 - Performance feature that is important to have and increases performance managing requirements 3,5,8 - Basic feature - MVP to be considered an RM]] -> 2 | L199: 0 | M199: 0
A200: 8. Administer Tool | B200: Integration | C200: Integration | D200: US112 | E200: Automated Integration | F200: Business Analyst | G200: the tool to have automated integration with other systems being utilized throughout the project | H200: transitioning to other systems is seamless and the project team can operate more efficiently. | I200: US112-AC191 | J200: ​Integration to any tools is configurable, allowing definable mapping of object types between the two products. | K200: =Table13[[#This Row],[Priority (1-8) - 8 is high 1 - Delighter feature that is wonderful to have but not critical for an RM tool 2 - Performance feature that is important to have and increases performance managing requirements 3,5,8 - Basic feature - MVP to be considered an RM]] -> 2 | L200: 3 | M200: 6
... 17 more rows

Sheet Blueprint
A1: L1 Feature | B1: L2 Feature | C1: L3 Feature | D1: User Story ID | E1: Title | F1: As a(n) | G1: I want | H1: So that | I1: ACID | J1: Acceptance Criteria | K1: Priority (1-8) - 8 is high 1 - Delighter feature that is wonderful to have but not critical for an RM tool 2 - Performance feature that is important to have and increases performance managing requirements 3,5,8 - Basic feature - MVP to be considered an RM | L1: Score (0-3) - 3 is the best 0 - CANNOT do in tool 1 - Can do it, but there's a manual workaround 2 - Can do it without any workarounds, but it's still not that easy to use 3 - Can do it in the tool and it's user friendly | M1: Total Score | N1: Notes
A2: 1. Plan Requirements | K2: Heading Fill
A3: 1. Plan Requirements | B3: Administer Project | C3: Estimate requirements work | D3: US001 | E3: Estimate requirements work | F3: Business analyst, Product Manager | G3: to be able to estimate how much time I need for my requirements activities (given a few preliminary details about my project) | H3: I can coordinate with my project manager and ensure we are clear on expectations around requirements scope and timeline. | I3: =D3&"-"&"AC"&TEXT(ROW()-2,"000") -> US001-AC001 | J3: Can input project knowns (like number of stakeholders, number of interfacing systems) as estimate inputs | K3: =Table13[[#This Row],[Priority (1-8) - 8 is high 1 - Delighter feature that is wonderful to have but not critical for an RM tool 2 - Performance feature that is important to have and increases performance managing requirements 3,5,8 - Basic feature - MVP to be considered an RM]] -> 1 | L3: 0 | M3: =K3*L3 -> 0 | N3: no estimation components found
A4: 1. Plan Requirements | B4: Administer Project | C4: Estimate requirements work | D4: US001 | E4: Estimate requirements work | F4: Business analyst, Product Manager | G4: to be able to estimate how much time I need for my requirements activities (given a few preliminary details about my project) | H4: I can coordinate with my project manager and ensure we are clear on expectations around requirements scope and timeline. | I4: US001-AC002 | J4: Can calculate total estimate of work left on tasks | K4: =Table13[[#This Row],[Priority (1-8) - 8 is high 1 - Delighter feature that is wonderful to have but not critical for an RM tool 2 - Performance feature that is important to have and increases performance managing requirements 3,5,8 - Basic feature - MVP to be considered an RM]] -> 1 | L4: 0 | M4: 0 | N4: no task estimation components found
A5: 1. Plan Requirements | B5: Administer Project | C5: Estimate requirements work | D5: US001 | E5: Estimate requirements work | F5: Business analyst, Product Manager | G5: to be able to estimate how much time I need for my requirements activities (given a few preliminary details about my project) | H5: I can coordinate with my project manager and ensure we are clear on expectations around requirements scope and timeline. | I5: US001-AC003 | J5: Can link tasks to individual requirements or some other similar object in the tool | K5: =Table13[[#This Row],[Priority (1-8) - 8 is high 1 - Delighter feature that is wonderful to have but not critical for an RM tool 2 - Performance feature that is important to have and increases performance managing requirements 3,5,8 - Basic feature - MVP to be considered an RM]] -> 1 | L5: 2 | M5: 2 | N5: Can create a task artifact type, add an estimate field, and link it to another object - but not built out of the box for task management; but has seamless bi-directional integration with JIRA, TFS, Rally etc.
A6: 1. Plan Requirements | B6: Administer Project | C6: Define task management process | D6: US002 | E6: Manage requirements tasks | F6: Business Analyst | G6: to be able to track all of the requirements activities and tasks I have left for my project | H6: I can make smart choices about what to spend my time on (and I can have early warning signs when I need to cut scope) | I6: US002-AC004 | J6: Can input tasks with estimates and track how much time is remaining on each task | K6: =Table13[[#This Row],[Priority (1-8) - 8 is high 1 - Delighter feature that is wonderful to have but not critical for an RM tool 2 - Performance feature that is important to have and increases performance managing requirements 3,5,8 - Basic feature - MVP to be considered an RM]] -> 2 | L6: 2 | M6: 4 | N6: Can create a task artifact type, add an estimate field, and link it to another object - but not built out of the box for task management; but has seamless bi-directional integration with JIRA, TFS, Rally etc.
A7: 1. Plan Requirements | B7: Administer Project | C7: Define task management process | D7: US002 | E7: Manage requirements tasks | F7: Business Analyst | G7: to be able to track all of the requirements activities and tasks I have left for my project | H7: I can make smart choices about what to spend my time on (and I can have early warning signs when I need to cut scope) | I7: US002-AC005 | J7: Can graph work remaining (task burndown chart) to project end dates | K7: =Table13[[#This Row],[Priority (1-8) - 8 is high 1 - Delighter feature that is wonderful to have but not critical for an RM tool 2 - Performance feature that is important to have and increases performance managing requirements 3,5,8 - Basic feature - MVP to be considered an RM]] -> 2 | L7: 1 | M7: 2 | N7: Would require integration with Rally or another similar tool
A8: 1. Plan Requirements | B8: Administer Project | C8: Create requirements plan | D8: US003 | E8: Create requirements plan | F8: Business Analyst | G8: to create a requirements plan to track my requirements activities and target dates | H8: I can allocate my time effectively early in my project and stay on top of all of the things I need to do. | I8: US003-AC006 | J8: Can enter tasks with target completion dates and owners | K8: =Table13[[#This Row],[Priority (1-8) - 8 is high 1 - Delighter feature that is wonderful to have but not critical for an RM tool 2 - Performance feature that is important to have and increases performance managing requirements 3,5,8 - Basic feature - MVP to be considered an RM]] -> 1 | L8: 2 | M8: 2 | N8: Can create a task artifact type, add an estimate field, and link it to another object - but not built out of the box for task management; but has seamless bi-directional integration with JIRA, TFS, Rally etc.
A9: 1. Plan Requirements | B9: Administer Project | C9: Manage project portfolio | D9: US004 | E9: Align projects across a product portfolio | F9: Product Manager | G9: to be able to oversee requirements activity for multiple products within my portfolio in a centralized location | H9: I can be better equipped to plan for things like synchronized releases | I9: US004-AC007 | J9: Can create/track dependencies across projects within a portfolio | K9: =Table13[[#This Row],[Priority (1-8) - 8 is high 1 - Delighter feature that is wonderful to have but not critical for an RM tool 2 - Performance feature that is important to have and increases performance managing requirements 3,5,8 - Basic feature - MVP to be considered an RM]] -> 1 | L9: 2 | M9: 2 | N9: Can trace relationships, but can't appear to specify dependent on as a specific type; Blueprint recommends creating a dependency artifact type so that you can track detailed information about the dependency then mapping dependent items to the dependency artifact
A10: 1. Plan Requirements | B10: Adapt methodology | C10: Customize methodology checklist | D10: US005 | E10: Track to a defined methodology | F10: Business Analyst | G10: to be able to customize a checklist of items I need to complete to follow my organization's requirements methodology | H10: I can have a convenient reminder of all of the things I should do to make my project a success | I10: US005-AC008 | J10: Can store and edit a methodology/process checklist as tasks to do | K10: =Table13[[#This Row],[Priority (1-8) - 8 is high 1 - Delighter feature that is wonderful to have but not critical for an RM tool 2 - Performance feature that is important to have and increases performance managing requirements 3,5,8 - Basic feature - MVP to be considered an RM]] -> 1 | L10: 2 | M10: 2 | N10: Could store a set of textual requirements to list the methodology tasks you need to complete and add a custom attribute to track status
A11: 1. Plan Requirements | B11: Perform stakeholder analysis | C11: Create Org Chart Create SME Map | D11: US006 | E11: Track stakeholders | F11: Business Analyst | G11: I want to be able to track all of the stakeholders on my project along with their participation in requirements activities | H11: I can ensure I don't forget to talk to anyone (and miss requirements!) | I11: US006-AC009 | J11: Can import an existing org chart (from Visio or ppt) | K11: =Table13[[#This Row],[Priority (1-8) - 8 is high 1 - Delighter feature that is wonderful to have but not critical for an RM tool 2 - Performance feature that is important to have and increases performance managing requirements 3,5,8 - Basic feature - MVP to be considered an RM]] -> 2 | L11: 3 | M11: 6 | N11: Full Visio import functionality
A12: 1. Plan Requirements | B12: Perform stakeholder analysis | C12: Create Org Chart Create SME Map | D12: US006 | E12: Track stakeholders | F12: Business Analyst | G12: I want to be able to track all of the stakeholders on my project along with their participation in requirements activities | H12: I can ensure I don't forget to talk to anyone (and miss requirements!) | I12: US006-AC010 | J12: Can track stakeholder participation in requirements activities | K12: =Table13[[#This Row],[Priority (1-8) - 8 is high 1 - Delighter feature that is wonderful to have but not critical for an RM tool 2 - Performance feature that is important to have and increases performance managing requirements 3,5,8 - Basic feature - MVP to be considered an RM]] -> 1 | L12: 3 | M12: 3 | N12: Can track discussions, engage in reviews, and see overview of all participation in the Activity Center
A13: 1. Plan Requirements | B13: Perform stakeholder analysis | C13: Create Personas | D13: US007 | E13: Create stakeholder personas | F13: Business Analyst | G13: to be able to group my stakeholders into classes with like attributes and summarize each group's characteristics | H13: I can better understand the needs and motivations behind people that care about my project (so I can better meet those needs!). | I13: US007-AC011 | J13: Can create user personas and capture persona attributes | K13: =Table13[[#This Row],[Priority (1-8) - 8 is high 1 - Delighter feature that is wonderful to have but not critical for an RM tool 2 - Performance feature that is important to have and increases performance managing requirements 3,5,8 - Basic feature - MVP to be considered an RM]] -> 2 | L13: 3 | M13: 6 | N13: Can use the actors object
A14: 1. Plan Requirements | B14: Perform stakeholder analysis | C14: Create Personas | D14: US007 | E14: Create stakeholder personas | F14: Business Analyst | G14: to be able to group my stakeholders into classes with like attributes and summarize each group's characteristics | H14: I can better understand the needs and motivations behind people that care about my project (so I can better meet those needs!). | I14: US007-AC012 | J14: Can link the persona to user requirements | K14: =Table13[[#This Row],[Priority (1-8) - 8 is high 1 - Delighter feature that is wonderful to have but not critical for an RM tool 2 - Performance feature that is important to have and increases performance managing requirements 3,5,8 - Basic feature - MVP to be considered an RM]] -> 2 | L14: 3 | M14: 6 | N14: Can trace actors to other objects interactively by clicking on shapes in a diagram to assign the actor, and by creating other trace relationships to other objects
A15: 1. Plan Requirements | B15: Adapt Methodology | C15: Define object hierarchy | D15: US008 | E15: Use multiple types of requirements objects | F15: Requirements architect | G15: to be able to use multiple types of requirements objects for my projects | H15: I can maintain separate silos for different levels of my requirements (because I never really have only one type of requirement). | I15: US008-AC013 | J15: Multiple out of the box objects exist with the tool that users can select from (basic object types would include feature, requirement) | K15: =Table13[[#This Row],[Priority (1-8) - 8 is high 1 - Delighter feature that is wonderful to have but not critical for an RM tool 2 - Performance feature that is important to have and increases performance managing requirements 3,5,8 - Basic feature - MVP to be considered an RM]] -> 8 | L15: 3 | M15: 24 | N15: Can use textual requirements, actor, business process diagram, document, domain diagram, generic diagram, glossary, storyboard, etc. plus you can easily customize to create your own object types
A16: 1. Plan Requirements | B16: Adapt Methodology | C16: Define object hierarchy | D16: US008 | E16: Use multiple types of requirements objects | F16: Requirements architect | G16: to be able to use multiple types of requirements objects for my projects | H16: I can maintain separate silos for different levels of my requirements (because I never really have only one type of requirement). | I16: US008-AC014 | J16: User can add custom object types. Example object types desired include: -Vision statement -Business objectives -Business problems -Success Metric -Feature -Business Requirement -User Requirement -User Story -Epic -Functional Requirement -Non-Functional Requirement -Epic -Requirements model objects (e.g. process flow, business data diagram) -Requirements model sub-objects (e.g. Process flow steps, business data objects) -Personas -Stakeholders -UI mockups/prototypes -Risk -Issue -Bug -Objects for each type of visual model | K16: =Table13[[#This Row],[Priority (1-8) - 8 is high 1 - Delighter feature that is wonderful to have but not critical for an RM tool 2 - Performance feature that is important to have and increases performance managing requirements 3,5,8 - Basic feature - MVP to be considered an RM]] -> 8 | L16: 3 | M16: 24 | N16: Instance administrator can customize object types using the set of base objects that comes out of the box
A17: 1. Plan Requirements | B17: Adapt Methodology | C17: Define object hierarchy | D17: US008 | E17: Use multiple types of requirements objects | F17: Requirements architect | G17: to be able to use multiple types of requirements objects for my projects | H17: I can maintain separate silos for different levels of my requirements (because I never really have only one type of requirement). | I17: US008-AC015 | J17: Requirements objects types can vary by project | K17: =Table13[[#This Row],[Priority (1-8) - 8 is high 1 - Delighter feature that is wonderful to have but not critical for an RM tool 2 - Performance feature that is important to have and increases performance managing requirements 3,5,8 - Basic feature - MVP to be considered an RM]] -> 1 | L17: 3 | M17: 3
A18: 1. Plan Requirements | B18: Adapt Methodology | C18: Define object hierarchy | D18: US009 | E18: Define hierarchical relationships between requirements objects | F18: Requirements architect | G18: to be able to define the possible relationships between requirements objects for my project | H18: I can establish a consistent traceability model for my requirements objects. | I18: US009-AC016 | J18: Requirements architecture (which objects and the relationships between requirements object types) can vary by project (e.g. each project can define the requirements architecture they need) | K18: =Table13[[#This Row],[Priority (1-8) - 8 is high 1 - Delighter feature that is wonderful to have but not critical for an RM tool 2 - Performance feature that is important to have and increases performance managing requirements 3,5,8 - Basic feature - MVP to be considered an RM]] -> 2 | L18: 2 | M18: 4 | N18: Object types can be selected per project but doesn't appear that you can govern the relationship rules between objects
A19: 1. Plan Requirements | B19: Adapt Methodology | C19: Define object hierarchy | D19: US009 | E19: Define hierarchical relationships between requirements objects | F19: Requirements architect | G19: to be able to define the possible relationships between requirements objects for my project | H19: I can establish a consistent traceability model for my requirements objects. | I19: US009-AC017 | J19: Can specify which relationships types are available between any 2 object types | K19: =Table13[[#This Row],[Priority (1-8) - 8 is high 1 - Delighter feature that is wonderful to have but not critical for an RM tool 2 - Performance feature that is important to have and increases performance managing requirements 3,5,8 - Basic feature - MVP to be considered an RM]] -> 2 | L19: 0 | M19: 0 | N19: Didn't find a way to govern which relationships are allowed between object types
A20: 1. Plan Requirements | B20: Adapt Methodology | C20: Define object hierarchy | D20: US009 | E20: Define hierarchical relationships between requirements objects | F20: Requirements architect | G20: to be able to define the possible relationships between requirements objects for my project | H20: I can establish a consistent traceability model for my requirements objects. | I20: US009-AC018 | J20: Tool supports at least 2 relationships types where 1 of them is parent-child and the other is one that can be a generic type of relationship. | K20: =Table13[[#This Row],[Priority (1-8) - 8 is high 1 - Delighter feature that is wonderful to have but not critical for an RM tool 2 - Performance feature that is important to have and increases performance managing requirements 3,5,8 - Basic feature - MVP to be considered an RM]] -> 5 | L20: 3 | M20: 15
A21: 1. Plan Requirements | B21: Adapt Methodology | C21: Define object hierarchy | D21: US009 | E21: Define hierarchical relationships between requirements objects | F21: Requirements architect | G21: to be able to define the possible relationships between requirements objects for my project | H21: I can establish a consistent traceability model for my requirements objects. | I21: US009-AC019 | J21: Tool supports N:N bidirectional relationship on at least one of the relationship types (one instance of object type X can be associated with 0, 1, or more than 1 instance of object type Y, and one instance of object type Y can be associated with 0, 1, or more than 1 instance of object type X) | K21: =Table13[[#This Row],[Priority (1-8) - 8 is high 1 - Delighter feature that is wonderful to have but not critical for an RM tool 2 - Performance feature that is important to have and increases performance managing requirements 3,5,8 - Basic feature - MVP to be considered an RM]] -> 5 | L21: 3 | M21: 15
A22: 1. Plan Requirements | B22: Adapt Methodology | C22: Define object hierarchy | D22: US009 | E22: Define hierarchical relationships between requirements objects | F22: Requirements architect | G22: to be able to define the possible relationships between requirements objects for my project | H22: I can establish a consistent traceability model for my requirements objects. | I22: US009-AC020 | J22: Can see a visual layout the relationship hierarchy of the object types (not the actual data in the objects) that has been established (i.e. see my requirements architecture) | K22: =Table13[[#This Row],[Priority (1-8) - 8 is high 1 - Delighter feature that is wonderful to have but not critical for an RM tool 2 - Performance feature that is important to have and increases performance managing requirements 3,5,8 - Basic feature - MVP to be considered an RM]] -> 2 | L22: 1 | M22: 2 | N22: Can see visual layouts of actual objects in the impact analysis view, but there isn't a diagram that visually shows which objects you're using in the project and how they relate (at a meta level)
A23: 1. Plan Requirements | B23: Adapt Methodology | C23: Define object hierarchy | D23: US010 | E23: Provide a template for new projects to minimize setup | F23: Requirements architect | G23: to be able to choose a requirements architecture template for my project, | H23: I only have to spend a minimal amount of time setting up my project (and so that I can just leverage common requirements architectures used in the industry) | I23: US010-AC021 | J23: Can leverage industry best practice requirements architecture templates that come with the tool (e.g. tool provides a standard agile requirements architecture template, standard hybrid model, etc.) | K23: =Table13[[#This Row],[Priority (1-8) - 8 is high 1 - Delighter feature that is wonderful to have but not critical for an RM tool 2 - Performance feature that is important to have and increases performance managing requirements 3,5,8 - Basic feature - MVP to be considered an RM]] -> 1 | L23: 3 | M23: 3 | N23: Can use standard agile requirements artifacts and non-functional requirements templates out of the box, and easily set up your own templates to copy for future projects; They also have project accelerators available to give different types of projects a head start
A24: 1. Plan Requirements | B24: Adapt Methodology | C24: Define object hierarchy | D24: US010 | E24: Provide a template for new projects to minimize setup | F24: Requirements architect | G24: to be able to choose a requirements architecture template for my project, | H24: I only have to spend a minimal amount of time setting up my project (and so that I can just leverage common requirements architectures used in the industry) | I24: US010-AC022 | J24: Can create reusable customized requirements architecture templates for projects (with a set of defined object types with specified relationships) | K24: =Table13[[#This Row],[Priority (1-8) - 8 is high 1 - Delighter feature that is wonderful to have but not critical for an RM tool 2 - Performance feature that is important to have and increases performance managing requirements 3,5,8 - Basic feature - MVP to be considered an RM]] -> 2 | L24: 3 | M24: 6
A25: 1. Plan Requirements | B25: Adapt Methodology | C25: Define object hierarchy | D25: US010 | E25: Provide a template for new projects to minimize setup | F25: Requirements architect | G25: to be able to choose a requirements architecture template for my project, | H25: I only have to spend a minimal amount of time setting up my project (and so that I can just leverage common requirements architectures used in the industry) | I25: US010-AC023 | J25: Can store multiple object relationship templates (requirements architectures) that projects can select from | K25: =Table13[[#This Row],[Priority (1-8) - 8 is high 1 - Delighter feature that is wonderful to have but not critical for an RM tool 2 - Performance feature that is important to have and increases performance managing requirements 3,5,8 - Basic feature - MVP to be considered an RM]] -> 2 | L25: 1 | M25: 2 | N25: Can store templates of the item types you want to use for a project, but it doesn't govern the relationship rules in a template distinctly (relationship rules seem to be the same across everything)
A26: 1. Plan Requirements | B26: Adapt Methodology | C26: Define object attributes | D26: US011 | E26: Define attributes for each requirement object | F26: Requirements architect | G26: to be able to define the attributes (data fields) for each requirement object on my project | H26: I can establish a consistent method for capturing data, and ensure my team provides the information necessary for each object. | I26: US011-AC024 | J26: Can customize list of fields associated with each requirements object (as many as needed) | K26: =Table13[[#This Row],[Priority (1-8) - 8 is high 1 - Delighter feature that is wonderful to have but not critical for an RM tool 2 - Performance feature that is important to have and increases performance managing requirements 3,5,8 - Basic feature - MVP to be considered an RM]] -> 2 | L26: 3 | M26: 6
A27: 1. Plan Requirements | B27: Adapt Methodology | C27: Define object attributes | D27: US011 | E27: Define attributes for each requirement object | F27: Requirements architect | G27: to be able to define the attributes (data fields) for each requirement object on my project | H27: I can establish a consistent method for capturing data, and ensure my team provides the information necessary for each object. | I27: US011-AC025 | J27: Can set up attributes with predefined value choices (e.g. I want to add an attribute called Requirement Type and specify a picklist of values of functional, business, or user. Another example would be defining custom list of status options for an object) | K27: =Table13[[#This Row],[Priority (1-8) - 8 is high 1 - Delighter feature that is wonderful to have but not critical for an RM tool 2 - Performance feature that is important to have and increases performance managing requirements 3,5,8 - Basic feature - MVP to be considered an RM]] -> 2 | L27: 3 | M27: 6
A28: 1. Plan Requirements | B28: Adapt Methodology | C28: Define object attributes | D28: US011 | E28: Define attributes for each requirement object | F28: Requirements architect | G28: to be able to define the attributes (data fields) for each requirement object on my project | H28: I can establish a consistent method for capturing data, and ensure my team provides the information necessary for each object. | I28: US011-AC026 | J28: Can specify whether each field is required or optional | K28: =Table13[[#This Row],[Priority (1-8) - 8 is high 1 - Delighter feature that is wonderful to have but not critical for an RM tool 2 - Performance feature that is important to have and increases performance managing requirements 3,5,8 - Basic feature - MVP to be considered an RM]] -> 2 | L28: 3 | M28: 6
A29: 1. Plan Requirements | B29: Adapt Methodology | C29: Define object attributes | D29: US011 | E29: Define attributes for each requirement object | F29: Requirements architect | G29: to be able to define the attributes (data fields) for each requirement object on my project | H29: I can establish a consistent method for capturing data, and ensure my team provides the information necessary for each object. | I29: US011-AC027 | J29: Can define field format (e.g. requirements IDs formats, UCXX for use cases, BRXX for business rules, etc. or define whether it's a text or numerical) | K29: =Table13[[#This Row],[Priority (1-8) - 8 is high 1 - Delighter feature that is wonderful to have but not critical for an RM tool 2 - Performance feature that is important to have and increases performance managing requirements 3,5,8 - Basic feature - MVP to be considered an RM]] -> 1 | L29: 3 | M29: 3 | N29: Can define prefix of artifact types in the admin tool
A30: 1. Plan Requirements | B30: Adapt Methodology | C30: Define object attributes | D30: US011 | E30: Define attributes for each requirement object | F30: Requirements architect | G30: to be able to define the attributes (data fields) for each requirement object on my project | H30: I can establish a consistent method for capturing data, and ensure my team provides the information necessary for each object. | I30: US011-AC028 | J30: Can define calculated fields | K30: =Table13[[#This Row],[Priority (1-8) - 8 is high 1 - Delighter feature that is wonderful to have but not critical for an RM tool 2 - Performance feature that is important to have and increases performance managing requirements 3,5,8 - Basic feature - MVP to be considered an RM]] -> 1 | L30: 0 | M30: 0 | N30: No calculated property types found
A31: 1. Plan Requirements | B31: Adapt Methodology | C31: Customize tools | D31: US013 | E31: Create custom workflows | F31: Requirements Architect | G31: to be able to create custom workflows for my requirements objects | H31: I can leverage the tool to enforce better requirements practices in my organization | I31: US013-AC029 | J31: Can define custom workflow for by object type (e.g. require object to reach drafted status, then review status, then approval status before allowing it to be flagged as ready for development) | K31: =Table13[[#This Row],[Priority (1-8) - 8 is high 1 - Delighter feature that is wonderful to have but not critical for an RM tool 2 - Performance feature that is important to have and increases performance managing requirements 3,5,8 - Basic feature - MVP to be considered an RM]] -> 1 | L31: 1 | M31: 1 | N31: Could set rules in your organization to leverage statuses available with the review functionality and can customize status options available in a rule, but doesn't appear to be a way to configure workflow settings where the system forces items to be in a certain status before other actions can occur
A32: 1. Plan Requirements | B32: Administer Project | C32: Glossary | D32: US014 | E32: Define glossary | F32: Business Analyst | G32: to be able to create a glossary | H32: I that I can reference acronyms or unfamiliar words | I32: US014-AC030 | J32: Can create and update a glossary | K32: =Table13[[#This Row],[Priority (1-8) - 8 is high 1 - Delighter feature that is wonderful to have but not critical for an RM tool 2 - Performance feature that is important to have and increases performance managing requirements 3,5,8 - Basic feature - MVP to be considered an RM]] -> 1 | L32: 3 | M32: 3
A33: 1. Plan Requirements | B33: Administer Project | C33: Glossary | D33: US014 | E33: Define glossary | F33: Business Analyst | G33: to be able to create a glossary | H33: I that I can reference acronyms or unfamiliar words | I33: US014-AC031 | J33: Can upload an existing glossary to the requirement management tool | K33: =Table13[[#This Row],[Priority (1-8) - 8 is high 1 - Delighter feature that is wonderful to have but not critical for an RM tool 2 - Performance feature that is important to have and increases performance managing requirements 3,5,8 - Basic feature - MVP to be considered an RM]] -> 1 | L33: 3 | M33: 3
A34: 1. Plan Requirements | B34: Administer Project | C34: Define task management process | D34: US015 | E34: Assign owners to requirements | F34: Product manager | G34: I want to be able to assign an owner to a requirement/set of requirements | H34: requirements authors know which requirements they are responsible for | I34: US015-AC032 | J34: Can assign/re-assign a user to a single requirement or a set of requirements as the "owner" | K34: =Table13[[#This Row],[Priority (1-8) - 8 is high 1 - Delighter feature that is wonderful to have but not critical for an RM tool 2 - Performance feature that is important to have and increases performance managing requirements 3,5,8 - Basic feature - MVP to be considered an RM]] -> 3 | L34: 3 | M34: 9
A35: 1. Plan Requirements | B35: Administer Project | C35: Define task management process | D35: US015 | E35: Assign owners to requirements | F35: Product manager | G35: I want to be able to assign an owner to a requirement/set of requirements | H35: requirements authors know which requirements they are responsible for | I35: US015-AC033 | J35: Owner receive notifications around requirements that are assigned to them (e.g. when it first gets assigned to them, when it's reassigned, when it's edited, when it's approved) | K35: =Table13[[#This Row],[Priority (1-8) - 8 is high 1 - Delighter feature that is wonderful to have but not critical for an RM tool 2 - Performance feature that is important to have and increases performance managing requirements 3,5,8 - Basic feature - MVP to be considered an RM]] -> 1 | L35: 2 | M35: 2 | N35: Can set up notifications around review activities and can also get notified when someone mentions you in a comment, but doesn't appear to be a way to set automatic notifications based on other actions, like when a requirement gets assigned; can set up your Activity Center to track certain activities though too
A36: 1. Plan Requirements | B36: Administer Project | C36: Create requirements plan | D36: US016 | E36: Set up sprints/iterations for agile and hybrid projects | F36: Product Owner | G36: I want to be able to establish iterations for my project | H36: I can organize my requirements objects by priority of delivery | I36: US016-AC034 | J36: Can create/edit delivery iterations and assign requirements to them | K36: =Table13[[#This Row],[Priority (1-8) - 8 is high 1 - Delighter feature that is wonderful to have but not critical for an RM tool 2 - Performance feature that is important to have and increases performance managing requirements 3,5,8 - Basic feature - MVP to be considered an RM]] -> 2 | L36: 2 | M36: 4 | N36: You could use folders for this, or create a collection for each iteration, or integrate with another tool (Rally, Jira, TFS)
A37: 1. Plan Requirements | B37: Administer Project | C37: Create requirements plan | D37: US017 | E37: Release roadmap | F37: Product Owner | G37: I want to be able to assign iterations to releases | H37: I can start to organize my requirements by my feature delivery roadmap | I37: US017-AC035 | J37: Can visually see features (or similar object type) as assigned to iterations (e.g. generate a roadmap for a release listing features assigned by iteration with ability to see progress) | K37: =Table13[[#This Row],[Priority (1-8) - 8 is high 1 - Delighter feature that is wonderful to have but not critical for an RM tool 2 - Performance feature that is important to have and increases performance managing requirements 3,5,8 - Basic feature - MVP to be considered an RM]] -> 2 | L37: 1 | M37: 2 | N37: Would have to integrate with another tool (Rally, TFS)
A38: 2. Elicit Requirements | K38: Heading Fill
A39: 2. Elicit Requirements | B39: Identify requirements | C39: Reuse | D39: US018 | E39: Reuse requirements | F39: Business Analyst | G39: to be able to reuse requirements, | H39: I can leverage work that has already been done and produce my current requirements set faster. | I39: =D39&"-"&"AC"&TEXT(ROW()-3,"000") -> US018-AC036 | J39: Can copy requirements for reuse (from other projects or within the same project) | K39: =Table13[[#This Row],[Priority (1-8) - 8 is high 1 - Delighter feature that is wonderful to have but not critical for an RM tool 2 - Performance feature that is important to have and increases performance managing requirements 3,5,8 - Basic feature - MVP to be considered an RM]] -> 2 | L39: 3 | M39: 6
A40: 2. Elicit Requirements | B40: Identify requirements | C40: Reuse | D40: US018 | E40: Reuse requirements | F40: Business Analyst | G40: to be able to reuse requirements, | H40: I can leverage work that has already been done and produce my current requirements set faster. | I40: =D40&"-"&"AC"&TEXT(ROW()-3,"000") -> US018-AC037 | J40: Can store selected requirements in a reuse repository (e.g. common non-functional requirements that apply to the organization) | K40: =Table13[[#This Row],[Priority (1-8) - 8 is high 1 - Delighter feature that is wonderful to have but not critical for an RM tool 2 - Performance feature that is important to have and increases performance managing requirements 3,5,8 - Basic feature - MVP to be considered an RM]] -> 1 | L40: 3 | M40: 3
A41: 2. Elicit Requirements | B41: Administer Elicitation | C41: Capture requirements | D41: US020 | E41: Capture requirements during elicitation | F41: Business Analyst | G41: to be able to capture requirements directly in the tool during elicitation | H41: I can ensure I don't miss anything I learn from my elicitation efforts by capturing it all right away | I41: =D41&"-"&"AC"&TEXT(ROW()-3,"000") -> US020-AC038 | J41: Can track the source of the requirement | K41: =Table13[[#This Row],[Priority (1-8) - 8 is high 1 - Delighter feature that is wonderful to have but not critical for an RM tool 2 - Performance feature that is important to have and increases performance managing requirements 3,5,8 - Basic feature - MVP to be considered an RM]] -> 2 | L41: 3 | M41: 6 | N41: Could add a custom field for source or just put notes in the description around where it came from; or track a "from" trace if a story is derived from a model, or @mention the person who gave the feedback to record the reference
A42: 3. Analyze Requirements | K42: Heading Fill
A43: 3. Analyze Requirements | B43: Categorize Requirements | C43: Group requirements | D43: US023 | E43: Group requirements by project | F43: Business Analyst | G43: to be able to group my requirements | H43: I can organize my requirements information in such a way that stakeholders and I can locate information efficiently | I43: =D43&"-"&"AC"&TEXT(ROW()-4,"000") -> US023-AC039 | J43: Can filter the view of a group of requirements by certain criteria | K43: =Table13[[#This Row],[Priority (1-8) - 8 is high 1 - Delighter feature that is wonderful to have but not critical for an RM tool 2 - Performance feature that is important to have and increases performance managing requirements 3,5,8 - Basic feature - MVP to be considered an RM]] -> 2 | L43: 3 | M43: 6 | N43: Can apply filters for each column header when viewing your list of objects
A44: 3. Analyze Requirements | B44: Identify factors | C44: Dependencies | D44: US024 | E44: Add dependencies | F44: Product manager | G44: to be able to document dependencies with the tool | H44: I can identify pre-emptively roadblocks if dependencies fail. | I44: US024-AC040 | J44: Can link items/object as dependency to another item - this could be done as one of the allowed relationship types | K44: =Table13[[#This Row],[Priority (1-8) - 8 is high 1 - Delighter feature that is wonderful to have but not critical for an RM tool 2 - Performance feature that is important to have and increases performance managing requirements 3,5,8 - Basic feature - MVP to be considered an RM]] -> 2 | L44: 2 | M44: 4 | N44: Use dependency objects then relate bidirectional to other affected objects
A45: 3. Analyze Requirements | B45: Identify factors | C45: Value of a feature | D45: US025 | E45: Assign value to features | F45: Product manager | G45: to be able to assign and compare values of features | H45: I can prioritize features according to value. | I45: US025-AC041 | J45: Can specify quantified dollar values for features | K45: =Table13[[#This Row],[Priority (1-8) - 8 is high 1 - Delighter feature that is wonderful to have but not critical for an RM tool 2 - Performance feature that is important to have and increases performance managing requirements 3,5,8 - Basic feature - MVP to be considered an RM]] -> 2 | L45: 3 | M45: 6 | N45: Add a dollar value field to the feature object
A46: 3. Analyze Requirements | B46: Identify factors | C46: Value of a feature | D46: US025 | E46: Assign value to features | F46: Product manager | G46: to be able to assign and compare values of features | H46: I can prioritize features according to value. | I46: US025-AC042 | J46: Can rank features according to quantified value (or any custom attribute) | K46: =Table13[[#This Row],[Priority (1-8) - 8 is high 1 - Delighter feature that is wonderful to have but not critical for an RM tool 2 - Performance feature that is important to have and increases performance managing requirements 3,5,8 - Basic feature - MVP to be considered an RM]] -> 2 | L46: 1 | M46: 2 | N46: Could sort but doesn't appear you can actually rank - would have to add a rank attribute then populate
A47: 3. Analyze Requirements | B47: Identify factors | C47: Assumptions | D47: US026 | E47: Document assumptions | F47: Product manager | G47: to be able to document assumptions within the tool | H47: I can communicate the assumptions to the team and monitor them in order to assess impacts to the project if the assumptions fail to be true. | I47: US026-AC043 | J47: Can create/update assumptions | K47: =Table13[[#This Row],[Priority (1-8) - 8 is high 1 - Delighter feature that is wonderful to have but not critical for an RM tool 2 - Performance feature that is important to have and increases performance managing requirements 3,5,8 - Basic feature - MVP to be considered an RM]] -> 2 | L47: 3 | M47: 6
A48: 3. Analyze Requirements | B48: Identify factors | C48: Constraints | D48: US027 | E48: Document constraints | F48: Product manager | G48: to be able to document constraints in the tool | H48: I can make accurate project estimates and plans. | I48: US027-AC044 | J48: Can create/update constraints | K48: =Table13[[#This Row],[Priority (1-8) - 8 is high 1 - Delighter feature that is wonderful to have but not critical for an RM tool 2 - Performance feature that is important to have and increases performance managing requirements 3,5,8 - Basic feature - MVP to be considered an RM]] -> 2 | L48: 3 | M48: 6
A49: 3. Analyze Requirements | B49: Identify factors | C49: Risks | D49: US028 | E49: Document risks | F49: Product manager | G49: to be able to document risks in the tool | H49: so that I can communicate the risks to the team and monitor them in order to assess impacts to the project. | I49: US028-AC045 | J49: Can create/update risks | K49: =Table13[[#This Row],[Priority (1-8) - 8 is high 1 - Delighter feature that is wonderful to have but not critical for an RM tool 2 - Performance feature that is important to have and increases performance managing requirements 3,5,8 - Basic feature - MVP to be considered an RM]] -> 2 | L49: 3 | M49: =K49*L49 -> 6
A50: 3. Analyze Requirements | B50: Draft Requirements Models | C50: Objectives, People, Systems, Data | D50: US029 | E50: Create models in the tool | F50: Business Analyst | G50: to be able to create visual models directly in the tool | H50: I don't have to toggle back and forth between other applications to generate the visual models I need to simplify understanding of my requirements | I50: US029-AC046 | J50: Can create/edit models with various shapes (boxes, circles, etc.) connected by lines and arrows (e.g. process flow, ecosystem map, system flows, decision trees, business data diagram, org chart, business objectives model) | K50: =Table13[[#This Row],[Priority (1-8) - 8 is high 1 - Delighter feature that is wonderful to have but not critical for an RM tool 2 - Performance feature that is important to have and increases performance managing requirements 3,5,8 - Basic feature - MVP to be considered an RM]] -> 8 | L50: 3 | M50: 24
A51: 3. Analyze Requirements | B51: Draft Requirements Models | C51: Objectives, People, Systems, Data | D51: US029 | E51: Create models in the tool | F51: Business Analyst | G51: to be able to create visual models directly in the tool | H51: I don't have to toggle back and forth between other applications to generate the visual models I need to simplify understanding of my requirements | I51: US029-AC047 | J51: Can create models as tables (e.g. system interface table, decision tables, roles and permissions matrix, state table) | K51: =Table13[[#This Row],[Priority (1-8) - 8 is high 1 - Delighter feature that is wonderful to have but not critical for an RM tool 2 - Performance feature that is important to have and increases performance managing requirements 3,5,8 - Basic feature - MVP to be considered an RM]] -> 8 | L51: 3 | M51: 24
A52: 3. Analyze Requirements | B52: Draft Requirements Models | C52: Objectives, People, Systems, Data | D52: US029 | E52: Create models in the tool | F52: Business Analyst | G52: to be able to create visual models directly in the tool | H52: I don't have to toggle back and forth between other applications to generate the visual models I need to simplify understanding of my requirements | I52: US029-AC048 | J52: Can create diagrams with branching lines (e.g. feature tree, fishbone diagram) | K52: =Table13[[#This Row],[Priority (1-8) - 8 is high 1 - Delighter feature that is wonderful to have but not critical for an RM tool 2 - Performance feature that is important to have and increases performance managing requirements 3,5,8 - Basic feature - MVP to be considered an RM]] -> 8 | L52: 3 | M52: 24
A53: 3. Analyze Requirements | B53: Draft Requirements Models | C53: Objectives, People, Systems, Data | D53: US029 | E53: Create models in the tool | F53: Business Analyst | G53: to be able to create visual models directly in the tool | H53: I don't have to toggle back and forth between other applications to generate the visual models I need to simplify understanding of my requirements | I53: US029-AC049 | J53: Can create each of the elements of a model as its own item that can be linked to (like a step in a process flow is its own item) | K53: =Table13[[#This Row],[Priority (1-8) - 8 is high 1 - Delighter feature that is wonderful to have but not critical for an RM tool 2 - Performance feature that is important to have and increases performance managing requirements 3,5,8 - Basic feature - MVP to be considered an RM]] -> 5 | L53: 3 | M53: 15
A54: 3. Analyze Requirements | B54: Draft Requirements Models | C54: Objectives, People, Systems, Data | D54: US030 | E54: Create UI/UX mockups | F54: Business Analyst | G54: to be able to create UI/UX mockups directly within the tool | H54: I can supplement UI requirements with visual examples in order to ensure the proper UI is built. | I54: US030-AC050 | J54: Can mockup low-fidelity screens in the tool directly (e.g. sketch wireframe) | K54: =Table13[[#This Row],[Priority (1-8) - 8 is high 1 - Delighter feature that is wonderful to have but not critical for an RM tool 2 - Performance feature that is important to have and increases performance managing requirements 3,5,8 - Basic feature - MVP to be considered an RM]] -> 1 | L54: 3 | M54: 3
A55: 3. Analyze Requirements | B55: Draft Requirements Models | C55: Objectives, People, Systems, Data | D55: US030 | E55: Create UI/UX mockups | F55: Business Analyst | G55: to be able to create UI/UX mockups directly within the tool | H55: I can supplement UI requirements with visual examples in order to ensure the proper UI is built. | I55: US030-AC051 | J55: Can mockup high-fidelity screens in the tool directly (e.g. real looking or interactive prototype designed as the page should look) | K55: =Table13[[#This Row],[Priority (1-8) - 8 is high 1 - Delighter feature that is wonderful to have but not critical for an RM tool 2 - Performance feature that is important to have and increases performance managing requirements 3,5,8 - Basic feature - MVP to be considered an RM]] -> 1 | L55: 3 | M55: 3
A56: 3. Analyze Requirements | B56: Draft Requirements Models | C56: Objectives, People, Systems, Data | D56: US031 | E56: Import Models | F56: Business Analyst | G56: to be able to add models from other tools to supplement my requirements | H56: I can provide visual context to requirements for stakeholders | I56: US031-AC052 | J56: Person viewing requirement can either view or easily access a model to gain context | K56: =Table13[[#This Row],[Priority (1-8) - 8 is high 1 - Delighter feature that is wonderful to have but not critical for an RM tool 2 - Performance feature that is important to have and increases performance managing requirements 3,5,8 - Basic feature - MVP to be considered an RM]] -> 8 | L56: 3 | M56: 24
A57: 3. Analyze Requirements | B57: Draft Requirements Models | C57: Objectives, People, Systems, Data | D57: US031 | E57: Import Models | F57: Business Analyst | G57: to be able to add models from other tools to supplement my requirements | H57: I can provide visual context to requirements for stakeholders | I57: US031-AC053 | J57: Can import existing models and maintain the individual elements of the model in the tool (import from Visio, excel, etc.) | K57: =Table13[[#This Row],[Priority (1-8) - 8 is high 1 - Delighter feature that is wonderful to have but not critical for an RM tool 2 - Performance feature that is important to have and increases performance managing requirements 3,5,8 - Basic feature - MVP to be considered an RM]] -> 2 | L57: 3 | M57: 6
A58: 3. Analyze Requirements | B58: Draft Requirements Models | C58: Objectives, People, Systems, Data | D58: US032 | E58: Automatically create models from text | F58: Business Analyst | G58: to be able to automatically generate diagrams or models from written requirements | H58: I can spend less time making diagrams or models from written requirements | I58: US032-AC054 | J58: Can generate a visual representation of selected objects and their relationships (e.g. can generate a feature tree based on feature hierarchy defined in the tool) | K58: =Table13[[#This Row],[Priority (1-8) - 8 is high 1 - Delighter feature that is wonderful to have but not critical for an RM tool 2 - Performance feature that is important to have and increases performance managing requirements 3,5,8 - Basic feature - MVP to be considered an RM]] -> 2 | L58: 3 | M58: 6 | N58: Can use the impact analysis feature to see a tree of related items
A59: 3. Analyze Requirements | B59: Trace Requirements Artifacts | C59: Map Relationships | D59: US034 | E59: Create object relationships | F59: Business Analyst | G59: to be able to create relationships between objects | H59: I can have end to end traceability, which allows me to ensure I'm not missing any requirements | I59: US034-AC055 | J59: Can create/edit/break a relationship from one object to multiple other objects | K59: =Table13[[#This Row],[Priority (1-8) - 8 is high 1 - Delighter feature that is wonderful to have but not critical for an RM tool 2 - Performance feature that is important to have and increases performance managing requirements 3,5,8 - Basic feature - MVP to be considered an RM]] -> 8 | L59: 3 | M59: 24
A60: 3. Analyze Requirements | B60: Trace Requirements Artifacts | C60: Map Relationships | D60: US034 | E60: Create object relationships | F60: Business Analyst | G60: to be able to create relationships between objects | H60: I can have end to end traceability, which allows me to ensure I'm not missing any requirements | I60: US034-AC056 | J60: Can drag and drop to form relationships | K60: =Table13[[#This Row],[Priority (1-8) - 8 is high 1 - Delighter feature that is wonderful to have but not critical for an RM tool 2 - Performance feature that is important to have and increases performance managing requirements 3,5,8 - Basic feature - MVP to be considered an RM]] -> 2 | L60: 3 | M60: 6
A61: 3. Analyze Requirements | B61: Trace Requirements Artifacts | C61: Map Relationships | D61: US034 | E61: Create object relationships | F61: Business Analyst | G61: to be able to create relationships between objects | H61: I can have end to end traceability, which allows me to ensure I'm not missing any requirements | I61: US034-AC057 | J61: While creating a relationship between objects, can specify the type of relationship to be created | K61: =Table13[[#This Row],[Priority (1-8) - 8 is high 1 - Delighter feature that is wonderful to have but not critical for an RM tool 2 - Performance feature that is important to have and increases performance managing requirements 3,5,8 - Basic feature - MVP to be considered an RM]] -> 5 | L61: 2 | M61: 10 | N61: Can specify to, from, or bidirectional, but there aren't really any other relationship types (like dependent on)
A62: 3. Analyze Requirements | B62: Trace Requirements Artifacts | C62: Map Relationships | D62: US034 | E62: Create object relationships | F62: Business Analyst | G62: to be able to create relationships between objects | H62: I can have end to end traceability, which allows me to ensure I'm not missing any requirements | I62: US034-AC058 | J62: Can create relationships in bulk (e.g. can relate one object to many other objects at once) | K62: =Table13[[#This Row],[Priority (1-8) - 8 is high 1 - Delighter feature that is wonderful to have but not critical for an RM tool 2 - Performance feature that is important to have and increases performance managing requirements 3,5,8 - Basic feature - MVP to be considered an RM]] -> 2 | L62: 3 | M62: 6 | N62: Can trace and select many items at once holding down control
A63: 3. Analyze Requirements | B63: Trace Requirements Artifacts | C63: Map Relationships | D63: US034 | E63: Create object relationships | F63: Business Analyst | G63: to be able to create relationships between objects | H63: I can have end to end traceability, which allows me to ensure I'm not missing any requirements | I63: US034-AC059 | J63: Can create a relationship between a requirement object and a visual model | K63: =Table13[[#This Row],[Priority (1-8) - 8 is high 1 - Delighter feature that is wonderful to have but not critical for an RM tool 2 - Performance feature that is important to have and increases performance managing requirements 3,5,8 - Basic feature - MVP to be considered an RM]] -> 8 | L63: 3 | M63: 24
A64: 3. Analyze Requirements | B64: Trace Requirements Artifacts | C64: Map Relationships | D64: US034 | E64: Create object relationships | F64: Business Analyst | G64: to be able to create relationships between objects | H64: I can have end to end traceability, which allows me to ensure I'm not missing any requirements | I64: US034-AC060 | J64: Can relate a requirement to an element of a visual model (e.g. user story to process step, or user story to individual step in a use case, or a mock-up to a process step) | K64: =Table13[[#This Row],[Priority (1-8) - 8 is high 1 - Delighter feature that is wonderful to have but not critical for an RM tool 2 - Performance feature that is important to have and increases performance managing requirements 3,5,8 - Basic feature - MVP to be considered an RM]] -> 8 | L64: 3 | M64: 24
A65: 3. Analyze Requirements | B65: Trace Requirements Artifacts | C65: Map Relationships | D65: US034 | E65: Create object relationships | F65: Business Analyst | G65: to be able to create relationships between objects | H65: I can have end to end traceability, which allows me to ensure I'm not missing any requirements | I65: US034-AC061 | J65: Can relate requirements to individual elements on a UI screen mockup | K65: =Table13[[#This Row],[Priority (1-8) - 8 is high 1 - Delighter feature that is wonderful to have but not critical for an RM tool 2 - Performance feature that is important to have and increases performance managing requirements 3,5,8 - Basic feature - MVP to be considered an RM]] -> 1 | L65: 3 | M65: 3
A66: 3. Analyze Requirements | B66: Trace Requirements Artifacts | C66: Map Relationships | D66: US034 | E66: Create object relationships | F66: Business Analyst | G66: to be able to create relationships between objects | H66: I can have end to end traceability, which allows me to ensure I'm not missing any requirements | I66: US034-AC062 | J66: Can relate objects to test scripts (in the tool or in an integrated tool) | K66: =Table13[[#This Row],[Priority (1-8) - 8 is high 1 - Delighter feature that is wonderful to have but not critical for an RM tool 2 - Performance feature that is important to have and increases performance managing requirements 3,5,8 - Basic feature - MVP to be considered an RM]] -> 2 | L66: 3 | M66: 6
A67: 3. Analyze Requirements | B67: Trace Requirements Artifacts | C67: Map Relationships | D67: US035 | E67: Associate requirements with stakeholders | F67: Business Analyst | G67: to be able to associate a stakeholder for each requirement | H67: I can know who the requirement was elicited from/who to talk to if there is an issue. | I67: US035-AC063 | J67: Can define stakeholders | K67: =Table13[[#This Row],[Priority (1-8) - 8 is high 1 - Delighter feature that is wonderful to have but not critical for an RM tool 2 - Performance feature that is important to have and increases performance managing requirements 3,5,8 - Basic feature - MVP to be considered an RM]] -> 2 | L67: 3 | M67: =K67*L67 -> 6 | N67: Can set up stakeholder users or add more details about then by using the actors object
A68: 3. Analyze Requirements | B68: Trace Requirements Artifacts | C68: Map Relationships | D68: US036 | E68: View traceability | F68: Business Analyst | G68: to be able to view the relationships between requirements objects | H68: I can understand all of the requirements impacted by a given object and vice versa | I68: US036-AC064 | J68: Can navigate through models, images, and requirements mapped to one another without losing context (can flip back and forth between objects I'm viewing) | K68: =Table13[[#This Row],[Priority (1-8) - 8 is high 1 - Delighter feature that is wonderful to have but not critical for an RM tool 2 - Performance feature that is important to have and increases performance managing requirements 3,5,8 - Basic feature - MVP to be considered an RM]] -> 2 | L68: 3 | M68: 6 | N68: Keeps tabs for you up at the top; can view related items in a panel to the right as you're viewing an object or element within an object (like shape within a model)\
A69: 3. Analyze Requirements | B69: Trace Requirements Artifacts | C69: Map Relationships | D69: US036 | E69: View traceability | F69: Business Analyst | G69: to be able to view the relationships between requirements objects | H69: I can understand all of the requirements impacted by a given object and vice versa | I69: US036-AC065 | J69: From within a visual model, can easily navigate to items related to objects within the model (e.g. can view related prototypes by hovering over process steps) | K69: =Table13[[#This Row],[Priority (1-8) - 8 is high 1 - Delighter feature that is wonderful to have but not critical for an RM tool 2 - Performance feature that is important to have and increases performance managing requirements 3,5,8 - Basic feature - MVP to be considered an RM]] -> 1 | L69: 3 | M69: 3
A70: 3. Analyze Requirements | B70: Trace Requirements Artifacts | C70: Map Relationships | D70: US036 | E70: View traceability | F70: Business Analyst | G70: to be able to view the relationships between requirements objects | H70: I can understand all of the requirements impacted by a given object and vice versa | I70: US036-AC066 | J70: Can view a list of all directly related objects from an object | K70: =Table13[[#This Row],[Priority (1-8) - 8 is high 1 - Delighter feature that is wonderful to have but not critical for an RM tool 2 - Performance feature that is important to have and increases performance managing requirements 3,5,8 - Basic feature - MVP to be considered an RM]] -> 5 | L70: 3 | M70: 15
A71: 3. Analyze Requirements | B71: Trace Requirements Artifacts | C71: Map Relationships | D71: US036 | E71: View traceability | F71: Business Analyst | G71: to be able to view the relationships between requirements objects | H71: I can understand all of the requirements impacted by a given object and vice versa | I71: US036-AC067 | J71: Can view the hierarchy above and below a requirements object | K71: =Table13[[#This Row],[Priority (1-8) - 8 is high 1 - Delighter feature that is wonderful to have but not critical for an RM tool 2 - Performance feature that is important to have and increases performance managing requirements 3,5,8 - Basic feature - MVP to be considered an RM]] -> 2 | L71: 3 | M71: 6
A72: 3. Analyze Requirements | B72: Trace Requirements Artifacts | C72: Map Relationships | D72: US036 | E72: View traceability | F72: Business Analyst | G72: to be able to view the relationships between requirements objects | H72: I can understand all of the requirements impacted by a given object and vice versa | I72: US036-AC068 | J72: Can view all indirect (inherited) relationships for an object | K72: =Table13[[#This Row],[Priority (1-8) - 8 is high 1 - Delighter feature that is wonderful to have but not critical for an RM tool 2 - Performance feature that is important to have and increases performance managing requirements 3,5,8 - Basic feature - MVP to be considered an RM]] -> 2 | L72: 3 | M72: 6 | N72: Can see up to 10 levels of impact using coverage analysis/impact analysis features
A73: 3. Analyze Requirements | B73: Trace Requirements Artifacts | C73: Map Relationships | D73: US036 | E73: View traceability | F73: Business Analyst | G73: to be able to view the relationships between requirements objects | H73: I can understand all of the requirements impacted by a given object and vice versa | I73: US036-AC069 | J73: Can export relationship hierarchy trees to an Excel table (like a traceability matrix) | K73: =Table13[[#This Row],[Priority (1-8) - 8 is high 1 - Delighter feature that is wonderful to have but not critical for an RM tool 2 - Performance feature that is important to have and increases performance managing requirements 3,5,8 - Basic feature - MVP to be considered an RM]] -> 2 | L73: 3 | M73: 6
A74: 3. Analyze Requirements | B74: Trace Requirements Artifacts | C74: Map Relationships | D74: US036 | E74: View traceability | F74: Business Analyst | G74: to be able to view the relationships between requirements objects | H74: I can understand all of the requirements impacted by a given object and vice versa | I74: US036-AC070 | J74: Can view object hierarchies as diagrams (such as a tree) | K74: =Table13[[#This Row],[Priority (1-8) - 8 is high 1 - Delighter feature that is wonderful to have but not critical for an RM tool 2 - Performance feature that is important to have and increases performance managing requirements 3,5,8 - Basic feature - MVP to be considered an RM]] -> 2 | L74: 3 | M74: 6 | N74: Can see the object hierarchy using impact analysis
A75: 3. Analyze Requirements | B75: Trace Requirements Artifacts | C75: Map Relationships | D75: US036 | E75: View traceability | F75: Business Analyst | G75: to be able to view the relationships between requirements objects | H75: I can understand all of the requirements impacted by a given object and vice versa | I75: US036-AC071 | J75: Detects inconsistencies in links (e.g., circular linking or linking in the "wrong" direction in the hierarchy) | K75: =Table13[[#This Row],[Priority (1-8) - 8 is high 1 - Delighter feature that is wonderful to have but not critical for an RM tool 2 - Performance feature that is important to have and increases performance managing requirements 3,5,8 - Basic feature - MVP to be considered an RM]] -> 1 | L75: 2 | M75: 2 | N75: Identifies loops but it doesn't really allow you to specify allowed relationship types so not very flexible
A76: 3. Analyze Requirements | B76: Trace Requirements Artifacts | C76: Perform Gap Analysis | D76: US037 | E76: Identify missing model relationships | F76: Business Analyst | G76: to be able to identify objects that do not have relationships needed for coverage | H76: I can ensure I am not missing any requirements or including unnecessary requirements in my scope. | I76: US037-AC072 | J76: Can identify orphans from any object relationship type (e.g. can identify features that don't have business objectives, or user stories not associated to features, or process steps that don't have requirements, identify any object that doesn't have a parent) | K76: =Table13[[#This Row],[Priority (1-8) - 8 is high 1 - Delighter feature that is wonderful to have but not critical for an RM tool 2 - Performance feature that is important to have and increases performance managing requirements 3,5,8 - Basic feature - MVP to be considered an RM]] -> 5 | L76: 3 | M76: 15 | N76: Traceability explorer has nice orphan identification and highlights them in red
A77: 3. Analyze Requirements | B77: Trace Requirements Artifacts | C77: Perform Gap Analysis | D77: US037 | E77: Identify missing model relationships | F77: Business Analyst | G77: to be able to identify objects that do not have relationships needed for coverage | H77: I can ensure I am not missing any requirements or including unnecessary requirements in my scope. | I77: US037-AC073 | J77: Can generate traceability reports that shows orphans (e.g. features that don't have objectives, etc.) | K77: =Table13[[#This Row],[Priority (1-8) - 8 is high 1 - Delighter feature that is wonderful to have but not critical for an RM tool 2 - Performance feature that is important to have and increases performance managing requirements 3,5,8 - Basic feature - MVP to be considered an RM]] -> 2 | L77: 3 | M77: 6 | N77: Traceability explorer has nice orphan identification and highlights them in red
A78: 3. Analyze Requirements | B78: Trace Requirements Artifacts | C78: Perform Gap Analysis | D78: US037 | E78: Identify missing model relationships | F78: Business Analyst | G78: to be able to identify objects that do not have relationships needed for coverage | H78: I can ensure I am not missing any requirements or including unnecessary requirements in my scope. | I78: US037-AC074 | J78: Can track progress towards achieving full traceability with custom dashboard charts and graphs (e.g. can show bar chart with number of process steps still needing requirements, or show pie chart showing percentage of features that are mapped to business objectives) | K78: =Table13[[#This Row],[Priority (1-8) - 8 is high 1 - Delighter feature that is wonderful to have but not critical for an RM tool 2 - Performance feature that is important to have and increases performance managing requirements 3,5,8 - Basic feature - MVP to be considered an RM]] -> 1 | L78: 3 | M78: 3 | N78: Traceability explorer has nice orphan identification and highlights them in red
A79: 4. Specify Requirements | K79: Heading Fill
A80: 4. Specify Requirements | B80: Document Requirements | C80: All object types | D80: US038 | E80: Import requirements | F80: Business Analyst | G80: to be able to import requirements/objects to the tool from an external source | H80: I can quickly manage all of the requirements for my project in a single location without having to duplicate efforts | I80: =D80&"-"&"AC"&TEXT(ROW()-5,"000") -> US038-AC075 | J80: Can import objects from Microsoft Word (could be through direct integration with the tool through something like a Word add-in or automatically identify requirements from key words, structure, etc.) | K80: =Table13[[#This Row],[Priority (1-8) - 8 is high 1 - Delighter feature that is wonderful to have but not critical for an RM tool 2 - Performance feature that is important to have and increases performance managing requirements 3,5,8 - Basic feature - MVP to be considered an RM]] -> 3 | L80: 3 | M80: 9
A81: 4. Specify Requirements | B81: Document Requirements | C81: All object types | D81: US038 | E81: Import requirements | F81: Business Analyst | G81: to be able to import requirements/objects to the tool from an external source | H81: I can quickly manage all of the requirements for my project in a single location without having to duplicate efforts | I81: US038-AC076 | J81: Can import objects from Microsoft Excel (e.g. use import template or format from tool, or enable user to select which column headings to map to which object field, or through direct integration with the tool (Excel add-in)) | K81: =Table13[[#This Row],[Priority (1-8) - 8 is high 1 - Delighter feature that is wonderful to have but not critical for an RM tool 2 - Performance feature that is important to have and increases performance managing requirements 3,5,8 - Basic feature - MVP to be considered an RM]] -> 5 | L81: 3 | M81: 15
A82: 4. Specify Requirements | B82: Document Requirements | C82: All object types | D82: US038 | E82: Import requirements | F82: Business Analyst | G82: to be able to import requirements/objects to the tool from an external source | H82: I can quickly manage all of the requirements for my project in a single location without having to duplicate efforts | I82: US038-AC077 | J82: Can import objects from Microsoft Visio (e.g. recognize all objects on a Visio page upon upload and select which to add, or through direct integration with the tool (Visio add-in)) | K82: =Table13[[#This Row],[Priority (1-8) - 8 is high 1 - Delighter feature that is wonderful to have but not critical for an RM tool 2 - Performance feature that is important to have and increases performance managing requirements 3,5,8 - Basic feature - MVP to be considered an RM]] -> 2 | L82: 3 | M82: 6
A83: 4. Specify Requirements | B83: Document Requirements | C83: All object types | D83: US038 | E83: Import requirements | F83: Business Analyst | G83: to attach AV files to my requirements objects | H83: I can refer to recorded elicitation sessions if I need more background information about an object | I83: US038-AC078 | J83: Can import external AV files and store them within the tool attached to objects (audio files, video files) | K83: =Table13[[#This Row],[Priority (1-8) - 8 is high 1 - Delighter feature that is wonderful to have but not critical for an RM tool 2 - Performance feature that is important to have and increases performance managing requirements 3,5,8 - Basic feature - MVP to be considered an RM]] -> 1 | L83: 3 | M83: 3
A84: 4. Specify Requirements | B84: Document Requirements | C84: All object types | D84: US040 | E84: Create requirement | F84: Business Analyst | G84: to be able to add new requirements for my product | H84: I can capture stakeholder needs as they come up | I84: US040-AC079 | J84: Enter individual requirements into the tool easily and with low user interaction with tool UI (low click count, etc.) | K84: =Table13[[#This Row],[Priority (1-8) - 8 is high 1 - Delighter feature that is wonderful to have but not critical for an RM tool 2 - Performance feature that is important to have and increases performance managing requirements 3,5,8 - Basic feature - MVP to be considered an RM]] -> 5 | L84: 3 | M84: 15
